{"text_format":"3","workbook":"xlsx","n_sheets":41,"sheets":["modList01","Инструкция","Лог обновления","Титульный","Список МО","Показатели (факт)","Показатели (2)","Потр. характеристики","Инвестиции","Инвестиции исправления","Ссылки на публикации","Комментарии","Проверка","AllSheetsInThisWorkbook","TEHSHEET","et_union_hor","et_union_vert","modInfo","modRegion","modReestr","modfrmSelectData","modfrmReestr","modUpdTemplMain","REESTR_ORG","modClassifierValidate","modProv","modHyp","modList00","modList02","modList03","modList04","modList05","modList06","modList07","modfrmDateChoose","modComm","modThisWorkbook","REESTR_MO","modfrmReestrMR","modfrmCheckUpdates","CopyList"],"not_rendered":{"images":22,"macros":1,"external_links":8,"defined_names":178},"read":"whole","date_system":"1900"}

{"sheet":"modList01","index":0,"n_rows":0,"n_cols":0,"rows_kept":0,"hidden":true}

{"sheet":"Инструкция","index":1,"n_rows":102,"n_cols":27,"rows_kept":102,"merged":[[1,1,1,6],[2,1,2,2],[4,1,4,24],[6,4,18,23],[20,5,20,12],[20,15,20,23],[21,5,21,12],[21,15,21,23],[22,15,22,22],[34,4,38,23],[39,4,39,23],[40,4,44,23],[45,4,56,23],[57,4,57,6],[57,7,57,23],[58,4,58,6],[58,7,58,23],[59,4,59,6],[59,7,59,23],[60,7,60,23],[69,4,69,23],[70,4,70,23],[71,4,71,23],[72,4,72,23],[73,4,73,23],[74,4,74,23],[75,4,75,23],[76,4,76,23],[78,4,78,23],[79,4,79,7],[79,8,79,23],[80,4,80,6],[80,7,80,23],[81,4,81,6],[81,7,81,23],[82,4,82,6],[82,7,82,23],[83,7,83,23],[97,4,97,23],[99,5,99,18],[101,5,101,23]]}
[{"$nulls":26}," (требуется обновление)"]
[null,{"$f":"\"Код шаблона: \" & GetCode()","v":"Код шаблона: JKH.OPEN.INFO.BALANCE.WARM"}]
[null,{"$f":"\"Версия \" & GetVersion()","v":"Версия 6.0.1"}]
[]
[null,"Показатели, подлежащие раскрытию теплоснабжающими, теплосетевыми организациями"]
[]
[{"$nulls":4},"• На рабочем месте должен быть установлен MS Office 2003 SP3, 2007 SP3, 2010 с полной версией MS Excel\n\n• Макросы во время работы должны быть включены (!)\n\n• Для корректной работы отчёта требуется выбрать низкий уровень безопасности\n(В меню MS Excel 2003: Сервис | Макрос | Безопасность | выбрать пункт «Низкая безопасность» | OK)\n(В меню MS Excel 2007/2010: Параметры Excel | Центр управления безопасностью | Параметры центра управления безопасностью | Параметры макросов | Включить все макросы | ОК)\n\n• Если Вы работаете в табличном процессоре MS Excel 2007 и выше, то можете использовать для работы формат XLSM (Книга Excel с поддержкой макросов). При работе в формате XLSM заметно быстрее происходит сохранение файла, а также уменьшается размер по сравнению с форматом XLS\n\n• Не рекомендуется снимать защиту с листов и каким-либо образом модифицировать защищаемые формулы и расчётные поля, в противном случае, отчёт будет отклонён системой\n\n• При сохранении не следует выбирать формат XLSX (Книга Excel), так как в указанном формате макросы, необходимые для работы отчёта, безвозвратно удаляются"]
{"$rows_empty":13}
[{"$nulls":4},"A"," - необязательные для заполнения",{"$nulls":8},"A"," - с формулами и константами"]
[{"$nulls":4},"A"," - обязательные для заполнения",{"$nulls":8},"A"," - с выбором значений до двойному клику,"]
[{"$nulls":15},"либо с возможностью выбора даты из календаря или ручного ввода"]
{"$rows_empty":11}
[{"$nulls":4},"Если в предложенном Вам списке необходимая организация, МР/МО отсутствуют, обновите реестры с помощью кнопок\n\nВ результате синхронизации с базой данных список организаций (МР/МО) будет заменён актуальным (механизм синхронизации требует подключения к сети Интернет и основан на использовании протокола HTTPS (TCP порт 443))\n\nЕсли после обновления Вам не удалось найти необходимую организацию в списке, обратитесь к ответственному за поддержание реестра Вашего региона. Информация о региональных органах регулирования доступна по ссылке:"]
[]
[]
[]
[]
[{"$nulls":4},"http://www.fstrf.ru/regions/region/showlist"]
[]
[]
[]
[]
[]
[{"$nulls":4},"• При сохранении шаблона осуществляется проверка корректности данных, в том числе на наличие значений в ячейках, обязательных для заполнения\n\n• Если какая-то ячейка не удовлетворяет условию проверки, на лист «Проверка» добавляется гиперссылка на данную ячейку и указывается причина ошибки\n\n• В колонке «Статус» для каждого сообщения возможны 2 значения: ошибка и предупреждение\n\n• При наличии сообщений со статусом «Ошибка» шаблон будет отклонён системой и не будет загружен в хранилище данных, сообщения со статусом «Предупреждение» носят информационный характер, и такой шаблон будет принят системой"]
{"$rows_empty":11}
[{"$nulls":4},"Web-сайт:",null,null,"http://support.eias.ru/index.php?a=add&catid=5"]
[{"$nulls":4},"Дистрибутивы:",null,null,"http://eias.ru/?page=show_distrs"]
[{"$nulls":7},"для устранения ошибок (например, \"Compile error in hidden module\")"]
{"$rows_empty":9}
[{"$nulls":4},"Принципы работы с шаблоном"]
[{"$nulls":4}," Перед началом работы с шаблоном Вам необходимо нажать кнопку \"Приступить к заполнению\", после чего на форме выбора выбрать из выпадающего списка нужный субъект РФ. После выбора субъекта РФ в шаблоне отобразятся листы для заполнения."]
[{"$nulls":4}," На листе «Титульный» нужно заполнить все ячейки голубого и синего цвета.\n Для создания печатной формы нажмите на иконку принтера на листе «Титульный» (левый верхний угол)."]
[{"$nulls":4}," Гиперссылки на листах вводите, не нарушая цвет ячейки (если копируете гиперссылку из браузера, то выполните двойной щелчок левой кнопки мыши по ячейке и только после этого можете вставить скопированный элемент).\n"]
[{"$nulls":4}," При вводе даты на расчетных листах необходимо выбрать дату из календаря (иконка справа от выбранной ячейки), либо ввести дату непосредственно в ячейку в формате - 'ДД.ММ.ГГГГ'."]
[{"$nulls":4}," Если какой-либо из показателей на расчетных листах для Вашей организации отсутствует, введите в поле, обязательное для заполнение, «0» (для числовых показателей) и «-» (для текстовых).\n"]
[{"$nulls":4}," Внимательно следите за информационными сообщениями на расчетных листах."]
[{"$nulls":4}," Все необходимые комментарии по всем формам Вы можете отразить на листе «Комментарии»."]
[]
[{"$nulls":4},"Обосновывающие материалы (документы) необходимо загружать с помощью \"ЕИАС Мониторинг\""]
[{"$nulls":4},"Инструкция",{"$nulls":3},"http://eias.ru/files/shablon/manual_loading_through_monitoring.pdf"]
[]
[{"$nulls":4},"E-mail:",null,null,"openinfo@eias.ru"]
[{"$nulls":4},"Web-сайт:",null,null,"http://eias.ru/?page=show_templates"]
{"$rows_empty":14}
[{"$nulls":4},"При наличии подключения к Интернет, можно автоматически проверять наличие доступных обновлений. Выберите способ оповещения о наличии обновлений для отчёта:"]
[]
[{"$nulls":5},"проверять доступные обновления (рекомендуется)",{"$nulls":20},"y"]
[]
[{"$nulls":5},"никогда не проверять наличие обновлений (не рекомендуется)"]

{"sheet":"Лог обновления","index":2,"n_rows":50,"n_cols":3,"rows_kept":50,"hidden":true}
["Дата/Время","Сообщение","Статус"]
[]
["2016-04-26T11:22:32","Проверка доступных обновлений...","Информация"]
["2016-04-26T11:22:32","Версия шаблона 6.0.1 актуальна, обновление не требуется","Информация"]
["2016-04-26T16:49:48","Проверка доступных обновлений...","Информация"]
["2016-04-26T16:49:48","Версия шаблона 6.0.1 актуальна, обновление не требуется","Информация"]
["2016-04-29T13:22:39","Проверка доступных обновлений...","Информация"]
["2016-04-29T13:22:40","Версия шаблона 6.0.1 актуальна, обновление не требуется","Информация"]
["2016-04-29T15:48:12","Проверка доступных обновлений...","Информация"]
["2016-04-29T15:48:12","Версия шаблона 6.0.1 актуальна, обновление не требуется","Информация"]
["2017-04-13T08:59:36","Проверка доступных обновлений...","Информация"]
["2017-04-13T08:59:37","Версия шаблона 6.0.1 актуальна, обновление не требуется","Информация"]
["2017-04-13T09:09:24","Проверка доступных обновлений...","Информация"]
["2017-04-13T09:09:25","Версия шаблона 6.0.1 актуальна, обновление не требуется","Информация"]
["2017-04-13T09:09:47","Проверка доступных обновлений...","Информация"]
["2017-04-13T09:09:47","Версия шаблона 6.0.1 актуальна, обновление не требуется","Информация"]
["2017-04-13T12:41:58","Проверка доступных обновлений...","Информация"]
["2017-04-13T12:41:58","Версия шаблона 6.0.1 актуальна, обновление не требуется","Информация"]
["2017-04-13T15:21:03","Проверка доступных обновлений...","Информация"]
["2017-04-13T15:21:03","Версия шаблона 6.0.1 актуальна, обновление не требуется","Информация"]
["2017-04-14T12:58:24","Проверка доступных обновлений...","Информация"]
["2017-04-14T12:58:24","Версия шаблона 6.0.1 актуальна, обновление не требуется","Информация"]
["2017-04-17T10:03:20","Проверка доступных обновлений...","Информация"]
["2017-04-17T10:03:20","Версия шаблона 6.0.1 актуальна, обновление не требуется","Информация"]
["2017-04-17T15:20:49","Проверка доступных обновлений...","Информация"]
["2017-04-17T15:20:50","Версия шаблона 6.0.1 актуальна, обновление не требуется","Информация"]
["2017-04-17T16:23:19","Проверка доступных обновлений...","Информация"]
["2017-04-17T16:23:20","Версия шаблона 6.0.1 актуальна, обновление не требуется","Информация"]
["2017-04-18T09:26:50","Проверка доступных обновлений...","Информация"]
["2017-04-18T09:26:51","Версия шаблона 6.0.1 актуальна, обновление не требуется","Информация"]
["2017-04-19T09:57:35","Проверка доступных обновлений...","Информация"]
["2017-04-19T09:57:36","Версия шаблона 6.0.1 актуальна, обновление не требуется","Информация"]
["2017-04-19T12:27:33","Проверка доступных обновлений...","Информация"]
["2017-04-19T12:27:33","Версия шаблона 6.0.1 актуальна, обновление не требуется","Информация"]
["2017-04-19T12:29:18","Проверка доступных обновлений...","Информация"]
["2017-04-19T12:29:18","Версия шаблона 6.0.1 актуальна, обновление не требуется","Информация"]
["2017-04-20T14:35:18","Проверка доступных обновлений...","Информация"]
["2017-04-20T14:35:19","Версия шаблона 6.0.1 актуальна, обновление не требуется","Информация"]
["2017-04-20T15:39:57","Проверка доступных обновлений...","Информация"]
["2017-04-20T15:39:58","Версия шаблона 6.0.1 актуальна, обновление не требуется","Информация"]
["2017-04-24T08:53:41","Проверка доступных обновлений...","Информация"]
["2017-04-24T08:53:42","Версия шаблона 6.0.1 актуальна, обновление не требуется","Информация"]
["2017-04-24T12:15:57","Проверка доступных обновлений...","Информация"]
["2017-04-24T12:15:57","Версия шаблона 6.0.1 актуальна, обновление не требуется","Информация"]
["2017-04-24T14:03:06","Проверка доступных обновлений...","Информация"]
["2017-04-24T14:03:07","Версия шаблона 6.0.1 актуальна, обновление не требуется","Информация"]
["2017-04-24T15:22:10","Проверка доступных обновлений...","Информация"]
["2017-04-24T15:22:10","Версия шаблона 6.0.1 актуальна, обновление не требуется","Информация"]
["2017-04-25T18:49:07","Проверка доступных обновлений...","Информация"]
["2017-04-25T18:49:07","Версия шаблона 6.0.1 актуальна, обновление не требуется","Информация"]

{"sheet":"Титульный","index":3,"n_rows":56,"n_cols":6,"rows_kept":56,"merged":[[4,4,4,5]]}
[{"$nulls":5},26498149]
[]
[]
[{"$nulls":5},{"$f":"version","v":"Версия 6.0.1"}]
[{"$nulls":4},"Показатели, подлежащие раскрытию теплоснабжающими, теплосетевыми организациями"]
[]
[{"$nulls":4},"Субъект РФ","Забайкальский край"]
[]
[{"$nulls":4},"Публикация","На сайте регулирующего органа"]
[]
["Сайт организации в сети Интернет",{"$nulls":3},"По желанию организации информация раскрыта в дополнительных источниках публикации?","нет"]
[]
[{"$nulls":4},"Отчетный период (год)",2016]
[]
[{"$nulls":4},"Является ли данное юридическое лицо подразделением (филиалом) другой организации","нет"]
[]
[{"$nulls":4},"Наименование организации","ПАО \"ТГК-14\""]
[{"$nulls":4},"Наименование филиала"]
[{"$nulls":4},"ИНН","7534018889"]
[{"$nulls":4},"КПП","753401001"]
[]
[{"$nulls":4},"Вид деятельности","Производство (комбинированная выработка)+передача+сбыт"]
[]
[{"$nulls":4},"Производство",""]
[{"$nulls":4},"Передача",""]
[{"$nulls":4},"Сбыт",""]
[]
[{"$nulls":4},"Режим налогообложения","общий"]
[]
[{"$nulls":4},"Регулируемая организация осуществляет сдачу годового бухгалтерского баланса в налоговые органы","да"]
[]
[{"$nulls":4},"Дата направления годового бухгалтерского баланса в налоговые органы","22.03.2017"]
[]
[{"$nulls":4},"Превышает ли выручка от регулируемой деятельности 80% совокупной выручки за отчетный год","нет"]
[]
[{"$nulls":4},"Организация выполняет инвестиционную программу","да"]
[]
["Печатное издание",{"$nulls":3},"Отсутствует Интернет в границах территории муниципальных образований, где организация осуществляет регулируемые услуги","нет"]
[]
[{"$nulls":5},"Адрес регулируемой организации"]
[{"$nulls":4},"Юридический адрес","г. Чита, ул. Профсоюзная, 23"]
[{"$nulls":4},"Почтовый адрес","г. Чита, ул. Профсоюзная, 23"]
[]
[{"$nulls":5},"Руководитель"]
[{"$nulls":4},"Фамилия, имя, отчество","Мясник Виктор Чеславович"]
[{"$nulls":4},"(код) номер телефона","(3022) 38-45-59"]
[]
[{"$nulls":5},"Главный бухгалтер"]
[{"$nulls":4},"Фамилия, имя, отчество","Шобанова Валентина Ивановна"]
[{"$nulls":4},"(код) номер телефона","(3022) 38-45-59"]
[]
[{"$nulls":5},"Должностное лицо, ответственное за составление формы"]
[{"$nulls":4},"Фамилия, имя, отчество","Бузова Наталья Сергеевна"]
[{"$nulls":4},"Должность","Экономист ОБПиТО"]
[{"$nulls":4},"(код) номер телефона","8(3022)384654"]
[{"$nulls":4},"e-mail"," buzova@chita.tgk-14.com"]

{"sheet":"Список МО","index":4,"n_rows":16,"n_cols":8,"rows_kept":16,"merged":[[3,3,3,7],[4,3,4,7],[6,5,6,7],[7,5,7,7],[8,5,8,7],[13,3,14,3],[13,4,14,4]]}
[]
[]
[]
[{"$nulls":3},"Дифференциация тарифа"]
[{"$nulls":3},{"$f":"IF(org=0,\"Не определено\",org)","v":"ПАО \"ТГК-14\""}]
[]
[{"$nulls":5},"Система теплоснабжения"]
[{"$nulls":4},"Условный порядковый номер",3]
[{"$nulls":4},"Описание","Приаргунское"]
[]
[{"$nulls":3},"№ п/п","Муниципальный район","№ п/п","Муниципальное образование","ОКТМО"]
[{"$nulls":3},"1","2","3","4","5"]
[{"$nulls":3},0,null,0]
[null,null,"О",1,"Приаргунский муниципальный район",1,"Приаргунское","76638151"]
[{"$nulls":6},"Добавить МО"]
[{"$nulls":4},"Добавить МР"]

{"sheet":"Показатели (факт)","index":5,"n_rows":79,"n_cols":8,"rows_kept":79,"merged":[[4,3,4,6],[5,3,5,6],[17,0,21,0],[22,0,26,0],[78,4,78,6]]}
[]
[]
[]
[]
[{"$nulls":3},"Информация об основных показателях финансово-хозяйственной деятельности регулируемых организаций, включая структуру основных производственных затрат\n(в части регулируемой деятельности) *"]
[{"$nulls":3},{"$f":"IF(org=0,\"Не определено\",org)","v":"ПАО \"ТГК-14\""}]
[]
[{"$nulls":3},"№ п/п","Информация, подлежащая раскрытию","Единица измерения","Значение"]
[{"$nulls":3},"1","2","3","4"]
[{"$nulls":3},"1","Выручка от регулируемой деятельности, в том числе по видам деятельности:","тыс руб",{"$f":"SUM(G11:G13)","v":{"v":119852.09172,"d":"119,852.09"}}]
[{"$nulls":3},"1.0"]
[null,null,"О","1.1","Тепловая энергия","тыс руб",{"$f":"[1]ЧГ!$NK$7+[1]ЧТЭС!$XE$7","v":{"v":119852.09172,"d":"119,852.09"}}]
[{"$nulls":4},"Добавить вид деятельности"]
[{"$nulls":3},"2","Себестоимость производимых товаров (оказываемых услуг) по регулируемому виду деятельности, включая: ","тыс руб",{"$f":"SUM(G15:G16)+G29+SUM(G32:G40)+G43+G46+G48","v":{"v":167626.61024588704,"d":"167,626.61"}}]
[{"$nulls":3},"2.1","Расходы на покупаемую тепловую энергию (мощность), теплоноситель","тыс руб",{"v":0,"d":"0.00"}]
[{"$nulls":3},"2.2","Расходы на топливо","тыс руб",{"$f":"SUMIF(flagSum_List02_2,\"p\",G17:G28)","v":{"v":44222.325085887045,"d":"44,222.33"}}]
["2.2.0",null,null,{"$f":"A17","v":"2.2.0"}]
["2.2.1",null,"О",{"$f":"A18","v":"2.2.1"},"уголь бурый","x",{"$f":"G19*G20+G21","v":{"v":43922.21233499886,"d":"43,922.21"}},"p"]
[{"$nulls":3},{"$f":"A18&\".1\"","v":"2.2.1.1"},"Объем","тнт",{"$f":"[2]Т!$CV$172","v":{"v":45025.84,"d":"45,025.84"}}]
[{"$nulls":3},{"$f":"A18&\".2\"","v":"2.2.1.2"},"Стоимость за единицу объема","тыс руб",{"v":0.8207463,"d":"0.82"}]
[{"$nulls":3},{"$f":"A18&\".3\"","v":"2.2.1.3"},"Стоимость доставки","тыс руб",{"$f":"[2]Т!$CV$185/1000*[2]Т!$CV$172","v":{"v":6967.420750606866,"d":"6,967.42"}}]
[{"$nulls":3},{"$f":"A18&\".4\"","v":"2.2.1.4"},"Способ приобретения","x","торги/аукционы"]
["2.2.2",null,"О",{"$f":"A23","v":"2.2.2"},"мазут","x",{"$f":"G24*G25+G26","v":{"v":300.11275088818184,"d":"300.11"}},"p"]
[{"$nulls":3},{"$f":"A23&\".1\"","v":"2.2.2.1"},"Объем","тнт",{"$f":"[2]Т!$BP$172","v":{"v":24.812,"d":"24.81"}}]
[{"$nulls":3},{"$f":"A23&\".2\"","v":"2.2.2.2"},"Стоимость за единицу объема","тыс руб",{"$f":"[2]Т!$BP$166/1000","v":{"v":12.095467954545455,"d":"12.10"}}]
[{"$nulls":3},{"$f":"A23&\".3\"","v":"2.2.2.3"},"Стоимость доставки","тыс руб",{"v":0,"d":"0.00"}]
[{"$nulls":3},{"$f":"A23&\".4\"","v":"2.2.2.4"},"Способ приобретения","x","торги/аукционы"]
[{"$nulls":4},"Добавить вид топлива"]
[{"$nulls":3},"2.3","Расходы на покупаемую электрическую энергию (мощность), используемую в технологическом процессе","тыс руб",{"$f":"[1]ЧГ!$NK$56+[1]ЧТЭС!$XE$56","v":{"v":1753.6064800000004,"d":"1,753.61"}}]
[{"$nulls":3},"2.3.1","Средневзвешенная стоимость 1 кВт.ч (с учетом мощности)","руб",{"$f":"[3]факт!$Z$101","v":{"v":1.3075475286818088,"d":"1.31"}}]
[{"$nulls":3},"2.3.2","Объем приобретенной электрической энергии","тыс кВт.ч",{"$f":"G29/G30","v":{"v":1341.1416728903778,"d":"1,341.1417"}}]
[{"$nulls":3},"2.4","Расходы на приобретение холодной воды, используемой в технологическом процессе","тыс руб",{"v":0,"d":"0.00"}]
[{"$nulls":3},"2.5","Расходы на хим.реагенты, используемые в технологическом процессе","тыс руб",{"$f":"[1]ЧГ!$NK$22","v":{"v":301.72207999999995,"d":"301.72"}}]
[{"$nulls":3},"2.6","Расходы на оплату труда основного производственного персонала","тыс руб",{"$f":"[1]ЧГ!$NK$63+[1]ЧТЭС!$XE$63","v":{"v":60406.72067,"d":"60,406.72"}}]
[{"$nulls":3},"2.7","Отчисления на социальные нужды основного производственного персонала","тыс руб",{"$f":"[1]ЧГ!$NK$68+[1]ЧТЭС!$XE$68","v":{"v":19084.07737,"d":"19,084.08"}}]
[{"$nulls":3},"2.8","Расходы на оплату труда административно-управленческого персонала","тыс руб",{"$f":"[4]ЧТЭС!$KG$63+[4]ЧГ!$NK$63","v":{"v":4359.36342,"d":"4,359.36"}}]
[{"$nulls":3},"2.9","Отчисления на социальные нужды административно-управленческого персонала","тыс руб",{"$f":"[4]ЧТЭС!$KG$68+[4]ЧГ!$NK$68","v":{"v":1071.1752600000002,"d":"1,071.18"}}]
[{"$nulls":3},"2.10","Расходы на амортизацию основных производственных средств","тыс руб",{"$f":"[1]ЧГ!$NK$77+[1]ЧТЭС!$XE$77","v":{"v":5068.48683,"d":"5,068.49"}}]
[{"$nulls":3},"2.11","Расходы на аренду имущества, используемого для осуществления регулируемого вида деятельности","тыс руб",{"$f":"[1]ЧГ!$NK$93+[1]ЧТЭС!$XE$93","v":{"v":797.4342300000001,"d":"797.43"}}]
[{"$nulls":3},"2.12","Общепроизводственные расходы, в том числе отнесенные к ним:","тыс руб",{"$f":"[1]ЧГ!$NK$10+[1]ЧГ!$NK$31+[1]ЧТЭС!$XE$10+[1]ЧТЭС!$XE$31-G33","v":{"v":22606.989480000004,"d":"22,606.99"}}]
[{"$nulls":3},"2.12.1","Расходы на текущий ремонт","тыс руб",{"$f":"[1]ЧГ!$NK$12+[1]ЧГ!$NK$34+[1]ЧТЭС!$XE$12+[1]ЧТЭС!$XE$34","v":{"v":15578.82877,"d":"15,578.83"}}]
[{"$nulls":3},"2.12.2","Расходы на капитальный ремонт","тыс руб",{"$f":"[1]ЧГ!$NK$13","v":{"v":1091.8089,"d":"1,091.81"}}]
[{"$nulls":3},"2.13","Общехозяйственные расходы, в том числе отнесенные к ним:","тыс руб",{"$f":"[4]ЧТЭС!$KG$9+[4]ЧГ!$NK$9-G36-G37","v":{"v":2007.0818099999995,"d":"2,007.08"}}]
[{"$nulls":3},"2.13.1","Расходы на текущий ремонт","тыс руб",{"$f":"[4]ЧТЭС!$KG$12+[4]ЧГ!$NK$12","v":{"v":13.614899999999999,"d":"13.61"}}]
[{"$nulls":3},"2.13.2","Расходы на капитальный ремонт","тыс руб",{"v":0,"d":"0.00"}]
[{"$nulls":3},"2.14","Расходы на капитальный и текущий ремонт основных производственных средств, в том числе:","тыс руб",{"v":0,"d":"0.00"}]
[{"$nulls":3},"2.14.1","Информация об объемах товаров и услуг, их стоимости и способах приобретения у тех организаций, сумма оплаты услуг которых превышает 20 процентов суммы расходов по указанной статье расходов","x","отсутствует"]
[{"$nulls":3},"2.15","Прочие расходы, которые подлежат отнесению на регулируемые виды деятельности в соответствии с законодательством РФ","тыс руб",{"$f":"SUM(G49:G51)","v":{"v":5947.62753,"d":"5,947.63"}}]
[{"$nulls":3},"2.15.0"]
[null,null,"О","2.15.1","Прочие затраты","тыс руб",{"$f":"[1]ЧГ!$NK$80+[1]ЧТЭС!$XE$80-G39","v":{"v":5947.62753,"d":"5,947.63"}}]
[{"$nulls":4},"Добавить прочие расходы"]
[{"$nulls":3},"3","Валовая прибыль (убытки) от реализации товаров и оказания услуг по регулируемому виду деятельности","тыс руб",{"$f":"G12-List02_p3","v":{"v":-47774.51852588705,"d":"-47,774.52"}}]
[{"$nulls":3},"4","Чистая прибыль, полученная от регулируемого вида деятельности, в том числе:","тыс руб",{"v":0,"d":"0.00"}]
[{"$nulls":3},"4.1","Размер расходования чистой прибыли на финансирование мероприятий, предусмотренных инвестиционной программой","тыс руб",{"v":0,"d":"0.00"}]
[{"$nulls":3},"5","Сведения об изменении стоимости основных фондов, в том числе за счет их ввода в эксплуатацию (вывода из эксплуатации), а также стоимости их переоценки","тыс руб",{"$f":"G56+G57","v":{"v":6572.773286733285,"d":"6,572.77"}}]
[{"$nulls":3},"5.1","За счет ввода (вывода) из эксплуатации","тыс руб",{"$f":"[5]TDSheet!$E$7055","v":{"v":6572.773286733285,"d":"6,572.77"}}]
[{"$nulls":3},"6","Стоимость переоценки основных фондов","тыс руб",{"v":0,"d":"0.00"}]
[{"$nulls":3},"7","Годовая бухгалтерская отчетность, включая бухгалтерский баланс и приложения к нему","x","http://www.tgk-14.com/upload/medialibrary/03a/%D0%A2%D0%93%D0%9A-14%20%D0%91%D1%83%D1%85%D0%B3%D0%B0%D0%BB%D1%82%D0%B5%D1%80%D1%81%D0%BA%D0%B0%D1%8F%20%D0%BE%D1%82%D1%87%D0%B5%D1%82%D0%BD%D0%BE%D1%81%D1%82%D1%8C%20%D0%BF%D0%BE%20%D0%A0%D0%A1%D0%91%D0%A3%202015%20%D0%B3%D0%BE%D0%B4.pdf"]
[{"$nulls":3},"8","Установленная тепловая мощность объектов основных фондов, используемых для осуществления регулируемых видов деятельности, в том числе по каждому источнику тепловой энергии:","Гкал/ч",{"$f":"'[6]Показатели (факт)'!$G$59","v":{"v":110,"d":"110.00"}}]
[{"$nulls":3},"8.0"]
[{"$nulls":4},"Добавить источник тепловой энергии"]
[{"$nulls":3},"9","Тепловая нагрузка по договорам, заключенным в рамках осуществления регулируемых видов деятельности","Гкал/ч",{"$f":"'[6]Показатели (факт)'!$G$62","v":{"v":38.3,"d":"38.30"}}]
[{"$nulls":3},"10","Объем вырабатываемой регулируемой организацией тепловой энергии в рамках осуществления регулируемых видов деятельности","тыс Гкал",{"$f":"'[7]Показатели (факт)'!$G$63","v":{"v":122.582,"d":"122.5820"}}]
[{"$nulls":3},"11","Объем приобретаемой регулируемой организацией тепловой энергии в рамках осуществления регулируемых видов деятельности","тыс Гкал",{"v":0,"d":"0.0000"}]
[{"$nulls":3},"12","Объем тепловой энергии, отпускаемой потребителям по договорам, заключенным в рамках осуществления регулируемых видов деятельности, в том числе:","тыс Гкал",{"$f":"SUM(G66:G67)","v":{"v":94.51205,"d":"94.5121"}}]
[{"$nulls":3},"12.1","Определенном по приборам учета","тыс Гкал",{"$f":"'[8]Отпуск ТЭ'!$J$48/1000","v":{"v":11.503260000000001,"d":"11.5033"}}]
[{"$nulls":3},"12.2","Определенном расчетным путем (нормативам потребления коммунальных услуг)","тыс Гкал",{"$f":"'[8]Отпуск ТЭ'!$K$48/1000","v":{"v":83.00879,"d":"83.0088"}}]
[{"$nulls":3},"13","Нормативы технологических потерь при передаче тепловой энергии, теплоносителя по тепловым сетям, утвержденные уполномоченным органом","Ккал/ч.мес",27.87]
[{"$nulls":3},"14","Фактический объем потерь при передаче тепловой энергии","тыс Гкал",{"$f":"'[7]Показатели (факт)'!$G$69","v":{"v":26.008005795,"d":"26.0080"}}]
[{"$nulls":3},"15","Среднесписочная численность основного производственного персонала"," чел",{"$f":"118+6","v":{"v":124,"d":"124.00"}}]
[{"$nulls":3},"16","Среднесписочная численность административно-управленческого персонала"," чел",{"v":3.14722942648549,"d":"3.15"}]
[{"$nulls":3},"17","Удельный расход условного топлива на единицу тепловой энергии, отпускаемой в тепловую сеть, в том числе с разбивкой по источникам тепловой энергии, используемым для осуществления регулируемых видов деятельности","кг усл. топл/Гкал",{"$f":"'[7]Показатели (факт)'!$G$72","v":{"v":169.35,"d":"169.3500"}}]
[{"$nulls":3},"17.0"]
[{"$nulls":4},"Добавить источник тепловой энергии"]
[{"$nulls":3},"18","Удельный расход электрической энергии на производство (передачу) тепловой энергии на единицу тепловой энергии, отпускаемой потребителям по договорам, заключенным в рамках осуществления регулируемой деятельности","тыс кВт.ч/Гкал",{"$f":"'[7]Показатели (факт)'!$G$75","v":{"v":42.8,"d":"42.80"}}]
[{"$nulls":3},"19","Удельный расход холодной воды на производство (передачу) тепловой энергии на единицу тепловой энергии, отпускаемой потребителям по договорам, заключенным в рамках осуществления регулируемой деятельности","м3/Гкал",{"v":0,"d":"0.00"}]
[{"$nulls":3},"20","Комментарии","x","-"]
[]
[{"$nulls":3},"*","Раскрывается не позднее 30 дней со дня сдачи годового бухгалтерского баланса в налоговые органы."]

{"sheet":"Показатели (2)","index":6,"n_rows":14,"n_cols":16,"rows_kept":14,"hidden":true,"merged":[[4,3,4,8],[5,3,5,8],[9,4,9,13]]}
[]
[]
[]
[]
[{"$nulls":3},"Информация об объемах товаров и услуг, их стоимости и способах приобретения *"]
[{"$nulls":3},{"$f":"IF(org=0,\"Не определено\",org)","v":"ПАО \"ТГК-14\""}]
[]
[{"$nulls":3},"№ п/п","Наименование поставщика",null,"№ п/п","Способ приобретения","Реквизиты договора",null,"№ п/п","Наименование товара/услуги","Объем приобретенных товаров, услуг","Единица измерения объема","Стоимость, тыс.руб.","Доля расходов, % (от суммы расходов по указанной статье)"]
[{"$nulls":3},"1","2",null,"3","4","5",null,"6","7","8","9","10","11"]
[{"$nulls":4},"Расходы на ремонт (текущий и капитальный) основных производственных средств итого. Из них товары и услуги, приобретенные у организаций, сумма оплаты услуг которых превышает 20% суммы расходов по статье",{"$nulls":9},{"$f":"List02_costs_OPS","v":{"v":0,"d":"0.00"}}]
[{"$nulls":3},"0"]
[{"$nulls":4},"Добавить поставщика"]
[]
[{"$nulls":3},"*","Раскрывается не позднее 30 дней со дня сдачи годового бухгалтерского баланса в налоговые органы."]

{"sheet":"Потр. характеристики","index":7,"n_rows":18,"n_cols":7,"rows_kept":18,"merged":[[4,3,4,6],[5,3,5,6],[16,4,16,6]]}
[]
[]
[]
[]
[{"$nulls":3},"Информация об основных потребительских характеристиках регулируемых товаров и услуг *"]
[{"$nulls":3},{"$f":"IF(org=0,\"Не определено\",org)","v":"ПАО \"ТГК-14\""}]
[]
[{"$nulls":3},"№ п/п","Информация, подлежащая раскрытию","Значение","Ссылки на документы"]
[{"$nulls":3},"1","2","3","4"]
[{"$nulls":3},1,"Количество аварий на тепловых сетях (единиц на км) **",{"v":0,"d":"0.00"}]
[{"$nulls":3},"2","Количество аварий на источниках тепловой энергии (единиц на источник)**",{"v":0,"d":"0.00"}]
[{"$nulls":3},"3","Показатели надежности и качества, установленные в соответствии с законодательством РФ",{"v":0,"d":"0.00"},"https://tariff.eias.ru/disclo/get_file?p_guid=501cbc73-8d26-4cb9-883a-6bf221617425"]
[{"$nulls":3},"4","Доля числа исполненных в срок договоров о подключении (технологическом присоединении), %",{"v":100,"d":"100.00"}]
[{"$nulls":3},"5","Средняя продолжительность рассмотрения заявок на подключение (технологическое присоединение), дней",{"v":30,"d":"30.00"}]
[{"$nulls":3},"6","Комментарии","-"]
[]
[{"$nulls":3},"*","Раскрывается не позднее 30 дней со дня сдачи годового бухгалтерского баланса в налоговые органы."]
[{"$nulls":3},"**","Учитывать любое нарушение системы."]

{"sheet":"Инвестиции","index":8,"n_rows":149,"n_cols":19,"rows_kept":149,"merged":[[4,4,4,7],[5,4,5,7],[18,0,20,0],[21,0,25,0],[26,0,31,0],[32,0,37,0],[88,0,90,0],[91,0,93,0],[94,0,96,0],[97,0,99,0],[100,0,102,0],[103,0,105,0],[106,0,108,0],[111,0,115,0],[116,0,120,0],[121,0,125,0],[126,0,130,0],[131,0,135,0],[136,0,140,0],[141,0,145,0]]}
[]
[]
[]
[]
[{"$nulls":4},"Информация об инвестиционных программах *"]
[{"$nulls":4},{"$f":"IF(org=0,\"Не определено\",org)","v":"ПАО \"ТГК-14\""}]
[]
[{"$nulls":9},"О","О","О","О","О","О","О","О","О"]
[{"$nulls":4},"№ п/п","Наименование показателя","Единица измерения","Значение",{"$f":"\"Мероприятие \" & I10-4","v":"Мероприятие 0"},"Мероприятие 1","Мероприятие 2","Мероприятие 3","Мероприятие 4","Мероприятие 5","Мероприятие 6","Мероприятие 7","Мероприятие 8","Мероприятие 9","Добавить мероприятие"]
[{"$nulls":4},"1","2","3","4","4","5","6","7","8","9","10","11","12","13"]
[{"$nulls":4},1,"Наименование инвестиционной программы (мероприятия)","x","Инвестиционная программа ПАО \"ТГК-14\" в сфере теплоснабжения по объектам Забайкальского края",null,"Установка конвейерных весов ВК-2м Приаргунской ТЭЦ","Реконструкция ОРУ-110 кВ Приаргунской ТЭЦ с заменой вакуумного выключателя на элегазовый","Реконструкция оборудования главного щита управления  Приаргунской ТЭЦ с заменой релейных защит","Модернизация системы аварийного питания станции (Приаргунская ТЭЦ) с заменой аккумуляторной батареи","Монтаж дизель-генератора для аварийного питания СДТУ Приаргунской ТЭЦ","Реконструкция тепловой сети №3 с Ду 100 мм на Ду 150 мм от ТК3-31 до УТ-1 (п. Приаргунск)","Модернизация ОРУ с заменой масляных выключателей на вакуумные (Приаргунская ТЭЦ)","Установка системы контроля удаленным доступом (Приаргунская ТЭЦ)","Модернизация ТФУ с установкой подогревателя химически очищенной воды (Приаргунская ТЭЦ)"]
[{"$nulls":4},2,"Дата утверждения инвестиционной программы","x","30.10.2015","x","x","x","x","x","x","x","x","x","x"]
[{"$nulls":4},"3","Цели инвестиционной программы","x","прочее","x","x","x","x","x","x","x","x","x","x"]
[{"$nulls":4},"4","Наименование органа исполнительной власти субъекта РФ, утвердившего инвестиционную программу","x","РСТ Забайкальского края","x","x","x","x","x","x","x","x","x","x"]
[{"$nulls":4},"5","Наименование органа местного самоуправления, согласовавшего инвестиционную программу","x","Администрация городского округа \"Город Чита\"","x","x","x","x","x","x","x","x","x","x"]
[{"$nulls":4},"6","Срок начала реализации инвестиционной программы (мероприятия)","x","01.01.2016",null,"01.01.2015","01.01.2015","01.01.2016","01.01.2016","01.01.2016","01.01.2016","01.01.2017","01.01.2017","01.01.2017"]
[{"$nulls":4},"7","Срок окончания реализации инвестиционной программы (мероприятия)","x","31.12.2018",null,"31.12.2016","31.12.2016","31.12.2017","31.12.2016","31.12.2016","31.12.2016","31.12.2017","31.12.2017","31.12.2017"]
[{"$nulls":4},"8","Потребности в финансовых средствах, необходимых для реализации инвестиционной программы на год, в том числе по источникам финансирования","тыс руб",{"$f":"SUM(I18:S18)","v":{"v":24408.8,"d":"24,408.80"}},{"$f":"SUMIF(List06_flag_year,\"y\",I19:I39)","v":{"v":0,"d":"0.00"}},{"v":503,"d":"503.00"},{"v":7379,"d":"7,379.00"},{"v":6800,"d":"6,800.00"},{"v":7140,"d":"7,140.00"},{"v":188.79999999999998,"d":"188.80"},{"v":1191,"d":"1,191.00"},{"$f":"SUMIF(List06_flag_year,\"y\",P19:P39)","v":{"v":725,"d":"725.00"}},{"v":216,"d":"216.00"},{"v":266,"d":"266.00"}]
["8.0",{"$nulls":3},{"$f":"A19","v":"8.0"},null,"тыс руб",{"$f":"SUM(H20:H21)","v":{"v":0,"d":"0.00"}},{"v":0,"d":"0.00"},{"v":0,"d":"0.00"},{"v":0,"d":"0.00"},{"v":0,"d":"0.00"},{"v":0,"d":"0.00"},{"v":0,"d":"0.00"},{"v":0,"d":"0.00"},{"$f":"SUM(P20:P21)","v":{"v":0,"d":"0.00"}},{"v":0,"d":"0.00"},{"v":0,"d":"0.00"},"y"]
[null,1,null,null,{"$f":"A19&\".\"&B20","v":"8.0.1"},null,"тыс руб",{"$f":"SUM(I20:S20)","v":{"v":0,"d":"0.00"}}]
[{"$nulls":5},"Добавить источники"]
["8.1",null,"О",null,{"$f":"A22","v":"8.1"},2016,"тыс руб",{"$f":"SUM(H23:H26)","v":{"v":21994.8,"d":"21,994.80"}},{"v":0,"d":"0.00"},{"v":503,"d":"503.00"},{"v":7379,"d":"7,379.00"},{"v":5593,"d":"5,593.00"},{"v":7140,"d":"7,140.00"},{"v":188.79999999999998,"d":"188.80"},{"v":1191,"d":"1,191.00"},{"$f":"SUM(P23:P26)","v":{"v":0,"d":"0.00"}},{"v":0,"d":"0.00"},{"v":0,"d":"0.00"},"y"]
[null,1,null,null,{"$f":"A22&\".\"&B23","v":"8.1.1"},"амортизация","тыс руб",{"$f":"SUM(I23:S23)","v":{"v":21994.8,"d":"21,994.80"}},null,{"v":503,"d":"503.00"},{"v":7379,"d":"7,379.00"},{"v":5593,"d":"5,593.00"},{"v":7140,"d":"7,140.00"},{"v":188.79999999999998,"d":"188.80"},{"v":1191,"d":"1,191.00"},{"v":0,"d":"0.00"},{"v":0,"d":"0.00"},{"v":0,"d":"0.00"}]
[null,2,null,"О",{"$f":"$A$22&\".\"&$B$24","v":"8.1.2"},"прибыль, направляемая на инвестиции","тыс руб",{"$f":"SUM(I24:S24)","v":{"v":0,"d":"0.00"}},null,{"v":0,"d":"0.00"},{"v":0,"d":"0.00"},{"v":0,"d":"0.00"},{"v":0,"d":"0.00"},{"v":0,"d":"0.00"},{"v":0,"d":"0.00"},{"v":0,"d":"0.00"},{"v":0,"d":"0.00"},{"v":0,"d":"0.00"}]
[null,3,null,"О",{"$f":"$A$22&\".\"&$B$25","v":"8.1.3"},"плата за подключение","тыс руб",{"$f":"SUM(I25:S25)","v":{"v":0,"d":"0.00"}},null,{"v":0,"d":"0.00"},{"v":0,"d":"0.00"},{"v":0,"d":"0.00"},{"v":0,"d":"0.00"},{"v":0,"d":"0.00"},{"v":0,"d":"0.00"},{"v":0,"d":"0.00"},{"v":0,"d":"0.00"},{"v":0,"d":"0.00"}]
[{"$nulls":5},"Добавить источники"]
["8.2",null,"О",null,{"$f":"A27","v":"8.2"},2017,"тыс руб",{"$f":"SUM(H28:H32)","v":{"v":2414,"d":"2,414.00"}},{"v":0,"d":"0.00"},{"v":0,"d":"0.00"},{"v":0,"d":"0.00"},{"v":1207,"d":"1,207.00"},{"v":0,"d":"0.00"},{"v":0,"d":"0.00"},{"v":0,"d":"0.00"},{"$f":"SUM(P28:P32)","v":{"v":725,"d":"725.00"}},{"v":216,"d":"216.00"},{"v":266,"d":"266.00"},"y"]
[null,1,null,null,{"$f":"A27&\".\"&B28","v":"8.2.1"},"амортизация","тыс руб",{"$f":"SUM(I28:S28)","v":{"v":2414,"d":"2,414.00"}},null,{"v":0,"d":"0.00"},{"v":0,"d":"0.00"},{"v":1207,"d":"1,207.00"},{"v":0,"d":"0.00"},{"v":0,"d":"0.00"},{"v":0,"d":"0.00"},{"v":725,"d":"725.00"},{"v":216,"d":"216.00"},{"v":266,"d":"266.00"}]
[null,2,null,"О",{"$f":"$A$27&\".\"&$B$29","v":"8.2.2"},"прибыль, направляемая на инвестиции","тыс руб",{"$f":"SUM(I29:S29)","v":{"v":0,"d":"0.00"}},null,{"v":0,"d":"0.00"},{"v":0,"d":"0.00"},{"v":0,"d":"0.00"},{"v":0,"d":"0.00"},{"v":0,"d":"0.00"},{"v":0,"d":"0.00"},{"v":0,"d":"0.00"},{"v":0,"d":"0.00"},{"v":0,"d":"0.00"}]
[null,3,null,"О",{"$f":"$A$27&\".\"&$B$30","v":"8.2.3"},"плата за подключение","тыс руб",{"$f":"SUM(I30:S30)","v":{"v":0,"d":"0.00"}},null,{"v":0,"d":"0.00"},{"v":0,"d":"0.00"},{"v":0,"d":"0.00"},{"v":0,"d":"0.00"},{"v":0,"d":"0.00"},{"v":0,"d":"0.00"},{"v":0,"d":"0.00"},{"v":0,"d":"0.00"},{"v":0,"d":"0.00"}]
[null,4,null,"О",{"$f":"$A$27&\".\"&$B$31","v":"8.2.4"},"кредиты банков","тыс руб",{"$f":"SUM(I31:S31)","v":{"v":0,"d":"0.00"}},null,{"v":0,"d":"0.00"},{"v":0,"d":"0.00"},{"v":0,"d":"0.00"},{"v":0,"d":"0.00"},{"v":0,"d":"0.00"},{"v":0,"d":"0.00"},{"v":0,"d":"0.00"},{"v":0,"d":"0.00"},{"v":0,"d":"0.00"}]
[{"$nulls":5},"Добавить источники"]
["8.3",null,"О",null,{"$f":"A33","v":"8.3"},2018,"тыс руб",{"$f":"SUM(H34:H38)","v":{"v":0,"d":"0.00"}},{"v":0,"d":"0.00"},{"v":0,"d":"0.00"},{"v":0,"d":"0.00"},{"v":0,"d":"0.00"},{"v":0,"d":"0.00"},{"v":0,"d":"0.00"},{"v":0,"d":"0.00"},{"$f":"SUM(P34:P38)","v":{"v":0,"d":"0.00"}},{"v":0,"d":"0.00"},{"v":0,"d":"0.00"},"y"]
[null,1,null,null,{"$f":"A33&\".\"&B34","v":"8.3.1"},"амортизация","тыс руб",{"$f":"SUM(I34:S34)","v":{"v":0,"d":"0.00"}},null,{"v":0,"d":"0.00"},{"v":0,"d":"0.00"},{"v":0,"d":"0.00"},{"v":0,"d":"0.00"},{"v":0,"d":"0.00"},{"v":0,"d":"0.00"},{"v":0,"d":"0.00"},{"v":0,"d":"0.00"},{"v":0,"d":"0.00"}]
[null,2,null,"О",{"$f":"$A$33&\".\"&$B$35","v":"8.3.2"},"прибыль, направляемая на инвестиции","тыс руб",{"$f":"SUM(I35:S35)","v":{"v":0,"d":"0.00"}},null,{"v":0,"d":"0.00"},{"v":0,"d":"0.00"},{"v":0,"d":"0.00"},{"v":0,"d":"0.00"},{"v":0,"d":"0.00"},{"v":0,"d":"0.00"},{"v":0,"d":"0.00"},{"v":0,"d":"0.00"},{"v":0,"d":"0.00"}]
[null,3,null,"О",{"$f":"$A$33&\".\"&$B$36","v":"8.3.3"},"плата за подключение","тыс руб",{"$f":"SUM(I36:S36)","v":{"v":0,"d":"0.00"}},null,{"v":0,"d":"0.00"},{"v":0,"d":"0.00"},{"v":0,"d":"0.00"},{"v":0,"d":"0.00"},{"v":0,"d":"0.00"},{"v":0,"d":"0.00"},{"v":0,"d":"0.00"},{"v":0,"d":"0.00"},{"v":0,"d":"0.00"}]
[null,4,null,"О",{"$f":"$A$33&\".\"&$B$37","v":"8.3.4"},"кредиты банков","тыс руб",{"$f":"SUM(I37:S37)","v":{"v":0,"d":"0.00"}},null,{"v":0,"d":"0.00"},{"v":0,"d":"0.00"},{"v":0,"d":"0.00"},{"v":0,"d":"0.00"},{"v":0,"d":"0.00"},{"v":0,"d":"0.00"},{"v":0,"d":"0.00"},{"v":0,"d":"0.00"},{"v":0,"d":"0.00"}]
[{"$nulls":5},"Добавить источники"]
[{"$nulls":5},"Добавить год"]
[{"$nulls":4},"9","Целевые показатели инвестиционной программы",null,"x","x","x","x","x","x","x","x","x","x","x"]
[{"$nulls":4},"9.1","Срок окупаемости","лет","x","x","x","x","x","x","x","x","x","x","x"]
[{"$nulls":4},"9.1.1","Факт","лет",{"v":0,"d":"0.00"},null,{"v":0,"d":"0.00"},{"v":0,"d":"0.00"},{"v":0,"d":"0.00"},{"v":0,"d":"0.00"},{"v":0,"d":"0.00"},{"v":0,"d":"0.00"},{"v":0,"d":"0.00"},{"v":0,"d":"0.00"},{"v":0,"d":"0.00"}]
[{"$nulls":4},"9.1.2","План","лет",{"v":0,"d":"0.00"},{"v":0,"d":"0.00"},{"v":0,"d":"0.00"},{"v":0,"d":"0.00"},{"v":0,"d":"0.00"},{"v":0,"d":"0.00"},{"v":0,"d":"0.00"},{"v":0,"d":"0.00"},{"v":0,"d":"0.00"},{"v":0,"d":"0.00"},{"v":0,"d":"0.00"}]
[{"$nulls":4},"9.2","Перебои в снабжении потребителей","часов на потребителя","x","x","x","x","x","x","x","x","x","x","x"]
[{"$nulls":4},"9.2.1","Факт","часов на потребителя",{"v":0,"d":"0.00"},null,{"v":0,"d":"0.00"},{"v":0,"d":"0.00"},{"v":0,"d":"0.00"},{"v":0,"d":"0.00"},{"v":0,"d":"0.00"},{"v":0,"d":"0.00"},{"v":0,"d":"0.00"},{"v":0,"d":"0.00"},{"v":0,"d":"0.00"}]
[{"$nulls":4},"9.2.2","План","часов на потребителя",{"v":0,"d":"0.00"},{"v":0,"d":"0.00"},{"v":0,"d":"0.00"},{"v":0,"d":"0.00"},{"v":0,"d":"0.00"},{"v":0,"d":"0.00"},{"v":0,"d":"0.00"},{"v":0,"d":"0.00"},{"v":0,"d":"0.00"},{"v":0,"d":"0.00"},{"v":0,"d":"0.00"}]
[{"$nulls":4},"9.3","Продолжительность (бесперебойность) поставки товаров и услуг","час/день","x","x","x","x","x","x","x","x","x","x","x"]
[{"$nulls":4},"9.3.1","Факт","час/день",{"v":0,"d":"0.00"},null,{"v":0,"d":"0.00"},{"v":0,"d":"0.00"},{"v":0,"d":"0.00"},{"v":0,"d":"0.00"},{"v":0,"d":"0.00"},{"v":0,"d":"0.00"},{"v":0,"d":"0.00"},{"v":0,"d":"0.00"},{"v":0,"d":"0.00"}]
[{"$nulls":4},"9.3.2","План","час/день",{"v":0,"d":"0.00"},{"v":0,"d":"0.00"},{"v":0,"d":"0.00"},{"v":0,"d":"0.00"},{"v":0,"d":"0.00"},{"v":0,"d":"0.00"},{"v":0,"d":"0.00"},{"v":0,"d":"0.00"},{"v":0,"d":"0.00"},{"v":0,"d":"0.00"},{"v":0,"d":"0.00"}]
[{"$nulls":4},"9.4","Уровень потерь и неучтенного потребления","%","x","x","x","x","x","x","x","x","x","x","x"]
[{"$nulls":4},"9.4.1","Факт","%",{"v":0,"d":"0.00"},null,{"v":0,"d":"0.00"},{"v":0,"d":"0.00"},{"v":0,"d":"0.00"},{"v":0,"d":"0.00"},{"v":0,"d":"0.00"},{"v":0,"d":"0.00"},{"v":0,"d":"0.00"},{"v":0,"d":"0.00"},{"v":0,"d":"0.00"}]
[{"$nulls":4},"9.4.2","План","%",{"v":0,"d":"0.00"},{"v":0,"d":"0.00"},{"v":0,"d":"0.00"},{"v":0,"d":"0.00"},{"v":0,"d":"0.00"},{"v":0,"d":"0.00"},{"v":0,"d":"0.00"},{"v":0,"d":"0.00"},{"v":0,"d":"0.00"},{"v":0,"d":"0.00"},{"v":0,"d":"0.00"}]
[{"$nulls":4},"9.5","Коэффициент потерь","Гкал/км","x","x","x","x","x","x","x","x","x","x","x"]
[{"$nulls":4},"9.5.1","Факт","Гкал/км",{"v":0,"d":"0.00"},null,{"v":0,"d":"0.00"},{"v":0,"d":"0.00"},{"v":0,"d":"0.00"},{"v":0,"d":"0.00"},{"v":0,"d":"0.00"},{"v":0,"d":"0.00"},{"v":0,"d":"0.00"},{"v":0,"d":"0.00"},{"v":0,"d":"0.00"}]
[{"$nulls":4},"9.5.2","План","Гкал/км",{"v":0,"d":"0.00"},{"v":0,"d":"0.00"},{"v":0,"d":"0.00"},{"v":0,"d":"0.00"},{"v":0,"d":"0.00"},{"v":0,"d":"0.00"},{"v":0,"d":"0.00"},{"v":0,"d":"0.00"},{"v":0,"d":"0.00"},{"v":0,"d":"0.00"},{"v":0,"d":"0.00"}]
[{"$nulls":4},"9.6","Износ систем коммунальной инфраструктуры","%","x","x","x","x","x","x","x","x","x","x","x"]
[{"$nulls":4},"9.6.1","Факт","%",{"v":0,"d":"0.00"},null,{"v":0,"d":"0.00"},{"v":0,"d":"0.00"},{"v":0,"d":"0.00"},{"v":0,"d":"0.00"},{"v":0,"d":"0.00"},{"v":0,"d":"0.00"},{"v":0,"d":"0.00"},{"v":0,"d":"0.00"},{"v":0,"d":"0.00"}]
[{"$nulls":4},"9.6.2","План","%",{"v":0,"d":"0.00"},{"v":0,"d":"0.00"},{"v":0,"d":"0.00"},{"v":0,"d":"0.00"},{"v":0,"d":"0.00"},{"v":0,"d":"0.00"},{"v":0,"d":"0.00"},{"v":0,"d":"0.00"},{"v":0,"d":"0.00"},{"v":0,"d":"0.00"},{"v":0,"d":"0.00"}]
[{"$nulls":4},"9.7","Износ оборудования производства (котлы)","%","x","x","x","x","x","x","x","x","x","x","x"]
[{"$nulls":4},"9.7.1","Факт","%",{"v":0,"d":"0.00"},null,{"v":0,"d":"0.00"},{"v":0,"d":"0.00"},{"v":0,"d":"0.00"},{"v":0,"d":"0.00"},{"v":0,"d":"0.00"},{"v":0,"d":"0.00"},{"v":0,"d":"0.00"},{"v":0,"d":"0.00"},{"v":0,"d":"0.00"}]
[{"$nulls":4},"9.7.2","План","%",{"v":0,"d":"0.00"},{"v":0,"d":"0.00"},{"v":0,"d":"0.00"},{"v":0,"d":"0.00"},{"v":0,"d":"0.00"},{"v":0,"d":"0.00"},{"v":0,"d":"0.00"},{"v":0,"d":"0.00"},{"v":0,"d":"0.00"},{"v":0,"d":"0.00"},{"v":0,"d":"0.00"}]
[{"$nulls":4},"9.8","Износ оборудования передачи тепловой энергии (сети)","%","x","x","x","x","x","x","x","x","x","x","x"]
[{"$nulls":4},"9.8.1","Факт","%",{"v":0,"d":"0.00"},null,{"v":0,"d":"0.00"},{"v":0,"d":"0.00"},{"v":0,"d":"0.00"},{"v":0,"d":"0.00"},{"v":0,"d":"0.00"},{"v":0,"d":"0.00"},{"v":0,"d":"0.00"},{"v":0,"d":"0.00"},{"v":0,"d":"0.00"}]
[{"$nulls":4},"9.8.2","План","%",{"v":0,"d":"0.00"},{"v":0,"d":"0.00"},{"v":0,"d":"0.00"},{"v":0,"d":"0.00"},{"v":0,"d":"0.00"},{"v":0,"d":"0.00"},{"v":0,"d":"0.00"},{"v":0,"d":"0.00"},{"v":0,"d":"0.00"},{"v":0,"d":"0.00"},{"v":0,"d":"0.00"}]
[{"$nulls":4},"9.9","Удельный вес сетей, нуждающихся в замене","%","x","x","x","x","x","x","x","x","x","x","x"]
[{"$nulls":4},"9.9.1","Факт","%",{"v":0,"d":"0.00"},null,{"v":0,"d":"0.00"},{"v":0,"d":"0.00"},{"v":0,"d":"0.00"},{"v":0,"d":"0.00"},{"v":0,"d":"0.00"},{"v":0,"d":"0.00"},{"v":0,"d":"0.00"},{"v":0,"d":"0.00"},{"v":0,"d":"0.00"}]
[{"$nulls":4},"9.9.2","План","%",{"v":0,"d":"0.00"},{"v":0,"d":"0.00"},{"v":0,"d":"0.00"},{"v":0,"d":"0.00"},{"v":0,"d":"0.00"},{"v":0,"d":"0.00"},{"v":0,"d":"0.00"},{"v":0,"d":"0.00"},{"v":0,"d":"0.00"},{"v":0,"d":"0.00"},{"v":0,"d":"0.00"}]
[{"$nulls":4},"9.10","Обеспеченность потребления товаров и услуг приборами учета","%","x","x","x","x","x","x","x","x","x","x","x"]
[{"$nulls":4},"9.10.1","Факт","%",{"v":0,"d":"0.00"},null,{"v":0,"d":"0.00"},{"v":0,"d":"0.00"},{"v":0,"d":"0.00"},{"v":0,"d":"0.00"},{"v":0,"d":"0.00"},{"v":0,"d":"0.00"},{"v":0,"d":"0.00"},{"v":0,"d":"0.00"},{"v":0,"d":"0.00"}]
[{"$nulls":4},"9.10.2","План","%",{"v":0,"d":"0.00"},{"v":0,"d":"0.00"},{"v":0,"d":"0.00"},{"v":0,"d":"0.00"},{"v":0,"d":"0.00"},{"v":0,"d":"0.00"},{"v":0,"d":"0.00"},{"v":0,"d":"0.00"},{"v":0,"d":"0.00"},{"v":0,"d":"0.00"},{"v":0,"d":"0.00"}]
[{"$nulls":4},"9.11","Расход топлива на 1 Гкал","т усл.топл/Гкал","x","x","x","x","x","x","x","x","x","x","x"]
[{"$nulls":4},"9.11.1","Факт","т усл.топл/Гкал",{"v":0,"d":"0.00"},null,{"v":0,"d":"0.00"},{"v":0,"d":"0.00"},{"v":0,"d":"0.00"},{"v":0,"d":"0.00"},{"v":0,"d":"0.00"},{"v":0,"d":"0.00"},{"v":0,"d":"0.00"},{"v":0,"d":"0.00"},{"v":0,"d":"0.00"}]
[{"$nulls":4},"9.11.2","План","т усл.топл/Гкал",{"v":0,"d":"0.00"},{"v":0,"d":"0.00"},{"v":0,"d":"0.00"},{"v":0,"d":"0.00"},{"v":0,"d":"0.00"},{"v":0,"d":"0.00"},{"v":0,"d":"0.00"},{"v":0,"d":"0.00"},{"v":0,"d":"0.00"},{"v":0,"d":"0.00"},{"v":0,"d":"0.00"}]
[{"$nulls":4},"9.12","Расход электроэнергии на выработку 1 Гкал","кВт.ч/Гкал","x","x","x","x","x","x","x","x","x","x","x"]
[{"$nulls":4},"9.12.1","Факт","кВт.ч/Гкал",{"v":0,"d":"0.00"},null,{"v":0,"d":"0.00"},{"v":0,"d":"0.00"},{"v":0,"d":"0.00"},{"v":0,"d":"0.00"},{"v":0,"d":"0.00"},{"v":0,"d":"0.00"},{"v":0,"d":"0.00"},{"v":0,"d":"0.00"},{"v":0,"d":"0.00"}]
[{"$nulls":4},"9.12.2","План","кВт.ч/Гкал",{"v":0,"d":"0.00"},{"v":0,"d":"0.00"},{"v":0,"d":"0.00"},{"v":0,"d":"0.00"},{"v":0,"d":"0.00"},{"v":0,"d":"0.00"},{"v":0,"d":"0.00"},{"v":0,"d":"0.00"},{"v":0,"d":"0.00"},{"v":0,"d":"0.00"},{"v":0,"d":"0.00"}]
[{"$nulls":4},"9.13","Расход электроэнергии на передачу 1 Гкал","кВт.ч/Гкал","x","x","x","x","x","x","x","x","x","x","x"]
[{"$nulls":4},"9.13.1","Факт","кВт.ч/Гкал",{"v":0,"d":"0.00"},null,{"v":0,"d":"0.00"},{"v":0,"d":"0.00"},{"v":0,"d":"0.00"},{"v":0,"d":"0.00"},{"v":0,"d":"0.00"},{"v":0,"d":"0.00"},{"v":0,"d":"0.00"},{"v":0,"d":"0.00"},{"v":0,"d":"0.00"}]
[{"$nulls":4},"9.13.2","План","кВт.ч/Гкал",{"v":0,"d":"0.00"},{"v":0,"d":"0.00"},{"v":0,"d":"0.00"},{"v":0,"d":"0.00"},{"v":0,"d":"0.00"},{"v":0,"d":"0.00"},{"v":0,"d":"0.00"},{"v":0,"d":"0.00"},{"v":0,"d":"0.00"},{"v":0,"d":"0.00"},{"v":0,"d":"0.00"}]
[{"$nulls":4},"9.14","Количество аварий (с учетом котельных)","ед","x","x","x","x","x","x","x","x","x","x","x"]
[{"$nulls":4},"9.14.1","Факт","ед",{"v":0,"d":"0.00"},null,{"v":0,"d":"0.00"},{"v":0,"d":"0.00"},{"v":0,"d":"0.00"},{"v":0,"d":"0.00"},{"v":0,"d":"0.00"},{"v":0,"d":"0.00"},{"v":0,"d":"0.00"},{"v":0,"d":"0.00"},{"v":0,"d":"0.00"}]
[{"$nulls":4},"9.14.2","План","ед",{"v":0,"d":"0.00"},{"v":0,"d":"0.00"},{"v":0,"d":"0.00"},{"v":0,"d":"0.00"},{"v":0,"d":"0.00"},{"v":0,"d":"0.00"},{"v":0,"d":"0.00"},{"v":0,"d":"0.00"},{"v":0,"d":"0.00"},{"v":0,"d":"0.00"},{"v":0,"d":"0.00"}]
[{"$nulls":4},"9.15","Количество аварий на 1 км тепловых сетей","ед","x","x","x","x","x","x","x","x","x","x","x"]
[{"$nulls":4},"9.15.1","Факт","ед",{"v":0,"d":"0.00"},null,{"v":0,"d":"0.00"},{"v":0,"d":"0.00"},{"v":0,"d":"0.00"},{"v":0,"d":"0.00"},{"v":0,"d":"0.00"},{"v":0,"d":"0.00"},{"v":0,"d":"0.00"},{"v":0,"d":"0.00"},{"v":0,"d":"0.00"}]
[{"$nulls":4},"9.15.2","План","ед",{"v":0,"d":"0.00"},{"v":0,"d":"0.00"},{"v":0,"d":"0.00"},{"v":0,"d":"0.00"},{"v":0,"d":"0.00"},{"v":0,"d":"0.00"},{"v":0,"d":"0.00"},{"v":0,"d":"0.00"},{"v":0,"d":"0.00"},{"v":0,"d":"0.00"},{"v":0,"d":"0.00"}]
[{"$nulls":4},"9.16","Производительность труда на 1 человека","тыс руб/чел","x","x","x","x","x","x","x","x","x","x","x"]
[{"$nulls":4},"9.16.1","Факт","тыс руб/чел",{"v":0,"d":"0.00"},null,{"v":0,"d":"0.00"},{"v":0,"d":"0.00"},{"v":0,"d":"0.00"},{"v":0,"d":"0.00"},{"v":0,"d":"0.00"},{"v":0,"d":"0.00"},{"v":0,"d":"0.00"},{"v":0,"d":"0.00"},{"v":0,"d":"0.00"}]
[{"$nulls":4},"9.16.2","План","тыс руб/чел",{"v":0,"d":"0.00"},{"v":0,"d":"0.00"},{"v":0,"d":"0.00"},{"v":0,"d":"0.00"},{"v":0,"d":"0.00"},{"v":0,"d":"0.00"},{"v":0,"d":"0.00"},{"v":0,"d":"0.00"},{"v":0,"d":"0.00"},{"v":0,"d":"0.00"},{"v":0,"d":"0.00"}]
["9.16",{"$nulls":3},{"$f":"A89","v":"9.16"},null,null,"x","x","x","x","x","x","x","x","x","x","x"]
[{"$nulls":4},{"$f":"A89&\".1\"","v":"9.16.1"},"Факт",{"$f":"IF(G89=\"\",\"x\",G89)","v":"x"}]
[{"$nulls":4},{"$f":"A89&\".2\"","v":"9.16.2"},"План",{"$f":"IF(G89=\"\",\"x\",G89)","v":"x"}]
["9.17",null,null,"О",{"$f":"A92","v":"9.17"},"Удельный расход условного топлива на выработку единицы тепловой энергии и (или) теплоносителя","кг.у.т./Гкал","x","x","x","x","x","x","x","x","x","x","x"]
[{"$nulls":4},{"$f":"A92&\".1\"","v":"9.17.1"},"Факт",{"$f":"IF(G92=\"\",\"x\",G92)","v":"кг.у.т./Гкал"},169.35,null,{"v":0,"d":"0.00"},{"v":0,"d":"0.00"},{"v":0,"d":"0.00"},{"v":0,"d":"0.00"},{"v":0,"d":"0.00"},{"v":0,"d":"0.00"},{"v":0,"d":"0.00"},{"v":0,"d":"0.00"},{"v":0,"d":"0.00"}]
[{"$nulls":4},{"$f":"A92&\".2\"","v":"9.17.2"},"План",{"$f":"IF(G92=\"\",\"x\",G92)","v":"кг.у.т./Гкал"},170.99,null,{"v":0,"d":"0.00"},{"v":0,"d":"0.00"},{"v":0,"d":"0.00"},{"v":0,"d":"0.00"},{"v":0,"d":"0.00"},{"v":0,"d":"0.00"},{"v":0,"d":"0.00"},{"v":0,"d":"0.00"},{"v":0,"d":"0.00"}]
["9.18",null,null,"О",{"$f":"A95","v":"9.18"},"Удельный расход электрической энергии на транспортировку теплоносителя","кВт·ч/м3","x","x","x","x","x","x","x","x","x","x","x"]
[{"$nulls":4},{"$f":"A95&\".1\"","v":"9.18.1"},"Факт",{"$f":"IF(G95=\"\",\"x\",G95)","v":"кВт·ч/м3"},0.32,null,{"v":0,"d":"0.00"},{"v":0,"d":"0.00"},{"v":0,"d":"0.00"},{"v":0,"d":"0.00"},{"v":0,"d":"0.00"},{"v":0,"d":"0.00"},{"v":0,"d":"0.00"},{"v":0,"d":"0.00"},{"v":0,"d":"0.00"}]
[{"$nulls":4},{"$f":"A95&\".2\"","v":"9.18.2"},"План",{"$f":"IF(G95=\"\",\"x\",G95)","v":"кВт·ч/м3"},{"v":0.361,"d":"0.36"},null,{"v":0,"d":"0.00"},{"v":0,"d":"0.00"},{"v":0,"d":"0.00"},{"v":0,"d":"0.00"},{"v":0,"d":"0.00"},{"v":0,"d":"0.00"},{"v":0,"d":"0.00"},{"v":0,"d":"0.00"},{"v":0,"d":"0.00"}]
["9.19",null,null,"О",{"$f":"A98","v":"9.19"},"Износ объектов системы теплоснабжения с выделением процента износа объектов, существующих на начало реализации Инвестиционной программы","%","x","x","x","x","x","x","x","x","x","x","x"]
[{"$nulls":4},{"$f":"A98&\".1\"","v":"9.19.1"},"Факт",{"$f":"IF(G98=\"\",\"x\",G98)","v":"%"},{"v":82.3,"d":"82.30"},null,{"v":0,"d":"0.00"},{"v":0,"d":"0.00"},{"v":0,"d":"0.00"},{"v":0,"d":"0.00"},{"v":0,"d":"0.00"},{"v":0,"d":"0.00"},{"v":0,"d":"0.00"},{"v":0,"d":"0.00"},{"v":0,"d":"0.00"}]
[{"$nulls":4},{"$f":"A98&\".2\"","v":"9.19.2"},"План",{"$f":"IF(G98=\"\",\"x\",G98)","v":"%"},{"v":82.3,"d":"82.30"},null,{"v":0,"d":"0.00"},{"v":0,"d":"0.00"},{"v":0,"d":"0.00"},{"v":0,"d":"0.00"},{"v":0,"d":"0.00"},{"v":0,"d":"0.00"},{"v":0,"d":"0.00"},{"v":0,"d":"0.00"},{"v":0,"d":"0.00"}]
["9.20",null,null,"О",{"$f":"A101","v":"9.20"},"Потери тепловой энергии при передаче тепловой энергии по тепловым сетям","Гкал в год","x","x","x","x","x","x","x","x","x","x","x"]
[{"$nulls":4},{"$f":"A101&\".1\"","v":"9.20.1"},"Факт",{"$f":"IF(G101=\"\",\"x\",G101)","v":"Гкал в год"},{"v":25988,"d":"25,988.00"},null,{"v":0,"d":"0.00"},{"v":0,"d":"0.00"},{"v":0,"d":"0.00"},{"v":0,"d":"0.00"},{"v":0,"d":"0.00"},{"v":0,"d":"0.00"},{"v":0,"d":"0.00"},{"v":0,"d":"0.00"},{"v":0,"d":"0.00"}]
[{"$nulls":4},{"$f":"A101&\".2\"","v":"9.20.2"},"План",{"$f":"IF(G101=\"\",\"x\",G101)","v":"Гкал в год"},{"v":28000,"d":"28,000.00"},null,{"v":0,"d":"0.00"},{"v":0,"d":"0.00"},{"v":0,"d":"0.00"},{"v":0,"d":"0.00"},{"v":0,"d":"0.00"},{"v":0,"d":"0.00"},{"v":0,"d":"0.00"},{"v":0,"d":"0.00"},{"v":0,"d":"0.00"}]
["9.21",null,null,"О",{"$f":"A104","v":"9.21"},"Потери тепловой энергии при передаче тепловой энергии по тепловым сетям","% от полезного отпуска тепловой энергии","x","x","x","x","x","x","x","x","x","x","x"]
[{"$nulls":4},{"$f":"A104&\".1\"","v":"9.21.1"},"Факт",{"$f":"IF(G104=\"\",\"x\",G104)","v":"% от полезного отпуска тепловой энергии"},27.49,null,{"v":0,"d":"0.00"},{"v":0,"d":"0.00"},{"v":0,"d":"0.00"},{"v":0,"d":"0.00"},{"v":0,"d":"0.00"},{"v":0,"d":"0.00"},{"v":0,"d":"0.00"},{"v":0,"d":"0.00"},{"v":0,"d":"0.00"}]
[{"$nulls":4},{"$f":"A104&\".2\"","v":"9.21.2"},"План",{"$f":"IF(G104=\"\",\"x\",G104)","v":"% от полезного отпуска тепловой энергии"},{"v":22.6,"d":"22.60"},null,{"v":0,"d":"0.00"},{"v":0,"d":"0.00"},{"v":0,"d":"0.00"},{"v":0,"d":"0.00"},{"v":0,"d":"0.00"},{"v":0,"d":"0.00"},{"v":0,"d":"0.00"},{"v":0,"d":"0.00"},{"v":0,"d":"0.00"}]
["9.22",null,null,"О",{"$f":"A107","v":"9.22"},"Потери теплоносителя при передаче тепловой энергии по тепловым сетям","тонн в год для воды","x","x","x","x","x","x","x","x","x","x","x"]
[{"$nulls":4},{"$f":"A107&\".1\"","v":"9.22.1"},"Факт",{"$f":"IF(G107=\"\",\"x\",G107)","v":"тонн в год для воды"},{"v":216993,"d":"216,993.00"},null,{"v":0,"d":"0.00"},{"v":0,"d":"0.00"},{"v":0,"d":"0.00"},{"v":0,"d":"0.00"},{"v":0,"d":"0.00"},{"v":0,"d":"0.00"},{"v":0,"d":"0.00"},{"v":0,"d":"0.00"},{"v":0,"d":"0.00"}]
[{"$nulls":4},{"$f":"A107&\".2\"","v":"9.22.2"},"План",{"$f":"IF(G107=\"\",\"x\",G107)","v":"тонн в год для воды"},{"v":305000,"d":"305,000.00"},null,{"v":0,"d":"0.00"},{"v":0,"d":"0.00"},{"v":0,"d":"0.00"},{"v":0,"d":"0.00"},{"v":0,"d":"0.00"},{"v":0,"d":"0.00"},{"v":0,"d":"0.00"},{"v":0,"d":"0.00"},{"v":0,"d":"0.00"}]
[{"$nulls":5},"Добавить показатель"]
[{"$nulls":4},"10","Использование инвестиционных средств за отчетный год","тыс руб","x","x","x","x","x","x","x","x","x","x","x"]
["10.0",{"$nulls":3},{"$f":"A112","v":"10.0"},"Всего, в том числе по источникам финансирования:","тыс руб",{"$f":"SUM(I112:S112)","v":{"v":18669.543406599998,"d":"18,669.54"}},{"$f":"SUM(I113:I116)","v":{"v":0,"d":"0.00"}},{"v":502.21700000000004,"d":"502.22"},{"v":7328.6116999999995,"d":"7,328.61"},{"v":3864.70554,"d":"3,864.71"},{"v":5895.540606799999,"d":"5,895.54"},{"v":258.19618,"d":"258.20"},{"v":820.2723798,"d":"820.27"},{"$f":"SUM(P113:P116)","v":{"v":0,"d":"0.00"}},{"v":0,"d":"0.00"},{"v":0,"d":"0.00"}]
[{"$nulls":4},{"$f":"A112&\".1\"","v":"10.0.1"},"I квартал","тыс руб",{"$f":"SUM(I113:S113)","v":{"v":0,"d":"0.00"}},{"$f":"SUMIF($F$117:$F$147,$F113,I$117:I$147)","v":{"v":0,"d":"0.00"}},{"v":0,"d":"0.00"},{"v":0,"d":"0.00"},{"v":0,"d":"0.00"},{"v":0,"d":"0.00"},{"v":0,"d":"0.00"},{"v":0,"d":"0.00"},{"v":0,"d":"0.00"},{"v":0,"d":"0.00"},{"v":0,"d":"0.00"}]
[{"$nulls":4},{"$f":"A112&\".2\"","v":"10.0.2"},"II квартал","тыс руб",{"$f":"SUM(I114:S114)","v":{"v":0,"d":"0.00"}},{"v":0,"d":"0.00"},{"v":0,"d":"0.00"},{"v":0,"d":"0.00"},{"v":0,"d":"0.00"},{"v":0,"d":"0.00"},{"v":0,"d":"0.00"},{"v":0,"d":"0.00"},{"v":0,"d":"0.00"},{"v":0,"d":"0.00"},{"v":0,"d":"0.00"}]
[{"$nulls":4},{"$f":"A112&\".3\"","v":"10.0.3"},"III квартал","тыс руб",{"$f":"SUM(I115:S115)","v":{"v":0,"d":"0.00"}},{"v":0,"d":"0.00"},{"v":0,"d":"0.00"},{"v":0,"d":"0.00"},{"v":0,"d":"0.00"},{"v":0,"d":"0.00"},{"v":0,"d":"0.00"},{"v":0,"d":"0.00"},{"v":0,"d":"0.00"},{"v":0,"d":"0.00"},{"v":0,"d":"0.00"}]
[{"$nulls":4},{"$f":"A112&\".4\"","v":"10.0.4"},"IV квартал","тыс руб",{"$f":"SUM(I116:S116)","v":{"v":18669.543406599998,"d":"18,669.54"}},{"v":0,"d":"0.00"},{"v":502.21700000000004,"d":"502.22"},{"v":7328.6116999999995,"d":"7,328.61"},{"v":3864.70554,"d":"3,864.71"},{"v":5895.540606799999,"d":"5,895.54"},{"v":258.19618,"d":"258.20"},{"v":820.2723798,"d":"820.27"},{"v":0,"d":"0.00"},{"v":0,"d":"0.00"},{"v":0,"d":"0.00"}]
["10.0",{"$nulls":3},{"$f":"A117","v":"10.0"},null,"тыс руб",{"$f":"SUM(H118:H121)","v":{"v":0,"d":"0.00"}},{"v":0,"d":"0.00"},{"v":0,"d":"0.00"},{"v":0,"d":"0.00"},{"v":0,"d":"0.00"},{"v":0,"d":"0.00"},{"v":0,"d":"0.00"},{"v":0,"d":"0.00"},{"$f":"SUM(P118:P121)","v":{"v":0,"d":"0.00"}},{"v":0,"d":"0.00"},{"v":0,"d":"0.00"}]
[{"$nulls":4},{"$f":"A117&\".1\"","v":"10.0.1"},"I квартал","тыс руб",{"$f":"SUM(I118:S118)","v":{"v":0,"d":"0.00"}}]
[{"$nulls":4},{"$f":"A117&\".2\"","v":"10.0.2"},"II квартал","тыс руб",{"$f":"SUM(I119:S119)","v":{"v":0,"d":"0.00"}}]
[{"$nulls":4},{"$f":"A117&\".3\"","v":"10.0.3"},"III квартал","тыс руб",{"$f":"SUM(I120:S120)","v":{"v":0,"d":"0.00"}}]
[{"$nulls":4},{"$f":"A117&\".4\"","v":"10.0.4"},"IV квартал","тыс руб",{"$f":"SUM(I121:S121)","v":{"v":0,"d":"0.00"}}]
["10.1",null,null,"О",{"$f":"A122","v":"10.1"},"амортизация","тыс руб",{"$f":"SUM(H123:H126)","v":{"v":18669.543406599998,"d":"18,669.54"}},{"v":0,"d":"0.00"},{"v":502.21700000000004,"d":"502.22"},{"v":7328.6116999999995,"d":"7,328.61"},{"v":3864.70554,"d":"3,864.71"},{"v":5895.540606799999,"d":"5,895.54"},{"v":258.19618,"d":"258.20"},{"v":820.2723798,"d":"820.27"},{"$f":"SUM(P123:P126)","v":{"v":0,"d":"0.00"}},{"v":0,"d":"0.00"},{"v":0,"d":"0.00"}]
[{"$nulls":4},{"$f":"A122&\".1\"","v":"10.1.1"},"I квартал","тыс руб",{"$f":"SUM(I123:S123)","v":{"v":0,"d":"0.00"}},null,{"v":0,"d":"0.00"},{"v":0,"d":"0.00"},{"v":0,"d":"0.00"},{"v":0,"d":"0.00"},{"v":0,"d":"0.00"},{"v":0,"d":"0.00"},{"v":0,"d":"0.00"},{"v":0,"d":"0.00"},{"v":0,"d":"0.00"}]
[{"$nulls":4},{"$f":"A122&\".2\"","v":"10.1.2"},"II квартал","тыс руб",{"$f":"SUM(I124:S124)","v":{"v":0,"d":"0.00"}},null,{"v":0,"d":"0.00"},{"v":0,"d":"0.00"},{"v":0,"d":"0.00"},{"v":0,"d":"0.00"},{"v":0,"d":"0.00"},{"v":0,"d":"0.00"},{"v":0,"d":"0.00"},{"v":0,"d":"0.00"},{"v":0,"d":"0.00"}]
[{"$nulls":4},{"$f":"A122&\".3\"","v":"10.1.3"},"III квартал","тыс руб",{"$f":"SUM(I125:S125)","v":{"v":0,"d":"0.00"}},null,{"v":0,"d":"0.00"},{"v":0,"d":"0.00"},{"v":0,"d":"0.00"},{"v":0,"d":"0.00"},{"v":0,"d":"0.00"},{"v":0,"d":"0.00"},{"v":0,"d":"0.00"},{"v":0,"d":"0.00"},{"v":0,"d":"0.00"}]
[{"$nulls":4},{"$f":"A122&\".4\"","v":"10.1.4"},"IV квартал","тыс руб",{"$f":"SUM(I126:S126)","v":{"v":18669.543406599998,"d":"18,669.54"}},null,{"v":502.21700000000004,"d":"502.22"},{"v":7328.6116999999995,"d":"7,328.61"},{"v":3864.70554,"d":"3,864.71"},{"v":5895.540606799999,"d":"5,895.54"},{"v":258.19618,"d":"258.20"},{"v":820.2723798,"d":"820.27"},{"v":0,"d":"0.00"},{"v":0,"d":"0.00"},{"v":0,"d":"0.00"}]
["10.2",null,null,"О",{"$f":"A127","v":"10.2"},"прибыль, направляемая на инвестиции","тыс руб",{"$f":"SUM(H128:H131)","v":{"v":0,"d":"0.00"}},{"v":0,"d":"0.00"},{"v":0,"d":"0.00"},{"v":0,"d":"0.00"},{"v":0,"d":"0.00"},{"v":0,"d":"0.00"},{"v":0,"d":"0.00"},{"v":0,"d":"0.00"},{"$f":"SUM(P128:P131)","v":{"v":0,"d":"0.00"}},{"v":0,"d":"0.00"},{"v":0,"d":"0.00"}]
[{"$nulls":4},{"$f":"A127&\".1\"","v":"10.2.1"},"I квартал","тыс руб",{"$f":"SUM(I128:S128)","v":{"v":0,"d":"0.00"}},null,{"v":0,"d":"0.00"},{"v":0,"d":"0.00"},{"v":0,"d":"0.00"},{"v":0,"d":"0.00"},{"v":0,"d":"0.00"},{"v":0,"d":"0.00"},{"v":0,"d":"0.00"},{"v":0,"d":"0.00"},{"v":0,"d":"0.00"}]
[{"$nulls":4},{"$f":"A127&\".2\"","v":"10.2.2"},"II квартал","тыс руб",{"$f":"SUM(I129:S129)","v":{"v":0,"d":"0.00"}},null,{"v":0,"d":"0.00"},{"v":0,"d":"0.00"},{"v":0,"d":"0.00"},{"v":0,"d":"0.00"},{"v":0,"d":"0.00"},{"v":0,"d":"0.00"},{"v":0,"d":"0.00"},{"v":0,"d":"0.00"},{"v":0,"d":"0.00"}]
[{"$nulls":4},{"$f":"A127&\".3\"","v":"10.2.3"},"III квартал","тыс руб",{"$f":"SUM(I130:S130)","v":{"v":0,"d":"0.00"}},null,{"v":0,"d":"0.00"},{"v":0,"d":"0.00"},{"v":0,"d":"0.00"},{"v":0,"d":"0.00"},{"v":0,"d":"0.00"},{"v":0,"d":"0.00"},{"v":0,"d":"0.00"},{"v":0,"d":"0.00"},{"v":0,"d":"0.00"}]
[{"$nulls":4},{"$f":"A127&\".4\"","v":"10.2.4"},"IV квартал","тыс руб",{"$f":"SUM(I131:S131)","v":{"v":0,"d":"0.00"}},null,{"v":0,"d":"0.00"},{"v":0,"d":"0.00"},{"v":0,"d":"0.00"},{"v":0,"d":"0.00"},{"v":0,"d":"0.00"},{"v":0,"d":"0.00"},{"v":0,"d":"0.00"},{"v":0,"d":"0.00"},{"v":0,"d":"0.00"}]
["10.3",null,null,"О",{"$f":"A132","v":"10.3"},"плата за подключение","тыс руб",{"$f":"SUM(H133:H136)","v":{"v":0,"d":"0.00"}},{"v":0,"d":"0.00"},{"v":0,"d":"0.00"},{"v":0,"d":"0.00"},{"v":0,"d":"0.00"},{"v":0,"d":"0.00"},{"v":0,"d":"0.00"},{"v":0,"d":"0.00"},{"$f":"SUM(P133:P136)","v":{"v":0,"d":"0.00"}},{"v":0,"d":"0.00"},{"v":0,"d":"0.00"}]
[{"$nulls":4},{"$f":"A132&\".1\"","v":"10.3.1"},"I квартал","тыс руб",{"$f":"SUM(I133:S133)","v":{"v":0,"d":"0.00"}},null,{"v":0,"d":"0.00"},{"v":0,"d":"0.00"},{"v":0,"d":"0.00"},{"v":0,"d":"0.00"},{"v":0,"d":"0.00"},{"v":0,"d":"0.00"},{"v":0,"d":"0.00"},{"v":0,"d":"0.00"},{"v":0,"d":"0.00"}]
[{"$nulls":4},{"$f":"A132&\".2\"","v":"10.3.2"},"II квартал","тыс руб",{"$f":"SUM(I134:S134)","v":{"v":0,"d":"0.00"}},null,{"v":0,"d":"0.00"},{"v":0,"d":"0.00"},{"v":0,"d":"0.00"},{"v":0,"d":"0.00"},{"v":0,"d":"0.00"},{"v":0,"d":"0.00"},{"v":0,"d":"0.00"},{"v":0,"d":"0.00"},{"v":0,"d":"0.00"}]
[{"$nulls":4},{"$f":"A132&\".3\"","v":"10.3.3"},"III квартал","тыс руб",{"$f":"SUM(I135:S135)","v":{"v":0,"d":"0.00"}},null,{"v":0,"d":"0.00"},{"v":0,"d":"0.00"},{"v":0,"d":"0.00"},{"v":0,"d":"0.00"},{"v":0,"d":"0.00"},{"v":0,"d":"0.00"},{"v":0,"d":"0.00"},{"v":0,"d":"0.00"},{"v":0,"d":"0.00"}]
[{"$nulls":4},{"$f":"A132&\".4\"","v":"10.3.4"},"IV квартал","тыс руб",{"$f":"SUM(I136:S136)","v":{"v":0,"d":"0.00"}},null,{"v":0,"d":"0.00"},{"v":0,"d":"0.00"},{"v":0,"d":"0.00"},{"v":0,"d":"0.00"},{"v":0,"d":"0.00"},{"v":0,"d":"0.00"},{"v":0,"d":"0.00"},{"v":0,"d":"0.00"},{"v":0,"d":"0.00"}]
["10.4",null,null,"О",{"$f":"A137","v":"10.4"},"прочие средства","тыс руб",{"$f":"SUM(H138:H141)","v":{"v":0,"d":"0.00"}},{"v":0,"d":"0.00"},{"v":0,"d":"0.00"},{"v":0,"d":"0.00"},{"v":0,"d":"0.00"},{"v":0,"d":"0.00"},{"v":0,"d":"0.00"},{"v":0,"d":"0.00"},{"$f":"SUM(P138:P141)","v":{"v":0,"d":"0.00"}},{"v":0,"d":"0.00"},{"v":0,"d":"0.00"}]
[{"$nulls":4},{"$f":"A137&\".1\"","v":"10.4.1"},"I квартал","тыс руб",{"$f":"SUM(I138:S138)","v":{"v":0,"d":"0.00"}},null,{"v":0,"d":"0.00"},{"v":0,"d":"0.00"},{"v":0,"d":"0.00"},{"v":0,"d":"0.00"},{"v":0,"d":"0.00"},{"v":0,"d":"0.00"},{"v":0,"d":"0.00"},{"v":0,"d":"0.00"},{"v":0,"d":"0.00"}]
[{"$nulls":4},{"$f":"A137&\".2\"","v":"10.4.2"},"II квартал","тыс руб",{"$f":"SUM(I139:S139)","v":{"v":0,"d":"0.00"}},null,{"v":0,"d":"0.00"},{"v":0,"d":"0.00"},{"v":0,"d":"0.00"},{"v":0,"d":"0.00"},{"v":0,"d":"0.00"},{"v":0,"d":"0.00"},{"v":0,"d":"0.00"},{"v":0,"d":"0.00"},{"v":0,"d":"0.00"}]
[{"$nulls":4},{"$f":"A137&\".3\"","v":"10.4.3"},"III квартал","тыс руб",{"$f":"SUM(I140:S140)","v":{"v":0,"d":"0.00"}},null,{"v":0,"d":"0.00"},{"v":0,"d":"0.00"},{"v":0,"d":"0.00"},{"v":0,"d":"0.00"},{"v":0,"d":"0.00"},{"v":0,"d":"0.00"},{"v":0,"d":"0.00"},{"v":0,"d":"0.00"},{"v":0,"d":"0.00"}]
[{"$nulls":4},{"$f":"A137&\".4\"","v":"10.4.4"},"IV квартал","тыс руб",{"$f":"SUM(I141:S141)","v":{"v":0,"d":"0.00"}},null,{"v":0,"d":"0.00"},{"v":0,"d":"0.00"},{"v":0,"d":"0.00"},{"v":0,"d":"0.00"},{"v":0,"d":"0.00"},{"v":0,"d":"0.00"},{"v":0,"d":"0.00"},{"v":0,"d":"0.00"},{"v":0,"d":"0.00"}]
["10.5",null,null,"О",{"$f":"A142","v":"10.5"},"кредиты банков","тыс руб",{"$f":"SUM(H143:H146)","v":{"v":0,"d":"0.00"}},{"v":0,"d":"0.00"},{"v":0,"d":"0.00"},{"v":0,"d":"0.00"},{"v":0,"d":"0.00"},{"v":0,"d":"0.00"},{"v":0,"d":"0.00"},{"v":0,"d":"0.00"},{"$f":"SUM(P143:P146)","v":{"v":0,"d":"0.00"}},{"v":0,"d":"0.00"},{"v":0,"d":"0.00"}]
[{"$nulls":4},{"$f":"A142&\".1\"","v":"10.5.1"},"I квартал","тыс руб",{"$f":"SUM(I143:S143)","v":{"v":0,"d":"0.00"}},null,{"v":0,"d":"0.00"},{"v":0,"d":"0.00"},{"v":0,"d":"0.00"},{"v":0,"d":"0.00"},{"v":0,"d":"0.00"},{"v":0,"d":"0.00"},{"v":0,"d":"0.00"},{"v":0,"d":"0.00"},{"v":0,"d":"0.00"}]
[{"$nulls":4},{"$f":"A142&\".2\"","v":"10.5.2"},"II квартал","тыс руб",{"$f":"SUM(I144:S144)","v":{"v":0,"d":"0.00"}},null,{"v":0,"d":"0.00"},{"v":0,"d":"0.00"},{"v":0,"d":"0.00"},{"v":0,"d":"0.00"},{"v":0,"d":"0.00"},{"v":0,"d":"0.00"},{"v":0,"d":"0.00"},{"v":0,"d":"0.00"},{"v":0,"d":"0.00"}]
[{"$nulls":4},{"$f":"A142&\".3\"","v":"10.5.3"},"III квартал","тыс руб",{"$f":"SUM(I145:S145)","v":{"v":0,"d":"0.00"}},null,{"v":0,"d":"0.00"},{"v":0,"d":"0.00"},{"v":0,"d":"0.00"},{"v":0,"d":"0.00"},{"v":0,"d":"0.00"},{"v":0,"d":"0.00"},{"v":0,"d":"0.00"},{"v":0,"d":"0.00"},{"v":0,"d":"0.00"}]
[{"$nulls":4},{"$f":"A142&\".4\"","v":"10.5.4"},"IV квартал","тыс руб",{"$f":"SUM(I146:S146)","v":{"v":0,"d":"0.00"}},null,{"v":0,"d":"0.00"},{"v":0,"d":"0.00"},{"v":0,"d":"0.00"},{"v":0,"d":"0.00"},{"v":0,"d":"0.00"},{"v":0,"d":"0.00"},{"v":0,"d":"0.00"},{"v":0,"d":"0.00"},{"v":0,"d":"0.00"}]
[{"$nulls":5},"Добавить источники"]
[]
[{"$nulls":4},"*","Раскрывается не позднее 30 дней со дня сдачи годового бухгалтерского баланса в налоговые органы."]

{"sheet":"Инвестиции исправления","index":9,"n_rows":14,"n_cols":6,"rows_kept":14,"merged":[[4,3,4,5],[5,3,5,5],[13,4,13,5]]}
[]
[]
[]
[]
[{"$nulls":3},"Внесение изменений в инвестиционную программу *"]
[{"$nulls":3},{"$f":"IF(org=0,\"Не определено\",org)","v":"ПАО \"ТГК-14\""}]
[]
[{"$nulls":3},"№ п/п","Дата внесения изменений","Внесенные изменения"]
[{"$nulls":3},"1","2","3"]
[{"$nulls":3},"0"]
[null,null,"О","1","30.11.2016","Изменение перечня мероприятий, объемов освоения и финансированния, размера источников и их соотношения по отношению друг к другу"]
[{"$nulls":4},"Добавить строку"]
[]
[{"$nulls":3},"*","Раскрывается регулируемой организацией в течение 10 календарных дней со дня принятия органом исполнительной власти субъекта Российской Федерации решения о внесении изменений в инвестиционную программу"]

{"sheet":"Ссылки на публикации","index":10,"n_rows":18,"n_cols":11,"rows_kept":18,"hidden":true,"merged":[[4,3,4,10],[5,3,5,10],[10,0,11,0],[10,4,10,10],[12,0,13,0],[12,4,12,10],[15,0,16,0],[15,4,15,10]]}
[]
[]
[]
[]
[{"$nulls":3},"Ссылки на публикации"]
[{"$nulls":3},{"$f":"IF(org=0,\"Не определено\",org)","v":"ПАО \"ТГК-14\""}]
[]
[]
[{"$nulls":3},"№ п/п","Содержание","Наименование источника публикации","Дата размещения информации","Номер печатного издания","Дата печатного издания","Ссылка на PDF копии издания","Адрес страницы официального сайта организации в сети интернет, на которой размещена раскрываемая информация"]
[{"$nulls":3},"1","2","3","4","5","6","7","8"]
["1",null,null,{"$f":"A11","v":"1"},"Информация об основных показателях финансово-хозяйственной деятельности регулируемой организации, включая структуру основных производственных затрат (в части регулируемой деятельности) (п.19 Постановления Правительства Российской Федерации от 05 июля 2013 г. N 570 \"О стандартах раскрытия информации теплоснабжающими, теплосетевыми организациями и органами регулирования\")"]
[{"$nulls":3},{"$f":"A11&\".1\"","v":"1.1"},"Сайт организации в сети Интернет",null,null,"x","x","x"]
["2",null,null,{"$f":"A13","v":"2"},"Информация об основных потребительских характеристиках регулируемых товаров и услуг, оказываемых регулируемой организацией (п.20  Постановления Правительства Российской Федерации от 05 июля 2013 г. N 570 \"О стандартах раскрытия информации теплоснабжающими, теплосетевыми организациями и органами регулирования\")"]
[{"$nulls":3},{"$f":"A13&\".1\"","v":"2.1"},"Сайт организации в сети Интернет",null,null,"x","x","x"]
[{"$nulls":3},{"$f":"A13&\".2\"","v":"2.2"},"Печатное издание",{"$nulls":5},"x"]
["3",null,null,{"$f":"A16","v":"3"},"Информация об инвестиционных программах регулируемой организации (п.21 Постановления Правительства Российской Федерации от 05 июля 2013 г. N 570 \"О стандартах раскрытия информации теплоснабжающими, теплосетевыми организациями и органами регулирования\")"]
[{"$nulls":3},{"$f":"A16&\".1\"","v":"3.1"},"Сайт организации в сети Интернет",null,null,"x","x","x"]
[{"$nulls":4},"Добавить"]

{"sheet":"Комментарии","index":11,"n_rows":14,"n_cols":5,"rows_kept":14,"merged":[[6,3,6,4],[7,3,7,4]]}
[]
[]
[]
[]
[]
[]
[{"$nulls":3},"Комментарии"]
[{"$nulls":3},{"$f":"IF(org=0,\"Не определено\",org)","v":"ПАО \"ТГК-14\""}]
[]
[{"$nulls":3},"№ п/п","Комментарий"]
[{"$nulls":3},"1","2"]
[{"$nulls":3},0]
[null,null,"О",1,"Использование инвестиционных средств за отчетный год в тыс.руб. с НДС согласно ИПР 2016-2018"]
[{"$nulls":4},"Добавить"]

{"sheet":"Проверка","index":12,"n_rows":4,"n_cols":5,"rows_kept":4,"merged":[[1,1,1,4]]}
[]
[null,"Результат проверки"]
[]
[null,"Ссылка1","Ссылка2","Причина","Статус"]

{"sheet":"AllSheetsInThisWorkbook","index":13,"n_rows":30,"n_cols":2,"rows_kept":30,"hidden":true}
["Расчетные листы","Скрытые листы"]
["Инструкция","AllSheetsInThisWorkbook"]
["Лог обновления","TEHSHEET"]
["Титульный","et_union_hor"]
["Список МО","et_union_vert"]
["Показатели (факт)","modInfo"]
["Показатели (2)","modRegion"]
["Потр. характеристики","modReestr"]
["Инвестиции","modfrmSelectData"]
["Инвестиции исправления","modfrmReestr"]
["Ссылки на публикации","modUpdTemplMain"]
["Комментарии","REESTR_ORG"]
["Проверка","modClassifierValidate"]
[null,"modProv"]
[null,"modHyp"]
[null,"modList00"]
[null,"modList01"]
[null,"modList02"]
[null,"modList03"]
[null,"modList04"]
[null,"modList05"]
[null,"modList06"]
[null,"modList07"]
[null,"modfrmDateChoose"]
[null,"modComm"]
[null,"modThisWorkbook"]
[null,"REESTR_MO"]
[null,"modfrmReestrMR"]
[null,"modfrmCheckUpdates"]
[null,"CopyList"]

{"sheet":"TEHSHEET","index":14,"n_rows":85,"n_cols":20,"rows_kept":85,"hidden":true,"merged":[[0,12,0,13],[0,16,0,17]]}
["REGION","Список с видами деятельности",null,"year_list","logical","Месяц\n(MONTH)","Квартал\n(QUARTER)","Месяц\n(kind_of_publication)","Режим налогообложения\n/kind_of_NDS/","Вид деятельности, на которую установлен тариф /kind_of_activity/","Вид услуги, на которую установлен тариф /kind_of_service_WARM/","Номер СЦХВ(СЦВО)\n/SKI_number/","Виды топлива\n/kind_of_fuels/",null,"цель инвестиционной программы /kind_of_purchase_method/","Источники финансирования\n/source_of_funding/","цель инвестиционной программы /objective_of_IPR/",null,null,"Рабочие диапазоны"]
["Алтайский край","kind_of_activity_01",null,2013,"да","январь","I квартал","На официальном сайте организации","общий","kind_of_activity_01","Производство","1","газ природный по регулируемой цене","тыс м3","торги/аукционы","кредиты банков","автоматизация (с уменьшением штата)",false,null,true]
["Амурская область",null,null,2014,"нет","февраль","II квартал","На сайте регулирующего органа","общий с учетом освобождения от уплаты НДС","Комбинированная выработка","Передача","2","газ природный по нерегулируемой цене","тыс м3","прямые договора без торгов","кредиты иностранных банков","уменьшение удельных затрат (повышение КПД)",false]
["Архангельская область",null,null,2015,null,"март","III квартал",null,"специальный (упрощенная система налогообложения, система налогообложения для сельскохозяйственных товаропроизводителей)","Некомбинированная выработка","Сбыт","3","газ сжиженный","кг","прочее","заемные ср-ва др. организаций","уменьшение издержек на производство",false]
["Астраханская область",null,null,2016,"logical_two","апрель","IV квартал",null,null,"Нет производства т/э",null,"4","газовый конденсат","тонны",null,"федеральный бюджет","снижение аварийности",false]
["Белгородская область",null,null,2017,"есть","май",null,null,"НДС для общего режима налогообложения\n/kind_of_NDS_tariff/","Смешанное производство",null,"5","гшз","тонны",null,"бюджет субъекта РФ","прочее",true]
["Брянская область",{"$nulls":3},"отсутствует","июнь",null,null,"тариф указан с НДС для плательщиков НДС",null,null,"6","мазут","тонны",null,"бюджет муниципального образования"]
["Владимирская область",{"$nulls":4},"июль",null,null,"тариф указан без НДС для плательщиков НДС","kind_of_activity_02",null,"7","нефть","тонны",null,"ср-ва внебюджетных фондов"]
["Волгоградская область",{"$nulls":4},"август",{"$nulls":3},"Комбинированная выработка",null,"8","дизельное топливо","тонны",null,"прибыль, направляемая на инвестиции"]
["Вологодская область",{"$nulls":4},"сентябрь",null,null,"НДС для прочих режимов налогообложения\n/kind_of_NDS_tariff_etc/","Некомбинированная выработка",null,"9","уголь бурый","тонны",null,"амортизация"]
["Воронежская область",{"$nulls":4},"октябрь",null,null,"тариф для организаций не являющихся плательщиками НДС","Смешанное производство",null,"10","уголь каменный","тонны",null,"инвестиционная надбавка к тарифу"]
["г.Байконур",{"$nulls":4},"ноябрь",{"$nulls":3},"Передача",null,"11","торф","тонны",null,"плата за подключение"]
["г. Москва",{"$nulls":4},"декабрь",{"$nulls":3},"Сбыт",null,"12","дрова","м3",null,"прочие средства"]
["г.Санкт-Петербург",{"$nulls":10},"13","опил","м3"]
["Еврейская автономная область",{"$nulls":8},"kind_of_activity_03",null,"14","отходы березовые","м3"]
["Забайкальский край",{"$nulls":8},"Комбинированная выработка",null,"15","отходы осиновые","м3"]
["Ивановская область",{"$nulls":8},"Некомбинированная выработка",null,"16","печное топливо","тонны"]
["Иркутская область",{"$nulls":8},"Смешанное производство",null,"17","пилеты","тонны"]
["Кабардино-Балкарская республика",{"$nulls":8},"Передача",null,"18","смола","тонны"]
["Калининградская область",{"$nulls":8},"Сбыт",null,"19","щепа","м3"]
["Калужская область",{"$nulls":8},"Производство (некомбинированная выработка)+сбыт",null,"20","горючий сланец","тонны"]
["Камчатский край",{"$nulls":8},"Передача+сбыт",null,null,"керосин","тонны"]
["Карачаево-Черкесская республика",{"$nulls":8},"Производство (комбинированная выработка)+сбыт",null,null,"кислородно-водородная смесь","тыс м3"]
["Кемеровская область",{"$nulls":8},"Производство (некомбинированная выработка)+передача",null,null,"электроэнергия (НН)","тыс кВт.ч"]
["Кировская область",{"$nulls":8},"Производство (комбинированная выработка)+передача",null,null,"электроэнергия (СН1)","тыс кВт.ч"]
["Костромская область",{"$nulls":8},"Производство (комбинированная выработка)+передача+сбыт",null,null,"электроэнергия (СН2)","тыс кВт.ч"]
["Краснодарский край",{"$nulls":8},"Производство (некомбинированная выработка)+передача+сбыт",null,null,"электроэнергия (ВН)","тыс кВт.ч"]
["Красноярский край",{"$nulls":8},"Смешанное производство+сбыт",null,null,"мощность","тыс кВт"]
["Курганская область",{"$nulls":8},"Смешанное производство+передача",null,null,"прочее"]
["Курская область",{"$nulls":8},"Смешанное производство+передача+сбыт"]
["Ленинградская область"]
["Липецкая область"]
["Магаданская область"]
["Московская область"]
["Мурманская область"]
["Ненецкий автономный округ"]
["Нижегородская область"]
["Новгородская область"]
["Новосибирская область"]
["Омская область","kind_of_activity_02"]
["Оренбургская область"]
["Орловская область"]
["Пензенская область"]
["Пермский край"]
["Приморский край"]
["Псковская область"]
["Республика Адыгея"]
["Республика Алтай"]
["Республика Башкортостан"]
["Республика Бурятия"]
["Республика Дагестан"]
["Республика Ингушетия"]
["Республика Калмыкия"]
["Республика Карелия"]
["Республика Коми"]
["Республика Марий Эл"]
["Республика Мордовия"]
["Республика Саха (Якутия)"]
["Республика Северная Осетия-Алания"]
["Республика Татарстан"]
["Республика Тыва"]
["Республика Хакасия"]
["Ростовская область"]
["Рязанская область"]
["Самарская область"]
["Саратовская область"]
["Сахалинская область"]
["Свердловская область"]
["Смоленская область"]
["Ставропольский край"]
["Тамбовская область"]
["Тверская область"]
["Томская область"]
["Тульская область"]
["Тюменская область"]
["Удмуртская республика"]
["Ульяновская область","kind_of_activity_02"]
["Хабаровский край"]
["Ханты-Мансийский автономный округ","kind_of_activity_02"]
["Челябинская область"]
["Чеченская республика"]
["Чувашская республика"]
["Чукотский автономный округ"]
["Ямало-Ненецкий автономный округ"]
["Ярославская область"]

{"sheet":"et_union_hor","index":15,"n_rows":61,"n_cols":16,"rows_kept":61,"hidden":true,"merged":[[3,3,4,3],[3,4,4,4],[15,0,17,0],[15,4,15,10],[23,0,24,0],[23,4,23,10],[33,0,37,0],[54,3,57,3],[54,4,57,4],[55,6,56,6],[55,7,56,7],[55,8,56,8]]}
[]
["et_List01","et_List01_1"]
[]
[{"$nulls":5},1]
[{"$nulls":6},"Добавить МО"]
[]
[]
["et_Comm"]
[]
[]
[]
[]
["et_List03"]
[]
[]
["4",null,null,{"$f":"A16","v":"4"}]
[{"$nulls":3},{"$f":"A16&\".1\"","v":"4.1"},"Сайт организации в сети Интернет",null,null,"x","x","x"]
[{"$nulls":3},{"$f":"A16&\".2\"","v":"4.2"},"Печатное издание",null,"",{"$nulls":3},"x"]
[]
[]
[]
["edit_List03_ipr_pub"]
[]
["3",null,null,{"$f":"A24","v":"3"},"Информация об инвестиционных программах регулируемой организации (п.21 Постановления Правительства Российской Федерации от 05 июля 2013 г. N 570 \"О стандартах раскрытия информации теплоснабжающими, теплосетевыми организациями и органами регулирования\")"]
[{"$nulls":3},{"$f":"A24&\".1\"","v":"3.1"},"Сайт организации в сети Интернет",null,null,"x","x","x"]
[]
[]
["et_List02_1"]
[]
[{"$nulls":5},"тыс руб"]
[]
["et_List02_2"]
[]
[{"$nulls":3},{"$f":"A34","v":0},null,"x",{"$f":"G35*G36+G37","v":{"v":0,"d":"0.00"}},"p"]
[{"$nulls":3},{"$f":"A34&\".1\"","v":".1"},"Объем"]
[{"$nulls":3},{"$f":"A34&\".2\"","v":".2"},"Стоимость за единицу объема","тыс руб"]
[{"$nulls":3},{"$f":"A34&\".3\"","v":".3"},"Стоимость доставки","тыс руб"]
[{"$nulls":3},{"$f":"A34&\".4\"","v":".4"},"Способ приобретения","x"]
[]
["et_List02_3"]
[]
[{"$nulls":5},"Гкал/ч"]
[]
["et_List02_4"]
[]
[{"$nulls":5},"кг усл. топл/Гкал"]
[]
["et_List02_5"]
[]
[{"$nulls":5},"тыс руб"]
[]
[]
["et_List04_1","et_List04_2","et_List04_3"]
[]
[{"$nulls":3},"1",{"$nulls":3},"Итого по поставщику",{"$nulls":6},{"$f":"SUM(O56:O58)","v":{"v":0,"d":"0.00"}},{"$f":"nerr(O55/List02_costs_OPS)*100","v":{"v":0,"d":"0.00"}}]
[{"$nulls":6},"1",{"$nulls":3},"1"]
[{"$nulls":11},"Добавить товар/услугу"]
[{"$nulls":7},"Добавить способ"]
[]
[]
["et_List07_1"]

{"sheet":"et_union_vert","index":16,"n_rows":0,"n_cols":0,"rows_kept":0,"hidden":true}

{"sheet":"modInfo","index":17,"n_rows":17,"n_cols":2,"rows_kept":17,"hidden":true}
[null,"Титульный"]
[null,"Для выбора того или иного источника публикации выполните двойной щелчок по синей ячейке напротив соответствующего источника.\nВНИМАНИЕ! Если Вы снимаете галочку с пункта, то будут скрыты и очищены соответствующие строки на листе \"Ссылки на публикации\"!\n\nОпубликование перечисленных в шаблоне показателей на сайте организации в сети Интернет и в печатных изданиях не обязательно, если данный шаблон предоставлен по системе ЕИАС (региональный сегмент)."]
[null,"Обязательное опубликование на официальном сайте органа исполнительной власти субъекта Российской Федерации в области государственного регулирования цен (тарифов), и (или) на официальном сайте органа местного самоуправления поселения или городского округа в случае их наделения в соответствии с законом субъекта Российской Федерации полномочиями по государственному регулированию цен (тарифов) предусмотрено пунктом 3 (а) постановления Правительства N 570 от 05.07.2013"]
[null,"Задайте период регулирования, выбрав даты начала и окончания очередного периода регулирования из календаря (иконка справа от указанной ячейки), либо введите дату непосредственно в ячейку в формате - 'ДД.ММ.ГГГГ'"]
[null,"Шаблон заполняется раздельно по каждому виду тарифа"]
[null,"В зависимости от указанного вида деятельности будут доступны для заполнения поля 'Производство', 'Передача' и 'Сбыт'"]
[null,"Ссылки на публикации"]
[null,"Вводите адрес сайта, не нарушая цвет ячейки /если копируете гиперссылку из браузера, то выполните двойной щелчок по ячейке и только после этого можете вставить скопированный элемент/"]
[null,"Материалы (документы) необходимо загружать с помощью \"ЕИАС Мониторинг\". Ссылка на инструкцию по загрузке материалов (документов) расположена на листе 'Инструкция' в п.'Методология заполнения'.\n\nВвводите ссылку, не нарушая цвет ячейки /если копируете гиперссылку из браузера, то выполните двойной щелчок по ячейке и только после этого можете вставить скопированный элемент/."]
[null,"Если для какого-либо пункта графы 'Наименование источника (сайта или печатного издания)' информация не раскрывалась, то в соответствующем поле укажите - 'не раскрывалась'"]
[null,"Список МО"]
[null,"В случае, если тариф не дифференцируется по системам теплоснабжения, перечислите все муниципальные районы, в которых организация осуществляет услуги по передаче тепловой энергии"]
[null,"В случае, если тариф не дифференцируется по системам теплоснабжения, перечислите все муниципальные образования, в которых организация осуществляет услуги по передаче тепловой энергии"]
[null,"Признак дифференциации тарифа"]
[null,"В случае, если тариф не дифференцируется по системам теплоснабжения, укажите '1'. Введите значение от 1 до 100, чтобы указать очередной условный порядковый номер системы теплоснабжения"]
[null,"Потр. Характеристики"]
[null,"Документы необходимо загружать с помощью \"ЕИАС Мониторинг\". Ссылка на инструкцию по загрузке документов расположена на листе 'Инструкция' в п.'Методология заполнения'.\n\nВвводите ссылку, не нарушая цвет ячейки /если копируете гиперссылку из браузера, то выполните двойной щелчок по ячейке и только после этого можете вставить скопированный элемент/."]

{"sheet":"modRegion","index":18,"n_rows":0,"n_cols":0,"rows_kept":0,"hidden":true}

{"sheet":"modReestr","index":19,"n_rows":0,"n_cols":0,"rows_kept":0,"hidden":true}

{"sheet":"modfrmSelectData","index":20,"n_rows":0,"n_cols":0,"rows_kept":0,"hidden":true}

{"sheet":"modfrmReestr","index":21,"n_rows":0,"n_cols":0,"rows_kept":0,"hidden":true}

{"sheet":"modUpdTemplMain","index":22,"n_rows":0,"n_cols":0,"rows_kept":0,"hidden":true}

{"sheet":"REESTR_ORG","index":23,"n_rows":789,"n_cols":12,"rows_kept":789,"hidden":true}
["№","NSRF","MR_NAME","OKTMO_MR_NAME","MO_NAME","OKTMO_NAME","RST_ORG_ID","ORG_NAME","INN_NAME","KPP_NAME","VDET_NAME"]
[1,"Забайкальский край","Агинский муниципальный район","76602000","Амитхаша","76602402","26499792","МП \"Амитхаша\"","8001009924","800101001","производство (некомбинированная выработка)+передача+сбыт","WARM"]
[2,"Забайкальский край","Агинский муниципальный район","76602000","Амитхаша","76602402","27479768","ООО \"Луч\"","8001016569","800101001","производство (некомбинированная выработка)+передача+сбыт","WARM"]
[3,"Забайкальский край","Агинский муниципальный район","76602000","Будулан","76602404","28422291","ООО \"Исток\"","8001017594","800101001","производство (некомбинированная выработка)+передача+сбыт","WARM"]
[4,"Забайкальский край","Агинский муниципальный район","76602000","Гунэй","76602408","26320237","Администрация МО сп. \"Гунэй\"","8001003030","800101001","производство (некомбинированная выработка)+передача+сбыт","WARM"]
[5,"Забайкальский край","Агинский муниципальный район","76602000","Гунэй","76602408","26499798","МП \"Гунэй\"","8001014233","800101001","производство (некомбинированная выработка)+передача+сбыт","WARM"]
[6,"Забайкальский край","Агинский муниципальный район","76602000","Гунэй","76602408","28422291","ООО \"Исток\"","8001017594","800101001","производство (некомбинированная выработка)+передача+сбыт","WARM"]
[7,"Забайкальский край","Агинский муниципальный район","76602000","Кункур","76602412","26499800","МП \"Онон\"","8001015734","800101001","производство (некомбинированная выработка)+передача+сбыт","WARM"]
[8,"Забайкальский край","Агинский муниципальный район","76602000","Кункур","76602412","28422291","ООО \"Исток\"","8001017594","800101001","производство (некомбинированная выработка)+передача+сбыт","WARM"]
[9,"Забайкальский край","Агинский муниципальный район","76602000","Новоорловск","76602153","26775504","Агинское РАЙПО","8001001001","800101001","производство (некомбинированная выработка)+передача+сбыт","WARM"]
[10,"Забайкальский край","Агинский муниципальный район","76602000","Новоорловск","76602153","26499171","МП УК \"Жилкомхоз\"","8001002439","800101001","производство (некомбинированная выработка)+передача+сбыт","WARM"]
[11,"Забайкальский край","Агинский муниципальный район","76602000","Новоорловск","76602153","28176584","ООО \"Гарант\"","8001017604","800101001","производство (некомбинированная выработка)+передача+сбыт","WARM"]
[12,"Забайкальский край","Агинский муниципальный район","76602000","Орловский","76602154","27479772","МП \"Уют\"","8001017160","800101001","производство (некомбинированная выработка)+передача","WARM"]
[13,"Забайкальский край","Агинский муниципальный район","76602000","Орловский","76602154","26499790","Муниципальное унитарное предприятие «Коммунальник»","8001005253","800101001","производство (некомбинированная выработка)+передача+сбыт","WARM"]
[14,"Забайкальский край","Агинский муниципальный район","76602000","Орловский","76602154","26644431","ООО \"Тепловодоканал\"","8001016706","800101001","производство (некомбинированная выработка)+передача+сбыт","WARM"]
[15,"Забайкальский край","Агинский муниципальный район","76602000","Орловский","76602154","27479817","ООО УК \"Теплый дом\"","8001016537","800101001","производство (некомбинированная выработка)+передача+сбыт","WARM"]
[16,"Забайкальский край","Агинский муниципальный район","76602000","Сахюрта","76602416","28422291","ООО \"Исток\"","8001017594","800101001","производство (некомбинированная выработка)+передача+сбыт","WARM"]
[17,"Забайкальский край","Агинский муниципальный район","76602000","Судунтуй","76602420","28422291","ООО \"Исток\"","8001017594","800101001","производство (некомбинированная выработка)+передача+сбыт","WARM"]
[18,"Забайкальский край","Агинский муниципальный район","76602000","Урда-Ага","76602424","26320241","Администрация муниципального образования сельское поселение \"Урда-Ага\"","8001002421","800101001","производство (некомбинированная выработка)+передача+сбыт","WARM"]
[19,"Забайкальский край","Агинский муниципальный район","76602000","Урда-Ага","76602424","26499806","МП \"Урдо-Ага\"","8001011433","800101001","производство (некомбинированная выработка)+передача+сбыт","WARM"]
[20,"Забайкальский край","Агинский муниципальный район","76602000","Хойто-Ага","76602428","28422291","ООО \"Исток\"","8001017594","800101001","производство (некомбинированная выработка)+передача+сбыт","WARM"]
[21,"Забайкальский край","Агинский муниципальный район","76602000","Цокто-Хангил","76602432","28875244","ИП Базаров В.Б.","800100537182","отсутствует","производство (некомбинированная выработка)+передача+сбыт","WARM"]
[22,"Забайкальский край","Агинский муниципальный район","76602000","Цокто-Хангил","76602432","28872754","МП \"Центр Досуга\"","8001016738","800101001","Передача+Сбыт","WARM"]
[23,"Забайкальский край","Агинский муниципальный район","76602000","Цокто-Хангил","76602432","28872754","МП \"Центр Досуга\"","8001016738","800101001","производство комбинированная выработка","WARM"]
[24,"Забайкальский край","Агинский муниципальный район","76602000","Цокто-Хангил","76602432","26499810","МП \"Цокто-Хангил\"","8001015389","800101001","производство (некомбинированная выработка)+передача+сбыт","WARM"]
[25,"Забайкальский край","Агинский муниципальный район","76602000","Цокто-Хангил","76602432","28422291","ООО \"Исток\"","8001017594","800101001","производство (некомбинированная выработка)+передача+сбыт","WARM"]
[26,"Забайкальский край","Агинский муниципальный район","76602000","Челутай","76602436","26499812","МП \"Челутай\"","8001016135","800101001","производство (некомбинированная выработка)+передача+сбыт","WARM"]
[27,"Забайкальский край","Агинский муниципальный район","76602000","Челутай","76602436","28422291","ООО \"Исток\"","8001017594","800101001","производство (некомбинированная выработка)+передача+сбыт","WARM"]
[28,"Забайкальский край","Агинский муниципальный район","76602000","Южный Аргалей","76602440","26499814","МП \"Аргали\"","8001009956","800101001","производство (некомбинированная выработка)+передача+сбыт","WARM"]
[29,"Забайкальский край","Агинский муниципальный район","76602000","Южный Аргалей","76602440","28422291","ООО \"Исток\"","8001017594","800101001","производство (некомбинированная выработка)+передача+сбыт","WARM"]
[30,"Забайкальский край","Акшинский муниципальный район","76603000","Акшинское","76603411","28816976","ООО \"Авангард\"","7536142585","753601001","Передача+Сбыт","WARM"]
[31,"Забайкальский край","Акшинский муниципальный район","76603000","Акшинское","76603411","28816976","ООО \"Авангард\"","7536142585","753601001","производство (некомбинированная выработка)+передача+сбыт","WARM"]
[32,"Забайкальский край","Акшинский муниципальный район","76603000","Акшинское","76603411","26375484","ООО \"Коммунальник\"","7501002876","750101001","производство (некомбинированная выработка)+передача+сбыт","WARM"]
[33,"Забайкальский край","Акшинский муниципальный район","76603000","Акшинское","76603411","27880529","ООО УК \"ИВА\"","7501003171","750101001","производство (некомбинированная выработка)+передача+сбыт","WARM"]
[34,"Забайкальский край","Александрово-Заводский муниципальный район","76604000","Александрово-Заводское","76604412","28010289","МУП ЖКХ сельского поселения  \"Александрово-Заводское\"","7502002004","750201001","производство (некомбинированная выработка)+передача+сбыт","WARM"]
[35,"Забайкальский край","Александрово-Заводский муниципальный район","76604000","Александрово-Заводское","76604412","26531279","ООО \"Александро-Заводское ЖКХ\"","7502002477","750201001","производство (некомбинированная выработка)+передача+сбыт","WARM"]
[36,"Забайкальский край","Балейский муниципальный район","76606000","Городское поселение \"Город Балей\"","76606101","26498129","МУП \"Коммунальник\"","7528004736","752801001","производство (некомбинированная выработка)+передача+сбыт","WARM"]
[37,"Забайкальский край","Балейский муниципальный район","76606000","Городское поселение \"Город Балей\"","76606101","26498131","МУП \"Центральные котельные\"","7528004743","752801001","производство (некомбинированная выработка)+передача+сбыт","WARM"]
[38,"Забайкальский край","Балейский муниципальный район","76606000","Городское поселение \"Город Балей\"","76606101","26498127","ООО \"Балейский\"","7528005218","752801001","производство (некомбинированная выработка)+передача+сбыт","WARM"]
[39,"Забайкальский край","Балейский муниципальный район","76606000","Городское поселение \"Город Балей\"","76606101","26498141","ООО \"Коммунальник\"","7536089691","753601001","Передача+Сбыт","WARM"]
[40,"Забайкальский край","Балейский муниципальный район","76606000","Городское поселение \"Город Балей\"","76606101","26498141","ООО \"Коммунальник\"","7536089691","753601001","производство (некомбинированная выработка)+передача+сбыт","WARM"]
[41,"Забайкальский край","Балейский муниципальный район","76606000","Городское поселение \"Город Балей\"","76606101","26498141","ООО \"Коммунальник\"","7536089691","753601001","производство комбинированная выработка","WARM"]
[42,"Забайкальский край","Балейский муниципальный район","76606000","Городское поселение \"Город Балей\"","76606101","27479835","ООО \"Очаг\"","7528005634","752801001","производство (некомбинированная выработка)+передача+сбыт","WARM"]
[43,"Забайкальский край","Балейский муниципальный район","76606000","Городское поселение \"Город Балей\"","76606101","27480024","ООО \"Сибцветметэнерго\"","7528004630","752801001","производство (некомбинированная выработка)+передача+сбыт","WARM"]
[44,"Забайкальский край","Балейский муниципальный район","76606000","Городское поселение \"Город Балей\"","76606101","28460539","ООО \"Тепловик\"","7528005923","752801001","производство (некомбинированная выработка)+сбыт","WARM"]
[45,"Забайкальский край","Балейский муниципальный район","76606000","Городское поселение \"Город Балей\"","76606101","27479831","ООО \"Теплострой\"","7528005641","752801001","производство (некомбинированная выработка)+передача+сбыт","WARM"]
[46,"Забайкальский край","Балейский муниципальный район","76606000","Городское поселение \"Город Балей\"","76606101","28011120","ООО \"Теплоэнерго\"","7528005761","752801001","производство (некомбинированная выработка)+передача+сбыт","WARM"]
[47,"Забайкальский край","Балейский муниципальный район","76606000","Казаковское","76606405","26498133","ИП \"Толстокулаков\"","752800656759","752801001","производство (некомбинированная выработка)+передача+сбыт","WARM"]
[48,"Забайкальский край","Балейский муниципальный район","76606000","Казаковское","76606405","26375569","ООО \"Исток\"","7528005183","752801001","производство (некомбинированная выработка)+передача+сбыт","WARM"]
[49,"Забайкальский край","Балейский муниципальный район","76606000","Казаковское","76606405","26498141","ООО \"Коммунальник\"","7536089691","753601001","производство (некомбинированная выработка)","WARM"]
[50,"Забайкальский край","Балейский муниципальный район","76606000","Казаковское","76606405","27480024","ООО \"Сибцветметэнерго\"","7528004630","752801001","производство (некомбинированная выработка)+передача+сбыт","WARM"]
[51,"Забайкальский край","Балейский муниципальный район","76606000","Матусовское","76606425","27479869","Матусовское СОШ","7503000546","752801001","производство (некомбинированная выработка)+передача+сбыт","WARM"]
[52,"Забайкальский край","Балейский муниципальный район","76606000","Матусовское","76606425","26498141","ООО \"Коммунальник\"","7536089691","753601001","производство (некомбинированная выработка)","WARM"]
[53,"Забайкальский край","Балейский муниципальный район","76606000","Матусовское","76606425","27480024","ООО \"Сибцветметэнерго\"","7528004630","752801001","производство (некомбинированная выработка)+передача+сбыт","WARM"]
[54,"Забайкальский край","Балейский муниципальный район","76606000","Нижнегирюнинское","76606430","26375566","МОУ Жетковская ООШ","7528002263","752801001","производство (некомбинированная выработка)+передача+сбыт","WARM"]
[55,"Забайкальский край","Балейский муниципальный район","76606000","Нижнеильдиканское","76606415","26375570","ООО \"Каскад\"","7528005190","752801001","производство (некомбинированная выработка)","WARM"]
[56,"Забайкальский край","Балейский муниципальный район","76606000","Нижнекокуйское","76606435","26498135","ИП Подойницын В.В.","752801874333","752801001","производство (некомбинированная выработка)+передача+сбыт","WARM"]
[57,"Забайкальский край","Балейский муниципальный район","76606000","Нижнекокуйское","76606435","26498141","ООО \"Коммунальник\"","7536089691","753601001","производство (некомбинированная выработка)","WARM"]
[58,"Забайкальский край","Балейский муниципальный район","76606000","Нижнекокуйское","76606435","27480024","ООО \"Сибцветметэнерго\"","7528004630","752801001","производство (некомбинированная выработка)+передача+сбыт","WARM"]
[59,"Забайкальский край","Балейский муниципальный район","76606000","Подойницинское","76606440","26498137","МОУ Подойницынская СОШ","7503000553","750301001","производство (некомбинированная выработка)+передача+сбыт","WARM"]
[60,"Забайкальский край","Балейский муниципальный район","76606000","Подойницинское","76606440","26498141","ООО \"Коммунальник\"","7536089691","753601001","производство (некомбинированная выработка)","WARM"]
[61,"Забайкальский край","Балейский муниципальный район","76606000","Подойницинское","76606440","27480024","ООО \"Сибцветметэнерго\"","7528004630","752801001","производство (некомбинированная выработка)+передача+сбыт","WARM"]
[62,"Забайкальский край","Балейский муниципальный район","76606000","Ундино-Посельское","76606445","26823629","МОУ Ундино-Посельская СОШ","7503000539","752801001","производство (некомбинированная выработка)+передача+сбыт","WARM"]
[63,"Забайкальский край","Балейский муниципальный район","76606000","Ундинское","76606450","26375569","ООО \"Исток\"","7528005183","752801001","производство (некомбинированная выработка)+передача+сбыт","WARM"]
[64,"Забайкальский край","Борзинский муниципальный район","76609000","Борзинское","76609101","30335229","АО \"ГУ ЖКХ\"","5116000922","770401001","производство (некомбинированная выработка)+передача+сбыт","WARM"]
[65,"Забайкальский край","Борзинский муниципальный район","76609000","Борзинское","76609101","30431003","АО \"ГУ ЖКХ\"","5116000922","753645001","производство (некомбинированная выработка)+передача+сбыт","WARM"]
[66,"Забайкальский край","Борзинский муниципальный район","76609000","Борзинское","76609101","26375571","Борзинская КЭЧ района","7529004351","752901001","производство (некомбинированная выработка)+передача+сбыт","WARM"]
[67,"Забайкальский край","Борзинский муниципальный район","76609000","Борзинское","76609101","28053356","ГАУСО \"Хадабулакский психоневрологический дом-интернат\"","7515002548","751501001","производство (некомбинированная выработка)+передача+сбыт","WARM"]
[68,"Забайкальский край","Борзинский муниципальный район","76609000","Борзинское","76609101","26498139","Забайкальская дирекция по тепловодоснабжению - структурное подразделение Центральной дирекции по тепловодоснабжению филиала ОАО \"РЖД\"","7708503727","753602001","производство (некомбинированная выработка)+передача+сбыт","WARM"]
[69,"Забайкальский край","Борзинский муниципальный район","76609000","Борзинское","76609101","26823638","Комитет образования и молодежной политики администрациии муниципального района \"Борзинский район\"","7529001142","752901001","производство (некомбинированная выработка)+передача+сбыт","WARM"]
[70,"Забайкальский край","Борзинский муниципальный район","76609000","Борзинское","76609101","26498143","ОАО «Межрегиональная распределительная сетевая компания Сибири»- филиал \"Читаэнерго\"","2460069527","753643001","производство (некомбинированная выработка)+передача+сбыт","WARM"]
[71,"Забайкальский край","Борзинский муниципальный район","76609000","Борзинское","76609101","26823655","ООО \"Агропромснаб\"","7529002587","752901001","производство (некомбинированная выработка)+передача+сбыт","WARM"]
[72,"Забайкальский край","Борзинский муниципальный район","76609000","Борзинское","76609101","26498147","ООО \"Борзинское пиво\"","7529009631","752901001","производство (некомбинированная выработка)+передача+сбыт","WARM"]
[73,"Забайкальский край","Борзинский муниципальный район","76609000","Борзинское","76609101","26498141","ООО \"Коммунальник\"","7536089691","753601001","Передача+Сбыт","WARM"]
[74,"Забайкальский край","Борзинский муниципальный район","76609000","Борзинское","76609101","26498141","ООО \"Коммунальник\"","7536089691","753601001","производство (некомбинированная выработка)+передача+сбыт","WARM"]
[75,"Забайкальский край","Борзинский муниципальный район","76609000","Борзинское","76609101","26498141","ООО \"Коммунальник\"","7536089691","753601001","производство комбинированная выработка","WARM"]
[76,"Забайкальский край","Борзинский муниципальный район","76609000","Борзинское","76609101","28048331","ООО \"Комплект\"","7529011768","752901001","производство (некомбинированная выработка)+передача+сбыт","WARM"]
[77,"Забайкальский край","Борзинский муниципальный район","76609000","Борзинское","76609101","26834786","Филиал ОАО \"Ремонтно-эксплуатационное управление \"Забайкальский\"","7714783092","753643001","производство (некомбинированная выработка)+передача+сбыт","WARM"]
[78,"Забайкальский край","Борзинский муниципальный район","76609000","Соловьёвское","76609464","26498139","Забайкальская дирекция по тепловодоснабжению - структурное подразделение Центральной дирекции по тепловодоснабжению филиала ОАО \"РЖД\"","7708503727","753602001","производство (некомбинированная выработка)+передача+сбыт","WARM"]
[79,"Забайкальский край","Борзинский муниципальный район","76609000","Усть-Озёрское","76609468","26498151","Администрация с.п. \"Усть-Озерское\"","7529010130","752901001","производство (некомбинированная выработка)+передача+сбыт","WARM"]
[80,"Забайкальский край","Борзинский муниципальный район","76609000","Цаган-Олуйское","76609476","26498153","Производственный сельскохозяйственный кооператив \"Забайкалец\"","7529009945","752901001","производство (некомбинированная выработка)+передача+сбыт","WARM"]
[81,"Забайкальский край","Борзинский муниципальный район","76609000","Шерловогорское","76609154","26498149","ПАО \"ТГК-14\"","7534018889","753401001","Передача+Сбыт","WARM"]
[82,"Забайкальский край","Борзинский муниципальный район","76609000","Шерловогорское","76609154","26498149","ПАО \"ТГК-14\"","7534018889","753401001","производство (некомбинированная выработка)+передача+сбыт","WARM"]
[83,"Забайкальский край","Борзинский муниципальный район","76609000","Шерловогорское","76609154","26498149","ПАО \"ТГК-14\"","7534018889","753401001","производство комбинированная выработка","WARM"]
[84,"Забайкальский край","Борзинский муниципальный район","76609000","Шерловогорское","76609154","26834786","Филиал ОАО \"Ремонтно-эксплуатационное управление \"Забайкальский\"","7714783092","753643001","производство (некомбинированная выработка)+передача+сбыт","WARM"]
[85,"Забайкальский край","Газимуро-Заводский муниципальный район","76610000","Газимуро-Заводское","76610409","26375486","Администрация муниципального района \"Газимуро-Заводское\"","7504000549","750401001","производство (некомбинированная выработка)+передача+сбыт","WARM"]
[86,"Забайкальский край","Газимуро-Заводский муниципальный район","76610000","Газимуро-Заводское","76610409","26649631","МУ здравоохранения Центральная районная больница","7504000718","750401001","производство (некомбинированная выработка)+передача+сбыт","WARM"]
[87,"Забайкальский край","Газимуро-Заводский муниципальный район","76610000","Газимуро-Заводское","76610409","30372462","ООО \"Авангард плюс\"","7524018664","752401001","производство (некомбинированная выработка)+передача+сбыт","WARM"]
[88,"Забайкальский край","Газимуро-Заводский муниципальный район","76610000","Солонеченское","76610420","28502142","Администрация сельского поселения \"Солонеченское\"","7504002024","750401001","Передача+Сбыт","WARM"]
[89,"Забайкальский край","Газимуро-Заводский муниципальный район","76610000","Солонеченское","76610420","28502142","Администрация сельского поселения \"Солонеченское\"","7504002024","750401001","производство комбинированная выработка","WARM"]
[90,"Забайкальский край","Газимуро-Заводский муниципальный район","76610000","Солонеченское","76610420","26375487","ЖКХ Администрации сельского поселения \"Солонеченское\"","7504002024","750401001","производство (некомбинированная выработка)+передача+сбыт","WARM"]
[91,"Забайкальский край","Газимуро-Заводский муниципальный район","76610000","Солонеченское","76610420","30372462","ООО \"Авангард плюс\"","7524018664","752401001","производство (некомбинированная выработка)+передача+сбыт","WARM"]
[92,"Забайкальский край","Газимуро-Заводский муниципальный район","76610000","Солонеченское","76610420","26498157","ООО Заря","7504002232","750401001","производство (некомбинированная выработка)+передача+сбыт","WARM"]
[93,"Забайкальский край","Город Краснокаменск и Краснокаменский муниципальный район","76621000","Кайластуйское","76621420","26777501","ИП Мироманов С.М.","753002157620","753001001","производство (некомбинированная выработка)+передача+сбыт","WARM"]
[94,"Забайкальский край","Город Краснокаменск и Краснокаменский муниципальный район","76621000","Ковылинское","76621402","26647617","Администрация муниципального образования сельское поселение \"Ковылинское\"","7530010744","753001001","Теплоноситель - Сбыт :: Производство :: Передача","WARM"]
[95,"Забайкальский край","Город Краснокаменск и Краснокаменский муниципальный район","76621000","Ковылинское","76621402","26647617","Администрация муниципального образования сельское поселение \"Ковылинское\"","7530010744","753001001","производство (некомбинированная выработка)+передача+сбыт","WARM"]
[96,"Забайкальский край","Город Краснокаменск и Краснокаменский муниципальный район","76621000","Ковылинское","76621402","26544511","ООО \"Коммунальник МЦК\"","7530012798","753001001","производство (некомбинированная выработка)+передача+сбыт","WARM"]
[97,"Забайкальский край","Город Краснокаменск и Краснокаменский муниципальный район","76621000","Ковылинское","76621402","28874725","ООО \"Теплосети\"","7530013985","753001001","производство (некомбинированная выработка)+передача+сбыт","WARM"]
[98,"Забайкальский край","Город Краснокаменск и Краснокаменский муниципальный район","76621000","Краснокаменское","76621101","26375573","ПАО \"ППГХО\"","7530000048","753001001","Передача+Сбыт","WARM"]
[99,"Забайкальский край","Город Краснокаменск и Краснокаменский муниципальный район","76621000","Краснокаменское","76621101","26375573","ПАО \"ППГХО\"","7530000048","753001001","производство комбинированная выработка","WARM"]
[100,"Забайкальский край","Город Краснокаменск и Краснокаменский муниципальный район","76621000","Краснокаменское","76621101","26381493","УМП \"ЖКУ\"","7530007886","753001001","Передача+Сбыт","WARM"]
[101,"Забайкальский край","Город Краснокаменск и Краснокаменский муниципальный район","76621000","Маргуцекское","76621427","26544511","ООО \"Коммунальник МЦК\"","7530012798","753001001","производство (некомбинированная выработка)+передача+сбыт","WARM"]
[102,"Забайкальский край","Город Краснокаменск и Краснокаменский муниципальный район","76621000","Маргуцекское","76621427","28874738","ООО \"Теплосервис\"","7530013992","753001001","производство (некомбинированная выработка)+передача+сбыт","WARM"]
[103,"Забайкальский край","Город Краснокаменск и Краснокаменский муниципальный район","76621000","Соктуй-Милозанское","76621430","26649633","Комитет по управлению образованием Администрации МР «Город Краснокаменск и Краснокаменский район»","7530006850","753001001","производство (некомбинированная выработка)+передача+сбыт","WARM"]
[104,"Забайкальский край","Город Краснокаменск и Краснокаменский муниципальный район","76621000","Целиннинское","76621445","26544511","ООО \"Коммунальник МЦК\"","7530012798","753001001","производство (некомбинированная выработка)+передача+сбыт","WARM"]
[105,"Забайкальский край","Город Краснокаменск и Краснокаменский муниципальный район","76621000","Целиннинское","76621445","28449215","ООО \"Теплосбыт\"","7530013777","753001001","производство (некомбинированная выработка)+передача+сбыт","WARM"]
[106,"Забайкальский край","Городской округ \"Город Петровск-Забайкальский\"","76715000","Городской округ \"Город Петровск-Забайкальский\"","76715000","30335229","АО \"ГУ ЖКХ\"","5116000922","770401001","производство (некомбинированная выработка)+передача+сбыт","WARM"]
[107,"Забайкальский край","Городской округ \"Город Петровск-Забайкальский\"","76715000","Городской округ \"Город Петровск-Забайкальский\"","76715000","30431003","АО \"ГУ ЖКХ\"","5116000922","753645001","производство (некомбинированная выработка)+передача+сбыт","WARM"]
[108,"Забайкальский край","Городской округ \"Город Петровск-Забайкальский\"","76715000","Городской округ \"Город Петровск-Забайкальский\"","76715000","26499780","ГСУ СО \"Петровск-Забайкальский дом интернат для умственно-отсталых детей\"","7531001372","753101001","производство (некомбинированная выработка)+передача+сбыт","WARM"]
[109,"Забайкальский край","Городской округ \"Город Петровск-Забайкальский\"","76715000","Городской округ \"Город Петровск-Забайкальский\"","76715000","26498139","Забайкальская дирекция по тепловодоснабжению - структурное подразделение Центральной дирекции по тепловодоснабжению филиала ОАО \"РЖД\"","7708503727","753602001","производство (некомбинированная выработка)+передача+сбыт","WARM"]
[110,"Забайкальский край","Городской округ \"Город Петровск-Забайкальский\"","76715000","Городской округ \"Город Петровск-Забайкальский\"","76715000","26498141","ООО \"Коммунальник\"","7536089691","753601001","Передача+Сбыт","WARM"]
[111,"Забайкальский край","Городской округ \"Город Петровск-Забайкальский\"","76715000","Городской округ \"Город Петровск-Забайкальский\"","76715000","26498141","ООО \"Коммунальник\"","7536089691","753601001","производство (некомбинированная выработка)+передача+сбыт","WARM"]
[112,"Забайкальский край","Городской округ \"Город Петровск-Забайкальский\"","76715000","Городской округ \"Город Петровск-Забайкальский\"","76715000","26498141","ООО \"Коммунальник\"","7536089691","753601001","производство комбинированная выработка","WARM"]
[113,"Забайкальский край","Городской округ \"Город Петровск-Забайкальский\"","76715000","Городской округ \"Город Петровск-Забайкальский\"","76715000","26382809","ФГУ \"Бадинская КЭЧрайона\" МО РФ","7523003288","752301001","производство (некомбинированная выработка)+передача+сбыт","WARM"]
[114,"Забайкальский край","Городской округ \"Город Петровск-Забайкальский\"","76715000","Городской округ \"Город Петровск-Забайкальский\"","76715000","26834786","Филиал ОАО \"Ремонтно-эксплуатационное управление \"Забайкальский\"","7714783092","753643001","производство (некомбинированная выработка)+передача+сбыт","WARM"]
[115,"Забайкальский край","Городской округ \"Город Чита\"","76701000","Городской округ \"Город Чита\"","76701000","30335229","АО \"ГУ ЖКХ\"","5116000922","770401001","производство (некомбинированная выработка)+передача+сбыт","WARM"]
[116,"Забайкальский край","Городской округ \"Город Чита\"","76701000","Городской округ \"Город Чита\"","76701000","30431003","АО \"ГУ ЖКХ\"","5116000922","753645001","производство (некомбинированная выработка)+передача+сбыт","WARM"]
[117,"Забайкальский край","Городской округ \"Город Чита\"","76701000","Городской округ \"Город Чита\"","76701000","26499766","АО \"Читинский молочный комбинат\"","7534001638","753401001","производство (некомбинированная выработка)+передача+сбыт","WARM"]
[118,"Забайкальский край","Городской округ \"Город Чита\"","76701000","Городской округ \"Город Чита\"","76701000","27480465","Вагонное ремонтное депо - филиала ОАО \"РЖД\"","7708503727","753631001","производство (некомбинированная выработка)+передача+сбыт","WARM"]
[119,"Забайкальский край","Городской округ \"Город Чита\"","76701000","Городской округ \"Город Чита\"","76701000","28466181","Вагонное ремонтное депо Чита","7708737517","753645001","производство (некомбинированная выработка)+передача+сбыт","WARM"]
[120,"Забайкальский край","Городской округ \"Город Чита\"","76701000","Городской округ \"Город Чита\"","76701000","26647655","ГОУ НПО  «Профессиональное училище № 33»","7537007941","753701001","производство (некомбинированная выработка)+передача+сбыт","WARM"]
[121,"Забайкальский край","Городской округ \"Город Чита\"","76701000","Городской округ \"Город Чита\"","76701000","26823623","ГУ \"Противопожарная служба Забайкальского края\"","7536057019","753601001","производство (некомбинированная выработка)+передача+сбыт","WARM"]
[122,"Забайкальский край","Городской округ \"Город Чита\"","76701000","Городской округ \"Город Чита\"","76701000","26499776","Государственное образовательное учреждение «Профессиональный лицей №2»","7534008305","753401001","производство (некомбинированная выработка)+передача+сбыт","WARM"]
[123,"Забайкальский край","Городской округ \"Город Чита\"","76701000","Городской округ \"Город Чита\"","76701000","26498139","Забайкальская дирекция по тепловодоснабжению - структурное подразделение Центральной дирекции по тепловодоснабжению филиала ОАО \"РЖД\"","7708503727","753602001","производство (некомбинированная выработка)+передача+сбыт","WARM"]
[124,"Забайкальский край","Городской округ \"Город Чита\"","76701000","Городской округ \"Город Чита\"","76701000","26499826","ИП Балян С.В.","753605126326","753601001","производство (некомбинированная выработка)+передача+сбыт","WARM"]
[125,"Забайкальский край","Городской округ \"Город Чита\"","76701000","Городской округ \"Город Чита\"","76701000","28795860","ИП Кубасов Сергей Сергеевич","753614468703","отсутствует","Передача+Сбыт","WARM"]
[126,"Забайкальский край","Городской округ \"Город Чита\"","76701000","Городской округ \"Город Чита\"","76701000","28795860","ИП Кубасов Сергей Сергеевич","753614468703","отсутствует","производство комбинированная выработка","WARM"]
[127,"Забайкальский край","Городской округ \"Город Чита\"","76701000","Городской округ \"Город Чита\"","76701000","30874114","Муниципальное бюджетное учреждение \"Ремонтное эксплуатационное объединение\"","7536156228","753601001","производство (некомбинированная выработка)+передача","WARM"]
[128,"Забайкальский край","Городской округ \"Город Чита\"","76701000","Городской округ \"Город Чита\"","76701000","27480530","ОАО \"Ингода\"","7532001336","753601001","производство (некомбинированная выработка)+передача+сбыт","WARM"]
[129,"Забайкальский край","Городской округ \"Город Чита\"","76701000","Городской округ \"Город Чита\"","76701000","26823620","ОАО \"Иногда\"","7532001336","753201001","производство (некомбинированная выработка)+передача+сбыт","WARM"]
[130,"Забайкальский край","Городской округ \"Город Чита\"","76701000","Городской округ \"Город Чита\"","76701000","26499772","ОАО \"Машзавод\"","7536000728","753601001","производство (некомбинированная выработка)+передача+сбыт","WARM"]
[131,"Забайкальский край","Городской округ \"Город Чита\"","76701000","Городской округ \"Город Чита\"","76701000","26499208","ОАО \"Производственно-ремонтное предприятие\"","7537011994","753501001","производство (некомбинированная выработка)+передача+сбыт","WARM"]
[132,"Забайкальский край","Городской округ \"Город Чита\"","76701000","Городской округ \"Город Чита\"","76701000","28486007","ОАО \"Региональное управление строительства\"","7530008329","753601001","Передача","WARM"]
[133,"Забайкальский край","Городской округ \"Город Чита\"","76701000","Городской округ \"Город Чита\"","76701000","26375584","ОАО \"Силикатный завод\"","7534000698","753601001","производство (некомбинированная выработка)+передача","WARM"]
[134,"Забайкальский край","Городской округ \"Город Чита\"","76701000","Городской округ \"Город Чита\"","76701000","26375591","ОАО \"Читарегион ОПР\"","7537008688","753601001","производство (некомбинированная выработка)+передача+сбыт","WARM"]
[135,"Забайкальский край","Городской округ \"Город Чита\"","76701000","Городской округ \"Город Чита\"","76701000","27585020","ОАО \"Читинский мебельно-деревообрабатывающий комбинат Даурия\"","7534014161","753401001","производство (некомбинированная выработка)+передача+сбыт","WARM"]
[136,"Забайкальский край","Городской округ \"Город Чита\"","76701000","Городской округ \"Город Чита\"","76701000","27480213","ОАО «88 центральный автомобильный ремонтный завод» п. Песчанка","7536103748","753650001","Передача","WARM"]
[137,"Забайкальский край","Городской округ \"Город Чита\"","76701000","Городской округ \"Город Чита\"","76701000","26498143","ОАО «Межрегиональная распределительная сетевая компания Сибири»- филиал \"Читаэнерго\"","2460069527","753643001","производство (некомбинированная выработка)+передача+сбыт","WARM"]
[138,"Забайкальский край","Городской округ \"Город Чита\"","76701000","Городской округ \"Город Чита\"","76701000","28819882","ООО \"Автокомлекс Магистральный\"","7536118254","753601001","производство (некомбинированная выработка)+передача+сбыт","WARM"]
[139,"Забайкальский край","Городской округ \"Город Чита\"","76701000","Городской округ \"Город Чита\"","76701000","26499770","ООО \"Забсибхлеб\"","7524010175","753601001","производство (некомбинированная выработка)+передача+сбыт","WARM"]
[140,"Забайкальский край","Городской округ \"Город Чита\"","76701000","Городской округ \"Город Чита\"","76701000","30873192","ООО \"Каскад плюс\"","7536076491","753601001","производство (некомбинированная выработка)+сбыт","WARM"]
[141,"Забайкальский край","Городской округ \"Город Чита\"","76701000","Городской округ \"Город Чита\"","76701000","26320244","ООО \"Комбинат хлебопродуктов\"","7535002176","753501001","производство (некомбинированная выработка)+передача+сбыт","WARM"]
[142,"Забайкальский край","Городской округ \"Город Чита\"","76701000","Городской округ \"Город Чита\"","76701000","26498141","ООО \"Коммунальник\"","7536089691","753601001","Передача+Сбыт","WARM"]
[143,"Забайкальский край","Городской округ \"Город Чита\"","76701000","Городской округ \"Город Чита\"","76701000","26498141","ООО \"Коммунальник\"","7536089691","753601001","производство (некомбинированная выработка)+передача+сбыт","WARM"]
[144,"Забайкальский край","Городской округ \"Город Чита\"","76701000","Городской округ \"Город Чита\"","76701000","26498141","ООО \"Коммунальник\"","7536089691","753601001","производство комбинированная выработка","WARM"]
[145,"Забайкальский край","Городской округ \"Город Чита\"","76701000","Городской округ \"Город Чита\"","76701000","28460549","ООО \"Куртье\"","7534013873","753401001","производство (некомбинированная выработка)+передача+сбыт","WARM"]
[146,"Забайкальский край","Городской округ \"Город Чита\"","76701000","Городской округ \"Город Чита\"","76701000","28795704","ООО \"МАСТЕР\"","8001006673","800101001","производство (некомбинированная выработка)+передача+сбыт","WARM"]
[147,"Забайкальский край","Городской округ \"Город Чита\"","76701000","Городской округ \"Город Чита\"","76701000","28535705","ООО \"Мир\"","7536050334","753601001","Передача","WARM"]
[148,"Забайкальский край","Городской округ \"Город Чита\"","76701000","Городской округ \"Город Чита\"","76701000","27553823","ООО \"Производственно-ремонтное предприятие\"","7536120817","753601001","производство (некомбинированная выработка)+передача+сбыт","WARM"]
[149,"Забайкальский край","Городской округ \"Город Чита\"","76701000","Городской округ \"Город Чита\"","76701000","27505147","ООО \"Радченко\"","7536056600","753601001","Передача","WARM"]
[150,"Забайкальский край","Городской округ \"Город Чита\"","76701000","Городской округ \"Город Чита\"","76701000","26499778","ООО \"Спецмонтажремонт\"","7536080191","753601001","производство (некомбинированная выработка)+передача+сбыт","WARM"]
[151,"Забайкальский край","Городской округ \"Город Чита\"","76701000","Городской округ \"Город Чита\"","76701000","26375592","ООО \"ТЭП Кадалинское\"","7537011352","753701001","производство (некомбинированная выработка)+передача","WARM"]
[152,"Забайкальский край","Городской округ \"Город Чита\"","76701000","Городской округ \"Город Чита\"","76701000","28827915","ООО \"Теплоэнергосервис\"","7536144649","753601001","производство (некомбинированная выработка)+передача+сбыт","WARM"]
[153,"Забайкальский край","Городской округ \"Город Чита\"","76701000","Городской округ \"Город Чита\"","76701000","26649647","ООО \"Торговый дом \"Даурия\"","7536106562","752401001","производство (некомбинированная выработка)+передача+сбыт","WARM"]
[154,"Забайкальский край","Городской округ \"Город Чита\"","76701000","Городской округ \"Город Чита\"","76701000","27500581","ООО \"ЧитаЭнергоАудит\"","7536115687","753601001","производство (некомбинированная выработка)+передача+сбыт","WARM"]
[155,"Забайкальский край","Городской округ \"Город Чита\"","76701000","Городской округ \"Город Чита\"","76701000","28873152","ООО \"Читаснаб\"","7536130861","753601001","производство (некомбинированная выработка)+передача+сбыт","WARM"]
[156,"Забайкальский край","Городской округ \"Город Чита\"","76701000","Городской округ \"Город Чита\"","76701000","27480445","ООО \"Энергожилстрой\"","7536066609","753601001","Передача","WARM"]
[157,"Забайкальский край","Городской округ \"Город Чита\"","76701000","Городской округ \"Город Чита\"","76701000","27480523","ООО \"Янта-Чита\"","7534018409","753401001","производство (некомбинированная выработка)+передача+сбыт","WARM"]
[158,"Забайкальский край","Городской округ \"Город Чита\"","76701000","Городской округ \"Город Чита\"","76701000","27970607","ООО «Тепловик-Чита»","7536127516","753601001","производство (некомбинированная выработка)+передача+сбыт","WARM"]
[159,"Забайкальский край","Городской округ \"Город Чита\"","76701000","Городской округ \"Город Чита\"","76701000","26375588","ООО ЖЭУ \"УЮТ\"","7534018328","753401001","Передача+Сбыт","WARM"]
[160,"Забайкальский край","Городской округ \"Город Чита\"","76701000","Городской округ \"Город Чита\"","76701000","26499774","Открытое акционерное общество «БИОСП»","7535008308","753501001","производство (некомбинированная выработка)+передача+сбыт","WARM"]
[161,"Забайкальский край","Городской округ \"Город Чита\"","76701000","Городской округ \"Город Чита\"","76701000","26498149","ПАО \"ТГК-14\"","7534018889","753401001","Передача+Сбыт","WARM"]
[162,"Забайкальский край","Городской округ \"Город Чита\"","76701000","Городской округ \"Город Чита\"","76701000","26498149","ПАО \"ТГК-14\"","7534018889","753401001","производство (некомбинированная выработка)+передача+сбыт","WARM"]
[163,"Забайкальский край","Городской округ \"Город Чита\"","76701000","Городской округ \"Город Чита\"","76701000","26498149","ПАО \"ТГК-14\"","7534018889","753401001","производство комбинированная выработка","WARM"]
[164,"Забайкальский край","Городской округ \"Город Чита\"","76701000","Городской округ \"Город Чита\"","76701000","26449407","Свечинский районный телекоммуникационный узел (РТУ) Кировского филиала ОАО \"Волгателеком\"","5260901817","432832002","производство (некомбинированная выработка)+передача+сбыт","WARM"]
[165,"Забайкальский край","Городской округ \"Город Чита\"","76701000","Городской округ \"Город Чита\"","76701000","26499768","ФГУГП \"Читагеологоразведка\"","7537010045","753701001","производство (некомбинированная выработка)+передача+сбыт","WARM"]
[166,"Забайкальский край","Городской округ \"Город Чита\"","76701000","Городской округ \"Город Чита\"","76701000","27505039","Федеральная служба охраны России в лице войсковой части 28685","7534010174","753401001","производство (некомбинированная выработка)+передача+сбыт","WARM"]
[167,"Забайкальский край","Городской округ \"Город Чита\"","76701000","Городской округ \"Город Чита\"","76701000","26834786","Филиал ОАО \"Ремонтно-эксплуатационное управление \"Забайкальский\"","7714783092","753643001","производство (некомбинированная выработка)+передача+сбыт","WARM"]
[168,"Забайкальский край","Городской округ \"Город Чита\"","76701000","Городской округ \"Город Чита\"","76701000","27480161","Читинская дистанция гражданских сооружений структурное подразделение Дирекции по эксплуатации зданий и сооружений структурного подразделения Забайкальской железной дороги филиала ОАО \"РЖД\"","7708503727","770850001","производство (некомбинированная выработка)+передача+сбыт","WARM"]
[169,"Забайкальский край","Городской округ \"Посёлок Горный (ЗАТО)\"","76785000","Городской округ \"Посёлок Горный (ЗАТО)\"","76785000","26320247","36 КЭЧ","7533000310","753301001","Передача+Сбыт","WARM"]
[170,"Забайкальский край","Городской округ \"Посёлок Горный (ЗАТО)\"","76785000","Городской округ \"Посёлок Горный (ЗАТО)\"","76785000","26320247","36 КЭЧ","7533000310","753301001","производство комбинированная выработка","WARM"]
[171,"Забайкальский край","Городской округ \"Посёлок Горный (ЗАТО)\"","76785000","Городской округ \"Посёлок Горный (ЗАТО)\"","76785000","30335229","АО \"ГУ ЖКХ\"","5116000922","770401001","производство (некомбинированная выработка)+передача+сбыт","WARM"]
[172,"Забайкальский край","Городской округ \"Посёлок Горный (ЗАТО)\"","76785000","Городской округ \"Посёлок Горный (ЗАТО)\"","76785000","30431003","АО \"ГУ ЖКХ\"","5116000922","753645001","производство (некомбинированная выработка)+передача+сбыт","WARM"]
[173,"Забайкальский край","Городской округ \"Посёлок Горный (ЗАТО)\"","76785000","Городской округ \"Посёлок Горный (ЗАТО)\"","76785000","26834786","Филиал ОАО \"Ремонтно-эксплуатационное управление \"Забайкальский\"","7714783092","753643001","производство (некомбинированная выработка)+передача+сбыт","WARM"]
[174,"Забайкальский край","Городской округ \"Поселок Агинское\"","76702000","Городской округ \"Поселок Агинское\"","76702000","26499782","ООО \"Тепловик\"","8001015540","800101001","производство (некомбинированная выработка)+передача+сбыт","WARM"]
[175,"Забайкальский край","Городской округ \"Поселок Агинское\"","76702000","Городской округ \"Поселок Агинское\"","76702000","26499784","ООО \"Теплосервис\"","8001015558","800101001","производство (некомбинированная выработка)+передача+сбыт","WARM"]
[176,"Забайкальский край","Городской округ \"Поселок Агинское\"","76702000","Городской округ \"Поселок Агинское\"","76702000","26499786","ООО \"Теплоэнергия\"","8001015533","800101001","производство (некомбинированная выработка)+передача+сбыт","WARM"]
[177,"Забайкальский край","Дульдургинский муниципальный район","76611000","Алханай","76611404","26499816","МП \"Универсал\"","8002021018","800201001","производство (некомбинированная выработка)+передача+сбыт","WARM"]
[178,"Забайкальский край","Дульдургинский муниципальный район","76611000","Алханай","76611404","28867637","МУП \"Универсал+\"","8002004189","800201001","производство (некомбинированная выработка)+передача+сбыт","WARM"]
[179,"Забайкальский край","Дульдургинский муниципальный район","76611000","Алханай","76611404","27878468","ООО \"Энергосервис\"","8002004083","800201001","производство (некомбинированная выработка)+передача+сбыт","WARM"]
[180,"Забайкальский край","Дульдургинский муниципальный район","76611000","Алханай","76611404","30866315","Общество с ограниченной ответственностью \"УНИВЕРСАЛ+\"","8002021378","800201001","производство (некомбинированная выработка)+передача+сбыт","WARM"]
[181,"Забайкальский край","Дульдургинский муниципальный район","76611000","Ара-Иля","76611408","26499818","Администрация сельского поселения \"Ара-Иля\"","8002020046","800201001","производство (некомбинированная выработка)+передача+сбыт","WARM"]
[182,"Забайкальский край","Дульдургинский муниципальный район","76611000","Ара-Иля","76611408","28867637","МУП \"Универсал+\"","8002004189","800201001","производство (некомбинированная выработка)+передача+сбыт","WARM"]
[183,"Забайкальский край","Дульдургинский муниципальный район","76611000","Ара-Иля","76611408","27878468","ООО \"Энергосервис\"","8002004083","800201001","производство (некомбинированная выработка)+передача+сбыт","WARM"]
[184,"Забайкальский край","Дульдургинский муниципальный район","76611000","Ара-Иля","76611408","30866315","Общество с ограниченной ответственностью \"УНИВЕРСАЛ+\"","8002021378","800201001","производство (некомбинированная выработка)+передача+сбыт","WARM"]
[185,"Забайкальский край","Дульдургинский муниципальный район","76611000","Бальзино","76611412","27480613","Администрация с.п.\"Бальзино\"","8002018738","800201001","производство (некомбинированная выработка)+передача+сбыт","WARM"]
[186,"Забайкальский край","Дульдургинский муниципальный район","76611000","Бальзино","76611412","28867637","МУП \"Универсал+\"","8002004189","800201001","производство (некомбинированная выработка)+передача+сбыт","WARM"]
[187,"Забайкальский край","Дульдургинский муниципальный район","76611000","Бальзино","76611412","27878468","ООО \"Энергосервис\"","8002004083","800201001","производство (некомбинированная выработка)+передача+сбыт","WARM"]
[188,"Забайкальский край","Дульдургинский муниципальный район","76611000","Бальзино","76611412","30866315","Общество с ограниченной ответственностью \"УНИВЕРСАЛ+\"","8002021378","800201001","производство (некомбинированная выработка)+передача+сбыт","WARM"]
[189,"Забайкальский край","Дульдургинский муниципальный район","76611000","Дульдурга","76611416","26499824","ГУЗ \"Дульдургинская ЦРБ\"","8002003001","800201001","производство (некомбинированная выработка)+передача+сбыт","WARM"]
[190,"Забайкальский край","Дульдургинский муниципальный район","76611000","Дульдурга","76611416","26499826","ИП Балян С.В.","753605126326","753601001","производство (некомбинированная выработка)+передача+сбыт","WARM"]
[191,"Забайкальский край","Дульдургинский муниципальный район","76611000","Дульдурга","76611416","26499822","МП ЖКХ и БУ с. Дульдурга","8002019026","800201001","производство (некомбинированная выработка)+передача+сбыт","WARM"]
[192,"Забайкальский край","Дульдургинский муниципальный район","76611000","Дульдурга","76611416","26858867","МП ЖКХ и БУ с. Дульдурга","8002019026","800201001","производство (некомбинированная выработка)+передача+сбыт","WARM"]
[193,"Забайкальский край","Дульдургинский муниципальный район","76611000","Дульдурга","76611416","28867637","МУП \"Универсал+\"","8002004189","800201001","производство (некомбинированная выработка)+передача+сбыт","WARM"]
[194,"Забайкальский край","Дульдургинский муниципальный район","76611000","Дульдурга","76611416","26772530","ООО \"Дульдурга\"","8002003530","800201001","производство (некомбинированная выработка)+передача+сбыт","WARM"]
[195,"Забайкальский край","Дульдургинский муниципальный район","76611000","Дульдурга","76611416","27878468","ООО \"Энергосервис\"","8002004083","800201001","производство (некомбинированная выработка)+передача+сбыт","WARM"]
[196,"Забайкальский край","Дульдургинский муниципальный район","76611000","Дульдурга","76611416","30866315","Общество с ограниченной ответственностью \"УНИВЕРСАЛ+\"","8002021378","800201001","производство (некомбинированная выработка)+передача+сбыт","WARM"]
[197,"Забайкальский край","Дульдургинский муниципальный район","76611000","Зуткулей","76611420","27505207","Администрация сельского поселения \"Зуткулей\"","8002018199","800201001","производство (некомбинированная выработка)+передача+сбыт","WARM"]
[198,"Забайкальский край","Дульдургинский муниципальный район","76611000","Зуткулей","76611420","26499828","МП \"Темп\"","8002003410","800201001","производство (некомбинированная выработка)+передача+сбыт","WARM"]
[199,"Забайкальский край","Дульдургинский муниципальный район","76611000","Зуткулей","76611420","28867637","МУП \"Универсал+\"","8002004189","800201001","производство (некомбинированная выработка)+передача+сбыт","WARM"]
[200,"Забайкальский край","Дульдургинский муниципальный район","76611000","Зуткулей","76611420","27878468","ООО \"Энергосервис\"","8002004083","800201001","производство (некомбинированная выработка)+передача+сбыт","WARM"]
[201,"Забайкальский край","Дульдургинский муниципальный район","76611000","Зуткулей","76611420","30866315","Общество с ограниченной ответственностью \"УНИВЕРСАЛ+\"","8002021378","800201001","производство (некомбинированная выработка)+передача+сбыт","WARM"]
[202,"Забайкальский край","Дульдургинский муниципальный район","76611000","Иля","76611422","26540281","Администрация сельского поселения \"Иля\"","8002018142","800201001","производство (некомбинированная выработка)+передача+сбыт","WARM"]
[203,"Забайкальский край","Дульдургинский муниципальный район","76611000","Иля","76611422","28055649","МП \"Илинское ЖКХ\"","8002004100","800201001","производство (некомбинированная выработка)+передача+сбыт","WARM"]
[204,"Забайкальский край","Дульдургинский муниципальный район","76611000","Иля","76611422","26499830","МП Ключи","8002003393","800201001","производство (некомбинированная выработка)+передача+сбыт","WARM"]
[205,"Забайкальский край","Дульдургинский муниципальный район","76611000","Иля","76611422","30866315","Общество с ограниченной ответственностью \"УНИВЕРСАЛ+\"","8002021378","800201001","производство (некомбинированная выработка)+передача+сбыт","WARM"]
[206,"Забайкальский край","Дульдургинский муниципальный район","76611000","Таптанай","76611424","26499832","МП \"Таптанай\"","8002003509","800201001","производство (некомбинированная выработка)+передача+сбыт","WARM"]
[207,"Забайкальский край","Дульдургинский муниципальный район","76611000","Таптанай","76611424","28867637","МУП \"Универсал+\"","8002004189","800201001","производство (некомбинированная выработка)+передача+сбыт","WARM"]
[208,"Забайкальский край","Дульдургинский муниципальный район","76611000","Таптанай","76611424","27878468","ООО \"Энергосервис\"","8002004083","800201001","производство (некомбинированная выработка)+передача+сбыт","WARM"]
[209,"Забайкальский край","Дульдургинский муниципальный район","76611000","Таптанай","76611424","30866315","Общество с ограниченной ответственностью \"УНИВЕРСАЛ+\"","8002021378","800201001","производство (некомбинированная выработка)+передача+сбыт","WARM"]
[210,"Забайкальский край","Дульдургинский муниципальный район","76611000","Токчин","76611428","27711759","ГСУ СО \"Токчинский ДИПИ\" Забайкальского края","8002020367","800201001","производство (некомбинированная выработка)+передача+сбыт","WARM"]
[211,"Забайкальский край","Дульдургинский муниципальный район","76611000","Токчин","76611428","26499836","МП \"Туя\"","8002003474","800201001","производство (некомбинированная выработка)+передача+сбыт","WARM"]
[212,"Забайкальский край","Дульдургинский муниципальный район","76611000","Токчин","76611428","28867637","МУП \"Универсал+\"","8002004189","800201001","производство (некомбинированная выработка)+передача+сбыт","WARM"]
[213,"Забайкальский край","Дульдургинский муниципальный район","76611000","Токчин","76611428","27878468","ООО \"Энергосервис\"","8002004083","800201001","производство (некомбинированная выработка)+передача+сбыт","WARM"]
[214,"Забайкальский край","Дульдургинский муниципальный район","76611000","Токчин","76611428","30866315","Общество с ограниченной ответственностью \"УНИВЕРСАЛ+\"","8002021378","800201001","производство (некомбинированная выработка)+передача+сбыт","WARM"]
[215,"Забайкальский край","Дульдургинский муниципальный район","76611000","Узон","76611432","27573399","Администрация сельского поселения \"Узон\"","8002018960","800201001","производство (некомбинированная выработка)+передача+сбыт","WARM"]
[216,"Забайкальский край","Дульдургинский муниципальный район","76611000","Узон","76611432","26499838","МП \"Доодо-Элеэ\"","8002003555","800201001","производство (некомбинированная выработка)+передача+сбыт","WARM"]
[217,"Забайкальский край","Дульдургинский муниципальный район","76611000","Узон","76611432","28867637","МУП \"Универсал+\"","8002004189","800201001","производство (некомбинированная выработка)+передача+сбыт","WARM"]
[218,"Забайкальский край","Дульдургинский муниципальный район","76611000","Узон","76611432","27878468","ООО \"Энергосервис\"","8002004083","800201001","производство (некомбинированная выработка)+передача+сбыт","WARM"]
[219,"Забайкальский край","Дульдургинский муниципальный район","76611000","Узон","76611432","30866315","Общество с ограниченной ответственностью \"УНИВЕРСАЛ+\"","8002021378","800201001","производство (некомбинированная выработка)+передача+сбыт","WARM"]
[220,"Забайкальский край","Дульдургинский муниципальный район","76611000","Чиндалей","76611436","28867637","МУП \"Универсал+\"","8002004189","800201001","производство (некомбинированная выработка)+передача+сбыт","WARM"]
[221,"Забайкальский край","Дульдургинский муниципальный район","76611000","Чиндалей","76611436","26499840","Муниципальное предприятие \"Булаг\"","8002002382","800201001","производство (некомбинированная выработка)+передача+сбыт","WARM"]
[222,"Забайкальский край","Дульдургинский муниципальный район","76611000","Чиндалей","76611436","27878468","ООО \"Энергосервис\"","8002004083","800201001","производство (некомбинированная выработка)+передача+сбыт","WARM"]
[223,"Забайкальский край","Дульдургинский муниципальный район","76611000","Чиндалей","76611436","30866315","Общество с ограниченной ответственностью \"УНИВЕРСАЛ+\"","8002021378","800201001","производство (некомбинированная выработка)+передача+сбыт","WARM"]
[224,"Забайкальский край","Забайкальский муниципальный район","76612000","Билитуйское","76612415","26498141","ООО \"Коммунальник\"","7536089691","753601001","Передача+Сбыт","WARM"]
[225,"Забайкальский край","Забайкальский муниципальный район","76612000","Билитуйское","76612415","26498141","ООО \"Коммунальник\"","7536089691","753601001","производство (некомбинированная выработка)+передача+сбыт","WARM"]
[226,"Забайкальский край","Забайкальский муниципальный район","76612000","Билитуйское","76612415","26498141","ООО \"Коммунальник\"","7536089691","753601001","производство комбинированная выработка","WARM"]
[227,"Забайкальский край","Забайкальский муниципальный район","76612000","Даурское","76612425","26644769","ГУ \"Краснознаменное Пограничное управление Федеральной службы безопасности Российской Федерации по Забайкальскому краю\"","7536061093","750531002","производство (некомбинированная выработка)+передача+сбыт","WARM"]
[228,"Забайкальский край","Забайкальский муниципальный район","76612000","Даурское","76612425","26498139","Забайкальская дирекция по тепловодоснабжению - структурное подразделение Центральной дирекции по тепловодоснабжению филиала ОАО \"РЖД\"","7708503727","753602001","производство (некомбинированная выработка)+передача+сбыт","WARM"]
[229,"Забайкальский край","Забайкальский муниципальный район","76612000","Даурское","76612425","26498141","ООО \"Коммунальник\"","7536089691","753601001","Передача+Сбыт","WARM"]
[230,"Забайкальский край","Забайкальский муниципальный район","76612000","Даурское","76612425","26498141","ООО \"Коммунальник\"","7536089691","753601001","производство (некомбинированная выработка)+передача+сбыт","WARM"]
[231,"Забайкальский край","Забайкальский муниципальный район","76612000","Даурское","76612425","26498141","ООО \"Коммунальник\"","7536089691","753601001","производство комбинированная выработка","WARM"]
[232,"Забайкальский край","Забайкальский муниципальный район","76612000","Даурское","76612425","30874308","ФГКУ Пограничкое управление ФСБ России по Забайкальскому краю","7536061093","753601001","Передача+Сбыт","WARM"]
[233,"Забайкальский край","Забайкальский муниципальный район","76612000","Забайкальское","76612151","30375364","Акционерное общество \"РЖДстрой\"- филиал \"Строительно-монтажный трест № 15\"","7708587205","753602002","производство (некомбинированная выработка)+передача+сбыт","WARM"]
[234,"Забайкальский край","Забайкальский муниципальный район","76612000","Забайкальское","76612151","26644769","ГУ \"Краснознаменное Пограничное управление Федеральной службы безопасности Российской Федерации по Забайкальскому краю\"","7536061093","750531002","производство (некомбинированная выработка)+передача+сбыт","WARM"]
[235,"Забайкальский край","Забайкальский муниципальный район","76612000","Забайкальское","76612151","28007327","ЗАО \"ЭСК-Забайкальск\"","7505006127","750501001","производство (некомбинированная выработка)+передача+сбыт","WARM"]
[236,"Забайкальский край","Забайкальский муниципальный район","76612000","Забайкальское","76612151","26498139","Забайкальская дирекция по тепловодоснабжению - структурное подразделение Центральной дирекции по тепловодоснабжению филиала ОАО \"РЖД\"","7708503727","753602001","производство (некомбинированная выработка)+передача+сбыт","WARM"]
[237,"Забайкальский край","Забайкальский муниципальный район","76612000","Забайкальское","76612151","28456504","МАНУ \"Благоустройство\"","7505007561","750501001","Передача+Сбыт","WARM"]
[238,"Забайкальский край","Забайкальский муниципальный район","76612000","Забайкальское","76612151","28456504","МАНУ \"Благоустройство\"","7505007561","750501001","производство комбинированная выработка","WARM"]
[239,"Забайкальский край","Забайкальский муниципальный район","76612000","Забайкальское","76612151","26647283","ООО \"Заб. В.Т.С.\"","7505004049","750501001","производство (некомбинированная выработка)+передача+сбыт","WARM"]
[240,"Забайкальский край","Забайкальский муниципальный район","76612000","Забайкальское","76612151","26498141","ООО \"Коммунальник\"","7536089691","753601001","производство (некомбинированная выработка)+передача+сбыт","WARM"]
[241,"Забайкальский край","Забайкальский муниципальный район","76612000","Забайкальское","76612151","30874308","ФГКУ Пограничкое управление ФСБ России по Забайкальскому краю","7536061093","753601001","Передача+Сбыт","WARM"]
[242,"Забайкальский край","Каларский муниципальный район","76615000","Икабьинское","76615405","26651057","АО \"Тепловодоканал\"","7506004852","750601001","производство (некомбинированная выработка)+передача+сбыт","WARM"]
[243,"Забайкальский край","Каларский муниципальный район","76615000","Куандинское","76615407","26651057","АО \"Тепловодоканал\"","7506004852","750601001","производство (некомбинированная выработка)+передача+сбыт","WARM"]
[244,"Забайкальский край","Каларский муниципальный район","76615000","Новочарское","76615156","26651057","АО \"Тепловодоканал\"","7506004852","750601001","производство (некомбинированная выработка)+передача+сбыт","WARM"]
[245,"Забайкальский край","Каларский муниципальный район","76615000","Новочарское","76615156","26498159","Муниципальное унитарное предприятие \"Тепловодоканал\"","7506014152","750601001","производство (некомбинированная выработка)+передача+сбыт","WARM"]
[246,"Забайкальский край","Каларский муниципальный район","76615000","Чарское","76615444","26320249","МУП \"КАТЭК\"","7506004355","750601001","производство (некомбинированная выработка)+передача+сбыт","WARM"]
[247,"Забайкальский край","Каларский муниципальный район","76615000","Чарское","76615444","26498161","МУП \"Тепловик\"","7506004370","750601001","производство (некомбинированная выработка)+передача+сбыт","WARM"]
[248,"Забайкальский край","Каларский муниципальный район","76615000","Чарское","76615444","26651059","ООО \"Промтехинвест\"","7506004524","750601001","производство (некомбинированная выработка)+передача+сбыт","WARM"]
[249,"Забайкальский край","Калганский муниципальный район","76618000","Кадаинское","76618430","26375490","ООО \"Кадаинское\"","7507002223","750701001","производство (некомбинированная выработка)+передача+сбыт","WARM"]
[250,"Забайкальский край","Калганский муниципальный район","76618000","Калганское","76618433","26498163","ООО \"Калганское\"","7507002336","750701001","производство (некомбинированная выработка)+передача+сбыт","WARM"]
[251,"Забайкальский край","Карымский муниципальный район","76620000","Адриановское","76620405","26498139","Забайкальская дирекция по тепловодоснабжению - структурное подразделение Центральной дирекции по тепловодоснабжению филиала ОАО \"РЖД\"","7708503727","753602001","производство (некомбинированная выработка)+передача+сбыт","WARM"]
[252,"Забайкальский край","Карымский муниципальный район","76620000","Большетуринское","76620409","30335229","АО \"ГУ ЖКХ\"","5116000922","770401001","производство (некомбинированная выработка)+передача+сбыт","WARM"]
[253,"Забайкальский край","Карымский муниципальный район","76620000","Большетуринское","76620409","30431003","АО \"ГУ ЖКХ\"","5116000922","753645001","производство (некомбинированная выработка)+передача+сбыт","WARM"]
[254,"Забайкальский край","Карымский муниципальный район","76620000","Большетуринское","76620409","26645552","Войсковая часть 55281","7536053529","750843001","Передача+Сбыт","WARM"]
[255,"Забайкальский край","Карымский муниципальный район","76620000","Большетуринское","76620409","26645552","Войсковая часть 55281","7536053529","750843001","производство комбинированная выработка","WARM"]
[256,"Забайкальский край","Карымский муниципальный район","76620000","Большетуринское","76620409","26498174","Войсковая часть 96137 в лице 12 филиала","7536053529","753601001","производство (некомбинированная выработка)+передача+сбыт","WARM"]
[257,"Забайкальский край","Карымский муниципальный район","76620000","Большетуринское","76620409","26382781","Общество с ограниченой ответственностью \"ЗабТеплоСервис\"","7508005080","750801001","производство (некомбинированная выработка)+передача+сбыт","WARM"]
[258,"Забайкальский край","Карымский муниципальный район","76620000","Большетуринское","76620409","26834786","Филиал ОАО \"Ремонтно-эксплуатационное управление \"Забайкальский\"","7714783092","753643001","производство (некомбинированная выработка)+передача+сбыт","WARM"]
[259,"Забайкальский край","Карымский муниципальный район","76620000","Дарасунское","76620153","28872970","Администрация г.п. \"Дарасунское\"","7508004914","750801001","производство (некомбинированная выработка)+передача+сбыт","WARM"]
[260,"Забайкальский край","Карымский муниципальный район","76620000","Дарасунское","76620153","26647324","Войсковая часть 03820","7536053529","750843002","производство (некомбинированная выработка)+передача+сбыт","WARM"]
[261,"Забайкальский край","Карымский муниципальный район","76620000","Дарасунское","76620153","26375495","ОАО \"Завод горного оборудования\"","7508004135","750801001","производство (некомбинированная выработка)+передача+сбыт","WARM"]
[262,"Забайкальский край","Карымский муниципальный район","76620000","Дарасунское","76620153","30372462","ООО \"Авангард плюс\"","7524018664","752401001","производство (некомбинированная выработка)+передача+сбыт","WARM"]
[263,"Забайкальский край","Карымский муниципальный район","76620000","Дарасунское","76620153","26498172","ООО \"Кварц\"","7508000941","750801001","Передача+Сбыт","WARM"]
[264,"Забайкальский край","Карымский муниципальный район","76620000","Дарасунское","76620153","26382781","Общество с ограниченой ответственностью \"ЗабТеплоСервис\"","7508005080","750801001","производство (некомбинированная выработка)+передача+сбыт","WARM"]
[265,"Забайкальский край","Карымский муниципальный район","76620000","Дарасунское","76620153","26834786","Филиал ОАО \"Ремонтно-эксплуатационное управление \"Забайкальский\"","7714783092","753643001","производство (некомбинированная выработка)+передача+сбыт","WARM"]
[266,"Забайкальский край","Карымский муниципальный район","76620000","Кадахтинское","76620425","26382781","Общество с ограниченой ответственностью \"ЗабТеплоСервис\"","7508005080","750801001","производство (некомбинированная выработка)+передача+сбыт","WARM"]
[267,"Забайкальский край","Карымский муниципальный район","76620000","Кайдаловское","76620430","26498170","ООО «Тепловик»","7508005996","750801001","производство (некомбинированная выработка)+передача+сбыт","WARM"]
[268,"Забайкальский край","Карымский муниципальный район","76620000","Карымское","76620151","28055869","ГКУ \"Центр МТО\" Забайкальского края","7536095423","753601001","производство (некомбинированная выработка)+передача+сбыт","WARM"]
[269,"Забайкальский край","Карымский муниципальный район","76620000","Карымское","76620151","30374981","ГКУ \"Центр МТО\" Забайкальского края","7536095423","753601001","Передача","WARM"]
[270,"Забайкальский край","Карымский муниципальный район","76620000","Карымское","76620151","30365558","ГКУ \"Центр МТО\" Забайкальского края","7536098181","753601001","производство (некомбинированная выработка)+передача+сбыт","WARM"]
[271,"Забайкальский край","Карымский муниципальный район","76620000","Карымское","76620151","26498139","Забайкальская дирекция по тепловодоснабжению - структурное подразделение Центральной дирекции по тепловодоснабжению филиала ОАО \"РЖД\"","7708503727","753602001","производство (некомбинированная выработка)+передача+сбыт","WARM"]
[272,"Забайкальский край","Карымский муниципальный район","76620000","Карымское","76620151","26375492","ИП Плахин К.В.","750800002865","750801001","производство (некомбинированная выработка)","WARM"]
[273,"Забайкальский край","Карымский муниципальный район","76620000","Карымское","76620151","26375496","МУП ЖКХ \"Коммунальник\"","7508004657","750801001","производство (некомбинированная выработка)+передача+сбыт","WARM"]
[274,"Забайкальский край","Карымский муниципальный район","76620000","Карымское","76620151","30375245","ООО \"Забайкальская теплоснабжающая организация\"","7508007048","750801001","производство (некомбинированная выработка)+передача+сбыт","WARM"]
[275,"Забайкальский край","Карымский муниципальный район","76620000","Карымское","76620151","26530872","ООО \"Коммунальник\"","7508005964","750801001","производство (некомбинированная выработка)+передача+сбыт","WARM"]
[276,"Забайкальский край","Карымский муниципальный район","76620000","Карымское","76620151","30840245","ООО \"Коммунальник+\"","7508007111","750801001","Теплоноситель - Сбыт :: Производство :: Передача","WARM"]
[277,"Забайкальский край","Карымский муниципальный район","76620000","Карымское","76620151","30840245","ООО \"Коммунальник+\"","7508007111","750801001","производство (некомбинированная выработка)+передача+сбыт","WARM"]
[278,"Забайкальский край","Карымский муниципальный район","76620000","Карымское","76620151","26498170","ООО «Тепловик»","7508005996","750801001","производство (некомбинированная выработка)+передача+сбыт","WARM"]
[279,"Забайкальский край","Карымский муниципальный район","76620000","Курорт-Дарасунское","76620157","30335229","АО \"ГУ ЖКХ\"","5116000922","770401001","производство (некомбинированная выработка)+передача+сбыт","WARM"]
[280,"Забайкальский край","Карымский муниципальный район","76620000","Курорт-Дарасунское","76620157","30431003","АО \"ГУ ЖКХ\"","5116000922","753645001","производство (некомбинированная выработка)+передача+сбыт","WARM"]
[281,"Забайкальский край","Карымский муниципальный район","76620000","Курорт-Дарасунское","76620157","27572737","Государственное учреждение здравоохранения \"Забайкальские санатории\"","7536112728","753601001","производство (некомбинированная выработка)+передача+сбыт","WARM"]
[282,"Забайкальский край","Карымский муниципальный район","76620000","Курорт-Дарасунское","76620157","26375494","МУП ЖКХ п. Курорт-Дарасун","7508003491","750801001","производство (некомбинированная выработка)+передача+сбыт","WARM"]
[283,"Забайкальский край","Карымский муниципальный район","76620000","Курорт-Дарасунское","76620157","26382781","Общество с ограниченой ответственностью \"ЗабТеплоСервис\"","7508005080","750801001","производство (некомбинированная выработка)+передача+сбыт","WARM"]
[284,"Забайкальский край","Карымский муниципальный район","76620000","Курорт-Дарасунское","76620157","26834786","Филиал ОАО \"Ремонтно-эксплуатационное управление \"Забайкальский\"","7714783092","753643001","производство (некомбинированная выработка)+передача+сбыт","WARM"]
[285,"Забайкальский край","Карымский муниципальный район","76620000","Маякинское","76620435","26498170","ООО «Тепловик»","7508005996","750801001","производство (некомбинированная выработка)+передача+сбыт","WARM"]
[286,"Забайкальский край","Карымский муниципальный район","76620000","Нарын-Талачинское","76620440","30375245","ООО \"Забайкальская теплоснабжающая организация\"","7508007048","750801001","производство (некомбинированная выработка)+передача+сбыт","WARM"]
[287,"Забайкальский край","Карымский муниципальный район","76620000","Тыргетуйское","76620450","26498176","ГУП Учреждения ЯГ-14/2","7508004199","750801001","производство (некомбинированная выработка)+передача+сбыт","WARM"]
[288,"Забайкальский край","Карымский муниципальный район","76620000","Тыргетуйское","76620450","26382781","Общество с ограниченой ответственностью \"ЗабТеплоСервис\"","7508005080","750801001","производство (некомбинированная выработка)+передача+сбыт","WARM"]
[289,"Забайкальский край","Карымский муниципальный район","76620000","Тыргетуйское","76620450","26642427","ЦТАО ФБУ ИК-2 УФСИН России по Забайкальскому краю","7508002402","750801001","производство (некомбинированная выработка)+передача+сбыт","WARM"]
[290,"Забайкальский край","Карымский муниципальный район","76620000","Урульгинское","76620455","26498139","Забайкальская дирекция по тепловодоснабжению - структурное подразделение Центральной дирекции по тепловодоснабжению филиала ОАО \"РЖД\"","7708503727","753602001","производство (некомбинированная выработка)+передача+сбыт","WARM"]
[291,"Забайкальский край","Карымский муниципальный район","76620000","Урульгинское","76620455","26498170","ООО «Тепловик»","7508005996","750801001","производство (некомбинированная выработка)+передача+сбыт","WARM"]
[292,"Забайкальский край","Карымский муниципальный район","76620000","Урульгинское","76620455","26498178","Общество с ограниченной ответственностью «Урульгинское»","7508004544","750801001","производство (некомбинированная выработка)+передача+сбыт","WARM"]
[293,"Забайкальский край","Красночикойский муниципальный район","76622000","Альбитуйское","76622405","26375593","МУП \"РЖКХ\"","7538000040","753801001","производство (некомбинированная выработка)+передача+сбыт","WARM"]
[294,"Забайкальский край","Красночикойский муниципальный район","76622000","Архангельское","76622410","26375593","МУП \"РЖКХ\"","7538000040","753801001","производство (некомбинированная выработка)+передача+сбыт","WARM"]
[295,"Забайкальский край","Красночикойский муниципальный район","76622000","Байхорское","76622415","26375593","МУП \"РЖКХ\"","7538000040","753801001","производство (некомбинированная выработка)+передача+сбыт","WARM"]
[296,"Забайкальский край","Красночикойский муниципальный район","76622000","Большеречинское","76622420","26375593","МУП \"РЖКХ\"","7538000040","753801001","производство (некомбинированная выработка)+передача+сбыт","WARM"]
[297,"Забайкальский край","Красночикойский муниципальный район","76622000","Верхнешергольджинское","76622425","26375593","МУП \"РЖКХ\"","7538000040","753801001","производство (некомбинированная выработка)+передача+сбыт","WARM"]
[298,"Забайкальский край","Красночикойский муниципальный район","76622000","Жиндойское","76622430","26375593","МУП \"РЖКХ\"","7538000040","753801001","производство (некомбинированная выработка)+передача+сбыт","WARM"]
[299,"Забайкальский край","Красночикойский муниципальный район","76622000","Захаровское","76622435","26375593","МУП \"РЖКХ\"","7538000040","753801001","производство (некомбинированная выработка)+передача+сбыт","WARM"]
[300,"Забайкальский край","Красночикойский муниципальный район","76622000","Конкинское","76622470","26375593","МУП \"РЖКХ\"","7538000040","753801001","производство (некомбинированная выработка)+передача+сбыт","WARM"]
[301,"Забайкальский край","Красночикойский муниципальный район","76622000","Коротковское","76622440","26375593","МУП \"РЖКХ\"","7538000040","753801001","производство (некомбинированная выработка)+передача+сбыт","WARM"]
[302,"Забайкальский край","Красночикойский муниципальный район","76622000","Красночикойское","76622445","26375499","Государственное образовательное учреждение среднего профессионального образования «Красночикойский аграрно-педагогический техникум»","7509004240","750901001","производство (некомбинированная выработка)+передача+сбыт","WARM"]
[303,"Забайкальский край","Красночикойский муниципальный район","76622000","Красночикойское","76622445","26498180","ЗАО \"Слюдянка\"","7509001120","750901001","производство (некомбинированная выработка)+передача+сбыт","WARM"]
[304,"Забайкальский край","Красночикойский муниципальный район","76622000","Красночикойское","76622445","26503247","МП редакция газеты \"Знамя труда\"","7509001049","750901001","производство (некомбинированная выработка)+передача+сбыт","WARM"]
[305,"Забайкальский край","Красночикойский муниципальный район","76622000","Красночикойское","76622445","26375593","МУП \"РЖКХ\"","7538000040","753801001","производство (некомбинированная выработка)+передача+сбыт","WARM"]
[306,"Забайкальский край","Красночикойский муниципальный район","76622000","Красночикойское","76622445","26777504","ООО \"ЖКХ СЕРВИС\"","7509004794","750901001","производство (некомбинированная выработка)+передача+сбыт","WARM"]
[307,"Забайкальский край","Красночикойский муниципальный район","76622000","Красночикойское","76622445","28011230","ООО «ЧКБ»","7509004963","750901001","производство (некомбинированная выработка)+передача+сбыт","WARM"]
[308,"Забайкальский край","Красночикойский муниципальный район","76622000","Малоархангельское","76622450","26375593","МУП \"РЖКХ\"","7538000040","753801001","производство (некомбинированная выработка)+передача+сбыт","WARM"]
[309,"Забайкальский край","Красночикойский муниципальный район","76622000","Малоархангельское","76622450","27500831","ООО \"ПрофСервис\"","7509004882","750901001","производство (некомбинированная выработка)+передача+сбыт","WARM"]
[310,"Забайкальский край","Красночикойский муниципальный район","76622000","Мензинское","76622455","26375593","МУП \"РЖКХ\"","7538000040","753801001","производство (некомбинированная выработка)+передача+сбыт","WARM"]
[311,"Забайкальский край","Красночикойский муниципальный район","76622000","Мензинское","76622455","27500584","ООО \"СтройМонтаж\"","7509004297","750901001","производство комбинированная выработка","WARM"]
[312,"Забайкальский край","Красночикойский муниципальный район","76622000","Урлукское","76622460","26375593","МУП \"РЖКХ\"","7538000040","753801001","производство (некомбинированная выработка)+передача+сбыт","WARM"]
[313,"Забайкальский край","Красночикойский муниципальный район","76622000","Черемховское","76622475","26375593","МУП \"РЖКХ\"","7538000040","753801001","производство (некомбинированная выработка)+передача+сбыт","WARM"]
[314,"Забайкальский край","Красночикойский муниципальный район","76622000","Черемховское","76622475","30884855","ООО \"Энергия\"","7509005163","750901001","производство (некомбинированная выработка)+передача+сбыт","WARM"]
[315,"Забайкальский край","Красночикойский муниципальный район","76622000","Шимбиликское","76622480","26375593","МУП \"РЖКХ\"","7538000040","753801001","производство (некомбинированная выработка)+передача+сбыт","WARM"]
[316,"Забайкальский край","Кыринский муниципальный район","76624000","Кыринское","76624425","26375500","МУП \"Коммунальник\"","7510003065","751001001","производство (некомбинированная выработка)+передача+сбыт","WARM"]
[317,"Забайкальский край","Кыринский муниципальный район","76624000","Мангутское","76624435","30335229","АО \"ГУ ЖКХ\"","5116000922","770401001","производство (некомбинированная выработка)+передача+сбыт","WARM"]
[318,"Забайкальский край","Кыринский муниципальный район","76624000","Мангутское","76624435","30431003","АО \"ГУ ЖКХ\"","5116000922","753645001","производство (некомбинированная выработка)+передача+сбыт","WARM"]
[319,"Забайкальский край","Кыринский муниципальный район","76624000","Мангутское","76624435","30877679","СЛУЖБА В С. МАНГУТ ПУ ФСБ РОССИИ ПО ЗАБАЙКАЛЬСКОМУ КРАЮ","7536061093","751045002","производство (некомбинированная выработка)+передача+сбыт","WARM"]
[320,"Забайкальский край","Кыринский муниципальный район","76624000","Мангутское","76624435","26834786","Филиал ОАО \"Ремонтно-эксплуатационное управление \"Забайкальский\"","7714783092","753643001","производство (некомбинированная выработка)+передача+сбыт","WARM"]
[321,"Забайкальский край","Могойтуйский муниципальный район","76625000","Ага-Хангил","76625404","26499846","Администрация с.п.\"Ага-Хангил\"","8003021204","800301001","производство (некомбинированная выработка)+передача+сбыт","WARM"]
[322,"Забайкальский край","Могойтуйский муниципальный район","76625000","Ага-Хангил","76625404","26775579","МП Тепловые сети","8003039138","800301001","производство (некомбинированная выработка)+передача+сбыт","WARM"]
[323,"Забайкальский край","Могойтуйский муниципальный район","76625000","Боржигантай","76625408","26499848","Администрация сельского поселения \"Боржигантай\" мр \"Могойтуйский район\"","8003021557","800301001","производство (некомбинированная выработка)+передача+сбыт","WARM"]
[324,"Забайкальский край","Могойтуйский муниципальный район","76625000","Боржигантай","76625408","26649887","МП \"Онон\"","8003039177","800301001","производство (некомбинированная выработка)+передача+сбыт","WARM"]
[325,"Забайкальский край","Могойтуйский муниципальный район","76625000","Догой","76625412","26499850","Администрация сельского поселения \"Догой\"","8003021684","800301001","производство (некомбинированная выработка)+передача+сбыт","WARM"]
[326,"Забайкальский край","Могойтуйский муниципальный район","76625000","Догой","76625412","26649889","МП \"Догойские теплосети\"","8003039219","800301001","производство (некомбинированная выработка)+передача+сбыт","WARM"]
[327,"Забайкальский край","Могойтуйский муниципальный район","76625000","Догой","76625412","27958122","ООО \"Тепломакс\"","8003039748","800301001","производство (некомбинированная выработка)+передача+сбыт","WARM"]
[328,"Забайкальский край","Могойтуйский муниципальный район","76625000","Зугалай","76625416","26499854","Администрация с.п.\"Зугалай\"","8003021211","800301001","производство (некомбинированная выработка)+передача+сбыт","WARM"]
[329,"Забайкальский край","Могойтуйский муниципальный район","76625000","Зугалай","76625416","26649940","МП \"Одон\"","8003024702","800301001","производство (некомбинированная выработка)+передача+сбыт","WARM"]
[330,"Забайкальский край","Могойтуйский муниципальный район","76625000","Зугалай","76625416","30877315","ООО \"Одон\"","8003040221","800301001","производство (некомбинированная выработка)+передача+сбыт","WARM"]
[331,"Забайкальский край","Могойтуйский муниципальный район","76625000","Кусоча","76625448","26499842","Администрация с.п. \"Кусоча\"","8003021229","800301001","производство (некомбинированная выработка)+передача+сбыт","WARM"]
[332,"Забайкальский край","Могойтуйский муниципальный район","76625000","Кусоча","76625448","28272601","Жамсаранов Пурбо Гырылович","800300653274","отсутствует","производство (некомбинированная выработка)+передача+сбыт","WARM"]
[333,"Забайкальский край","Могойтуйский муниципальный район","76625000","Кусоча","76625448","26651181","ИП Тумунбаяров Б.Б.","800301093667","800301001","производство (некомбинированная выработка)+передача+сбыт","WARM"]
[334,"Забайкальский край","Могойтуйский муниципальный район","76625000","Могойтуй","76625151","26498139","Забайкальская дирекция по тепловодоснабжению - структурное подразделение Центральной дирекции по тепловодоснабжению филиала ОАО \"РЖД\"","7708503727","753602001","производство (некомбинированная выработка)+передача+сбыт","WARM"]
[335,"Забайкальский край","Могойтуйский муниципальный район","76625000","Могойтуй","76625151","26499826","ИП Балян С.В.","753605126326","753601001","производство (некомбинированная выработка)+передача+сбыт","WARM"]
[336,"Забайкальский край","Могойтуйский муниципальный район","76625000","Могойтуй","76625151","27500727","ИП Дашижигмитова Т.Б.","800301470019","отсутствует","производство (некомбинированная выработка)+передача+сбыт","WARM"]
[337,"Забайкальский край","Могойтуйский муниципальный район","76625000","Могойтуй","76625151","28462344","ОАО \"Могойтуйская МСО\"","8003021109","800301001","производство (некомбинированная выработка)+передача+сбыт","WARM"]
[338,"Забайкальский край","Могойтуйский муниципальный район","76625000","Могойтуй","76625151","26777534","ООО \"Могойтуйские теплосети\"","8003039441","800301001","производство (некомбинированная выработка)+передача+сбыт","WARM"]
[339,"Забайкальский край","Могойтуйский муниципальный район","76625000","Могойтуй","76625151","27500719","ООО \"Промышленная зона п. Могойтуй\"","8003038455","800301001","производство (некомбинированная выработка)+передача+сбыт","WARM"]
[340,"Забайкальский край","Могойтуйский муниципальный район","76625000","Нуринск","76625418","26499856","Администрация с.п.\"Нуринск\"","8003021959","800301001","производство (некомбинированная выработка)+передача+сбыт","WARM"]
[341,"Забайкальский край","Могойтуйский муниципальный район","76625000","Нуринск","76625418","26649954","МП \"Надежда\"","8003039152","800301001","производство (некомбинированная выработка)+передача+сбыт","WARM"]
[342,"Забайкальский край","Могойтуйский муниципальный район","76625000","Нуринск","76625418","30385965","ООО \"Гелиос\"","8003040084","800301001","Теплоноситель - Сбыт :: Производство","WARM"]
[343,"Забайкальский край","Могойтуйский муниципальный район","76625000","Нуринск","76625418","30385965","ООО \"Гелиос\"","8003040084","800301001","производство (некомбинированная выработка)+сбыт","WARM"]
[344,"Забайкальский край","Могойтуйский муниципальный район","76625000","Ортуй","76625420","26499858","Администрация с.п. \"Ортуй\"","8003021596","800301001","производство (некомбинированная выработка)+передача+сбыт","WARM"]
[345,"Забайкальский край","Могойтуйский муниципальный район","76625000","Ортуй","76625420","28463996","ООО \"Титан Плюс\"","8003039917","800301001","производство (некомбинированная выработка)+передача+сбыт","WARM"]
[346,"Забайкальский край","Могойтуйский муниципальный район","76625000","Усть-Нарин","76625422","26499860","Администрация с.п. \"Усть-Нарин\"","8003021275","800301001","производство (некомбинированная выработка)+передача+сбыт","WARM"]
[347,"Забайкальский край","Могойтуйский муниципальный район","76625000","Усть-Нарин","76625422","27500761","МП \"Тепловые сети\"","8003039160","800301001","производство (некомбинированная выработка)+передача+сбыт","WARM"]
[348,"Забайкальский край","Могойтуйский муниципальный район","76625000","Усть-Нарин","76625422","26499844","Муниципальное предприятие «Тепловые сети»","8003038840","800301001","производство (некомбинированная выработка)+передача+сбыт","WARM"]
[349,"Забайкальский край","Могойтуйский муниципальный район","76625000","Ушарбай","76625424","26498139","Забайкальская дирекция по тепловодоснабжению - структурное подразделение Центральной дирекции по тепловодоснабжению филиала ОАО \"РЖД\"","7708503727","753602001","производство (некомбинированная выработка)+передача+сбыт","WARM"]
[350,"Забайкальский край","Могойтуйский муниципальный район","76625000","Ушарбай","76625424","26651183","МП \"Ажалчин\"","8003036521","800301001","производство (некомбинированная выработка)+передача+сбыт","WARM"]
[351,"Забайкальский край","Могойтуйский муниципальный район","76625000","Хара-Шибирь","76625428","26499862","Администрация с.п. \"Хара-Шибирь\"","8003021469","800301001","производство (некомбинированная выработка)+передача+сбыт","WARM"]
[352,"Забайкальский край","Могойтуйский муниципальный район","76625000","Хара-Шибирь","76625428","26651193","МП \"Темп\"","8003039201","800301001","производство (некомбинированная выработка)+передача+сбыт","WARM"]
[353,"Забайкальский край","Могойтуйский муниципальный район","76625000","Хара-Шибирь","76625428","27977669","ООО \"Темп\"","8003039770","800301001","производство (некомбинированная выработка)+передача+сбыт","WARM"]
[354,"Забайкальский край","Могойтуйский муниципальный район","76625000","Хила","76625432","30335229","АО \"ГУ ЖКХ\"","5116000922","770401001","производство (некомбинированная выработка)+передача+сбыт","WARM"]
[355,"Забайкальский край","Могойтуйский муниципальный район","76625000","Хила","76625432","30431003","АО \"ГУ ЖКХ\"","5116000922","753645001","производство (некомбинированная выработка)+передача+сбыт","WARM"]
[356,"Забайкальский край","Могойтуйский муниципальный район","76625000","Хила","76625432","26499866","Администрация сп \"Хила\"","8003021490","800301001","производство (некомбинированная выработка)+передача+сбыт","WARM"]
[357,"Забайкальский край","Могойтуйский муниципальный район","76625000","Хила","76625432","26498139","Забайкальская дирекция по тепловодоснабжению - структурное подразделение Центральной дирекции по тепловодоснабжению филиала ОАО \"РЖД\"","7708503727","753602001","производство (некомбинированная выработка)+передача+сбыт","WARM"]
[358,"Забайкальский край","Могойтуйский муниципальный район","76625000","Хила","76625432","26649993","МП \"Теплосеть\"","8003039226","800301001","производство (некомбинированная выработка)+передача+сбыт","WARM"]
[359,"Забайкальский край","Могойтуйский муниципальный район","76625000","Хила","76625432","26834786","Филиал ОАО \"Ремонтно-эксплуатационное управление \"Забайкальский\"","7714783092","753643001","производство (некомбинированная выработка)+передача+сбыт","WARM"]
[360,"Забайкальский край","Могойтуйский муниципальный район","76625000","Цаган-Ола","76625436","26499868","Администрация с.п. \"Цаган-Ола\"","8003021853","800301001","производство (некомбинированная выработка)+передача+сбыт","WARM"]
[361,"Забайкальский край","Могойтуйский муниципальный район","76625000","Цаган-Ола","76625436","26651208","МП \"Радуга\"","8003039184","800301001","производство (некомбинированная выработка)+передача+сбыт","WARM"]
[362,"Забайкальский край","Могойтуйский муниципальный район","76625000","Цаган-Ола","76625436","28286380","ООО \"Теплострой\"","8003039931","800301001","производство (некомбинированная выработка)+передача+сбыт","WARM"]
[363,"Забайкальский край","Могойтуйский муниципальный район","76625000","Цаган-Челутай","76625440","30335229","АО \"ГУ ЖКХ\"","5116000922","770401001","производство (некомбинированная выработка)+передача+сбыт","WARM"]
[364,"Забайкальский край","Могойтуйский муниципальный район","76625000","Цаган-Челутай","76625440","30431003","АО \"ГУ ЖКХ\"","5116000922","753645001","производство (некомбинированная выработка)+передача+сбыт","WARM"]
[365,"Забайкальский край","Могойтуйский муниципальный район","76625000","Цаган-Челутай","76625440","26499870","Администрация сельского поселения \"Цаган-Челутай\"","8003021500","800301001","производство (некомбинированная выработка)+передача+сбыт","WARM"]
[366,"Забайкальский край","Могойтуйский муниципальный район","76625000","Цаган-Челутай","76625440","26649999","МУП \"Цаган-Челутай\"","8003024533","800301001","производство (некомбинированная выработка)+передача+сбыт","WARM"]
[367,"Забайкальский край","Могойтуйский муниципальный район","76625000","Цаган-Челутай","76625440","30417799","ООО \"Тепловые энергетические сети\"","8003040060","800301001","производство (некомбинированная выработка)+сбыт","WARM"]
[368,"Забайкальский край","Могойтуйский муниципальный район","76625000","Цаган-Челутай","76625440","26834786","Филиал ОАО \"Ремонтно-эксплуатационное управление \"Забайкальский\"","7714783092","753643001","производство (некомбинированная выработка)+передача+сбыт","WARM"]
[369,"Забайкальский край","Могойтуйский муниципальный район","76625000","Цугол","76625444","30335229","АО \"ГУ ЖКХ\"","5116000922","770401001","производство (некомбинированная выработка)+передача+сбыт","WARM"]
[370,"Забайкальский край","Могойтуйский муниципальный район","76625000","Цугол","76625444","30431003","АО \"ГУ ЖКХ\"","5116000922","753645001","производство (некомбинированная выработка)+передача+сбыт","WARM"]
[371,"Забайкальский край","Могойтуйский муниципальный район","76625000","Цугол","76625444","26834786","Филиал ОАО \"Ремонтно-эксплуатационное управление \"Забайкальский\"","7714783092","753643001","производство (некомбинированная выработка)+передача+сбыт","WARM"]
[372,"Забайкальский край","Могочинский муниципальный район","76626000","Амазарское","76626154","26498139","Забайкальская дирекция по тепловодоснабжению - структурное подразделение Центральной дирекции по тепловодоснабжению филиала ОАО \"РЖД\"","7708503727","753602001","производство (некомбинированная выработка)+передача+сбыт","WARM"]
[373,"Забайкальский край","Могочинский муниципальный район","76626000","Амазарское","76626154","26498186","ООО \"Амазар\"","7512005043","751201001","производство (некомбинированная выработка)+передача+сбыт","WARM"]
[374,"Забайкальский край","Могочинский муниципальный район","76626000","Давендинское","76626156","26375503","МУП ЖКХ \"Давенда\"","7512003215","751201001","производство (некомбинированная выработка)+передача+сбыт","WARM"]
[375,"Забайкальский край","Могочинский муниципальный район","76626000","Давендинское","76626156","30852386","ООО \"ЖКХ Теплосервис\"","7512005893","751201001","производство (некомбинированная выработка)+сбыт","WARM"]
[376,"Забайкальский край","Могочинский муниципальный район","76626000","Ключевское","76626160","26382785","МУП ЖКХ \"Ключевский\"","7512003222","751201001","производство (некомбинированная выработка)+передача+сбыт","WARM"]
[377,"Забайкальский край","Могочинский муниципальный район","76626000","Ксеньевское","76626162","26498139","Забайкальская дирекция по тепловодоснабжению - структурное подразделение Центральной дирекции по тепловодоснабжению филиала ОАО \"РЖД\"","7708503727","753602001","производство (некомбинированная выработка)+передача+сбыт","WARM"]
[378,"Забайкальский край","Могочинский муниципальный район","76626000","Ксеньевское","76626162","26382790","МУП ЖКХ \"Забайкалье\"","7512004829","751201001","производство (некомбинированная выработка)+передача+сбыт","WARM"]
[379,"Забайкальский край","Могочинский муниципальный район","76626000","Ксеньевское","76626162","28151376","ООО \"Котельная\"","7512005477","721201001","производство (некомбинированная выработка)+передача+сбыт","WARM"]
[380,"Забайкальский край","Могочинский муниципальный район","76626000","Ксеньевское","76626162","27505219","ООО \"ТСК\"","7512005325","751201001","производство (некомбинированная выработка)+передача+сбыт","WARM"]
[381,"Забайкальский край","Могочинский муниципальный район","76626000","Могочинское","76626101","30335229","АО \"ГУ ЖКХ\"","5116000922","770401001","производство (некомбинированная выработка)+передача+сбыт","WARM"]
[382,"Забайкальский край","Могочинский муниципальный район","76626000","Могочинское","76626101","30431003","АО \"ГУ ЖКХ\"","5116000922","753645001","производство (некомбинированная выработка)+передача+сбыт","WARM"]
[383,"Забайкальский край","Могочинский муниципальный район","76626000","Могочинское","76626101","30375364","Акционерное общество \"РЖДстрой\"- филиал \"Строительно-монтажный трест № 15\"","7708587205","753602002","производство (некомбинированная выработка)+передача+сбыт","WARM"]
[384,"Забайкальский край","Могочинский муниципальный район","76626000","Могочинское","76626101","28086500","ГОУ Могочинская специальная (коррекционная) школа-интернат VIII вида","7512000310","751201001","производство (некомбинированная выработка)+передача+сбыт","WARM"]
[385,"Забайкальский край","Могочинский муниципальный район","76626000","Могочинское","76626101","26498139","Забайкальская дирекция по тепловодоснабжению - структурное подразделение Центральной дирекции по тепловодоснабжению филиала ОАО \"РЖД\"","7708503727","753602001","производство (некомбинированная выработка)+передача+сбыт","WARM"]
[386,"Забайкальский край","Могочинский муниципальный район","76626000","Могочинское","76626101","28047655","ИП Дружинина Н.А.","751202983437","отсутствует","производство (некомбинированная выработка)+передача+сбыт","WARM"]
[387,"Забайкальский край","Могочинский муниципальный район","76626000","Могочинское","76626101","28980466","Могочинская дистанция гражданских сооружений","7708503727","751245167","производство (некомбинированная выработка)+передача+сбыт","WARM"]
[388,"Забайкальский край","Могочинский муниципальный район","76626000","Могочинское","76626101","30870797","ООО \"РСО \"Тепловодоканал\"","7512005928","751201001","производство (некомбинированная выработка)+передача+сбыт","WARM"]
[389,"Забайкальский край","Могочинский муниципальный район","76626000","Могочинское","76626101","28425792","ООО \"Ресурсоснабжающая организация\"Тепловодоканал\"","7512005678","751201001","производство (некомбинированная выработка)+передача+сбыт","WARM"]
[390,"Забайкальский край","Могочинский муниципальный район","76626000","Могочинское","76626101","28106240","ООО \"Стройтрест\"","7536067708","753601001","производство (некомбинированная выработка)+передача+сбыт","WARM"]
[391,"Забайкальский край","Могочинский муниципальный район","76626000","Могочинское","76626101","26498184","ООО \"Тепловодоканал\"","7512005029","751201001","производство (некомбинированная выработка)+передача+сбыт","WARM"]
[392,"Забайкальский край","Могочинский муниципальный район","76626000","Могочинское","76626101","27573001","Путевая машинная станция № 328 Дирекции по ремонту пути Забайкальской железной дороги - филиала ОАО \"РЖД\"","7708503727","996550001","производство (некомбинированная выработка)+передача+сбыт","WARM"]
[393,"Забайкальский край","Могочинский муниципальный район","76626000","Могочинское","76626101","26834786","Филиал ОАО \"Ремонтно-эксплуатационное управление \"Забайкальский\"","7714783092","753643001","производство (некомбинированная выработка)+передача+сбыт","WARM"]
[394,"Забайкальский край","Могочинский муниципальный район","76626000","Сбегинское","76626410","26498139","Забайкальская дирекция по тепловодоснабжению - структурное подразделение Центральной дирекции по тепловодоснабжению филиала ОАО \"РЖД\"","7708503727","753602001","производство (некомбинированная выработка)+передача+сбыт","WARM"]
[395,"Забайкальский край","Могочинский муниципальный район","76626000","Сбегинское","76626410","26375505","МУП ЖКХ \"Сбега\"","7512003350","751201001","производство (некомбинированная выработка)+передача+сбыт","WARM"]
[396,"Забайкальский край","Могочинский муниципальный район","76626000","Сбегинское","76626410","30867028","ООО \"ГАРАНТиЯ\"","7536155633","753601001","производство (некомбинированная выработка)+сбыт","WARM"]
[397,"Забайкальский край","Могочинский муниципальный район","76626000","Сбегинское","76626410","28006924","ООО \"ТВСК \"Услуга плюс\"","7512005526","751201001","производство (некомбинированная выработка)+передача+сбыт","WARM"]
[398,"Забайкальский край","Могочинский муниципальный район","76626000","Сбегинское","76626410","27500841","ООО \"ТВСК Услуга\"","7512005406","751201001","производство (некомбинированная выработка)+передача+сбыт","WARM"]
[399,"Забайкальский край","Могочинский муниципальный район","76626000","Семиозернинское","76626408","26498199","МОУ ООш с.Таптугары","7512003279","751201001","производство (некомбинированная выработка)+передача+сбыт","WARM"]
[400,"Забайкальский край","Могочинский муниципальный район","76626000","Семиозернинское","76626408","26375593","МУП \"РЖКХ\"","7538000040","753801001","производство (некомбинированная выработка)+передача+сбыт","WARM"]
[401,"Забайкальский край","Могочинский муниципальный район","76626000","Семиозернинское","76626408","26375504","МУП ЖКХ \"Семиозерный\"","7512003261","751201001","производство (некомбинированная выработка)+передача+сбыт","WARM"]
[402,"Забайкальский край","Могочинский муниципальный район","76626000","Семиозернинское","76626408","26498186","ООО \"Амазар\"","7512005043","751201001","производство (некомбинированная выработка)+передача+сбыт","WARM"]
[403,"Забайкальский край","Нерчинский муниципальный район","76628000","Андронниковское","76628415","26498275","МОУ ООШ с. Волочаевка","7513004290","751301001","производство (некомбинированная выработка)+передача+сбыт","WARM"]
[404,"Забайкальский край","Нерчинский муниципальный район","76628000","Верхнеключевское","76628410","26498273","Администрация с.п. \"Верхнеключевское\"","7513004395","751301001","производство (некомбинированная выработка)+передача+сбыт","WARM"]
[405,"Забайкальский край","Нерчинский муниципальный район","76628000","Зареченское","76628420","27500914","Администрация с.п. \"Зареченское\"","7513005487","751301001","производство (некомбинированная выработка)+передача+сбыт","WARM"]
[406,"Забайкальский край","Нерчинский муниципальный район","76628000","Знаменское","76628425","26498277","Администрация сельского поселения \"Знаменское\"","7513005470","751301001","производство (некомбинированная выработка)+передача+сбыт","WARM"]
[407,"Забайкальский край","Нерчинский муниципальный район","76628000","Нерчинское","76628101","30335229","АО \"ГУ ЖКХ\"","5116000922","770401001","производство (некомбинированная выработка)+передача+сбыт","WARM"]
[408,"Забайкальский край","Нерчинский муниципальный район","76628000","Нерчинское","76628101","30431003","АО \"ГУ ЖКХ\"","5116000922","753645001","производство (некомбинированная выработка)+передача+сбыт","WARM"]
[409,"Забайкальский край","Нерчинский муниципальный район","76628000","Нерчинское","76628101","26498216","МДОУ ЦРР - д/с №12 г. Нерчинск","7513004476","751301001","производство (некомбинированная выработка)+передача+сбыт","WARM"]
[410,"Забайкальский край","Нерчинский муниципальный район","76628000","Нерчинское","76628101","26651076","МОУ ООШ №2 г. Нерчинск","7513003970","751301001","производство (некомбинированная выработка)+передача+сбыт","WARM"]
[411,"Забайкальский край","Нерчинский муниципальный район","76628000","Нерчинское","76628101","26375509","МУП \"Тепловик\"","7513005705","751301001","Передача+Сбыт","WARM"]
[412,"Забайкальский край","Нерчинский муниципальный район","76628000","Нерчинское","76628101","27500866","ООО \"Даурия\"","7513006272","751301001","производство (некомбинированная выработка)+передача+сбыт","WARM"]
[413,"Забайкальский край","Нерчинский муниципальный район","76628000","Нерчинское","76628101","28453086","ООО \"Коммунальный сервис\"","7513006346","751301001","производство (некомбинированная выработка)+передача+сбыт","WARM"]
[414,"Забайкальский край","Нерчинский муниципальный район","76628000","Нерчинское","76628101","26381444","ООО \"Ленское\"","7513005832","751301001","производство (некомбинированная выработка)+передача+сбыт","WARM"]
[415,"Забайкальский край","Нерчинский муниципальный район","76628000","Нерчинское","76628101","26375510","ООО \"Северное\"","7513005825","751301001","производство (некомбинированная выработка)+передача+сбыт","WARM"]
[416,"Забайкальский край","Нерчинский муниципальный район","76628000","Нерчинское","76628101","26503256","ООО \"Сибирское\"","7513006265","751301001","производство (некомбинированная выработка)+передача+сбыт","WARM"]
[417,"Забайкальский край","Нерчинский муниципальный район","76628000","Нерчинское","76628101","26498211","ООО \"Южное\"","7513005960","751301001","производство (некомбинированная выработка)+передача+сбыт","WARM"]
[418,"Забайкальский край","Нерчинский муниципальный район","76628000","Нерчинское","76628101","26498204","ФБУ Нерчинская воспитательная колония УФСИН России по Забайкальскому краю","7513000217","751301001","производство (некомбинированная выработка)+передача+сбыт","WARM"]
[419,"Забайкальский край","Нерчинский муниципальный район","76628000","Нерчинское","76628101","26375506","ФГОУ СПО \"Нерчинский аграрный техникум\"","7513000270","751301001","производство (некомбинированная выработка)+передача+сбыт","WARM"]
[420,"Забайкальский край","Нерчинский муниципальный район","76628000","Нерчинское","76628101","27605771","Филиал КГУП \"Автомобильные дороги Забайкалья\"-Нерчинский ДЭУч","7536002877","751302001","производство (некомбинированная выработка)+передача+сбыт","WARM"]
[421,"Забайкальский край","Нерчинский муниципальный район","76628000","Нерчинское","76628101","26834786","Филиал ОАО \"Ремонтно-эксплуатационное управление \"Забайкальский\"","7714783092","753643001","производство (некомбинированная выработка)+передача+сбыт","WARM"]
[422,"Забайкальский край","Нерчинский муниципальный район","76628000","Олеканское","76628460","26498281","Администрация с. п. \"Олеканское\"","7513005582","751301001","производство (некомбинированная выработка)+передача+сбыт","WARM"]
[423,"Забайкальский край","Нерчинский муниципальный район","76628000","Пешковское","76628470","26498283","Администрация сельского поселения \"Пешковское\"","7513005600","751301001","Передача+Сбыт","WARM"]
[424,"Забайкальский край","Нерчинский муниципальный район","76628000","Пешковское","76628470","26498283","Администрация сельского поселения \"Пешковское\"","7513005600","751301001","производство комбинированная выработка","WARM"]
[425,"Забайкальский край","Нерчинский муниципальный район","76628000","Приисковское","76628153","26375508","Администрация городского поселения \"Приисковское\"","7513005575","751301001","производство (некомбинированная выработка)+передача+сбыт","WARM"]
[426,"Забайкальский край","Нерчинский муниципальный район","76628000","Приисковское","76628153","26498226","МОУ СОШ п. Приисковый","7513004250","751301001","производство (некомбинированная выработка)+передача+сбыт","WARM"]
[427,"Забайкальский край","Нерчинский муниципальный район","76628000","Приисковское","76628153","26498209","ООО \"УК ЖКК г. Нерчинск\"","7513005430","751301001","производство (некомбинированная выработка)+передача+сбыт","WARM"]
[428,"Забайкальский край","Нерчинский муниципальный район","76628000","Приисковское","76628153","28871673","Общество с ограниченной ответственностью \"Стройтехсервис Шилка\"","7527008537","752701001","производство (некомбинированная выработка)+передача+сбыт","WARM"]
[429,"Забайкальский край","Нерчинско-Заводский муниципальный район","76630000","Нерчинско-Заводское","76630445","26320250","Администрация муниципального района \"Нерчинско-Заводский район\"","7514000523","751401001","производство (некомбинированная выработка)+передача+сбыт","WARM"]
[430,"Забайкальский край","Нерчинско-Заводский муниципальный район","76630000","Явленское","76630470","27500938","ПК АС \"Даурия\"","7507000811","753601001","производство (некомбинированная выработка)+передача+сбыт","WARM"]
[431,"Забайкальский край","Оловяннинский муниципальный район","76632000","Арендинское","76632405","26320252","Администрация сельского поселения \"Арендинское\"","7515006045","751501001","производство (некомбинированная выработка)+передача+сбыт","WARM"]
[432,"Забайкальский край","Оловяннинский муниципальный район","76632000","Бурулятуйское","76632415","26651078","Администрация муниципального образования сельское поселение «Бурулятуйское»","7515006091","751501001","производство (некомбинированная выработка)+передача+сбыт","WARM"]
[433,"Забайкальский край","Оловяннинский муниципальный район","76632000","Бурулятуйское","76632415","26498289","ИП Машурик Г.П.","751500981650","751501001","производство (некомбинированная выработка)+передача+сбыт","WARM"]
[434,"Забайкальский край","Оловяннинский муниципальный район","76632000","Бурулятуйское","76632415","30377303","МУНИЦИПАЛЬНОЕ БЮДЖЕТНОЕ УЧРЕЖДЕНИЕ ХОЗЯЙСТВЕННО-ЭКСПЛУАТАЦИОННАЯ СЛУЖБА СИСТЕМЫ ОБРАЗОВАНИЯ","7515007786","751501001","Теплоноситель - Сбыт :: Производство","WARM"]
[435,"Забайкальский край","Оловяннинский муниципальный район","76632000","Бурулятуйское","76632415","30377303","МУНИЦИПАЛЬНОЕ БЮДЖЕТНОЕ УЧРЕЖДЕНИЕ ХОЗЯЙСТВЕННО-ЭКСПЛУАТАЦИОННАЯ СЛУЖБА СИСТЕМЫ ОБРАЗОВАНИЯ","7515007786","751501001","производство (некомбинированная выработка)+сбыт","WARM"]
[436,"Забайкальский край","Оловяннинский муниципальный район","76632000","Золотореченское","76632152","26498285","МУП \"Жилищно-коммунальное хозяйство\"","7515007112","751501001","производство (некомбинированная выработка)+передача+сбыт","WARM"]
[437,"Забайкальский край","Оловяннинский муниципальный район","76632000","Золотореченское","76632152","28055484","МУП \"Коммунальник\"","7515007930","751501001","производство (некомбинированная выработка)+передача+сбыт","WARM"]
[438,"Забайкальский край","Оловяннинский муниципальный район","76632000","Золотореченское","76632152","28876807","МУП \"Компания заказчика\"","7515007017","751501001","производство (некомбинированная выработка)+передача+сбыт","WARM"]
[439,"Забайкальский край","Оловяннинский муниципальный район","76632000","Калангуйское","76632153","26375521","МУП \"Тепловодоснабжение\"","7515006655","751501001","производство (некомбинированная выработка)+передача+сбыт","WARM"]
[440,"Забайкальский край","Оловяннинский муниципальный район","76632000","Калангуйское","76632153","30375368","МУП \"Тепломагистраль\"","7515008187","751501001","производство (некомбинированная выработка)+передача+сбыт","WARM"]
[441,"Забайкальский край","Оловяннинский муниципальный район","76632000","Оловяннинское","76632151","26651057","АО \"Тепловодоканал\"","7506004852","750601001","производство (некомбинированная выработка)+передача+сбыт","WARM"]
[442,"Забайкальский край","Оловяннинский муниципальный район","76632000","Оловяннинское","76632151","26320242","Администрация г.п. \"Оловяннинское\"","7515005958","751501001","производство (некомбинированная выработка)+передача+сбыт","WARM"]
[443,"Забайкальский край","Оловяннинский муниципальный район","76632000","Оловяннинское","76632151","26498139","Забайкальская дирекция по тепловодоснабжению - структурное подразделение Центральной дирекции по тепловодоснабжению филиала ОАО \"РЖД\"","7708503727","753602001","производство (некомбинированная выработка)+передача+сбыт","WARM"]
[444,"Забайкальский край","Оловяннинский муниципальный район","76632000","Оловяннинское","76632151","27500855","МУП \"Коммунальное хозяйство\"","7515007024","751501001","производство (некомбинированная выработка)+передача+сбыт","WARM"]
[445,"Забайкальский край","Оловяннинский муниципальный район","76632000","Оловяннинское","76632151","30375356","МУП \"Теплоресурс\"","7515008194","751501001","производство (некомбинированная выработка)+передача+сбыт","WARM"]
[446,"Забайкальский край","Оловяннинский муниципальный район","76632000","Оловяннинское","76632151","28048443","МУП \"Теплоснаб\"","7515007962","751501001","производство (некомбинированная выработка)+передача+сбыт","WARM"]
[447,"Забайкальский край","Оловяннинский муниципальный район","76632000","Оловяннинское","76632151","26382797","Муниципальное унитарное предприятие \"Коммунальник\"","7515006447","751501001","производство (некомбинированная выработка)+передача+сбыт","WARM"]
[448,"Забайкальский край","Оловяннинский муниципальный район","76632000","Ононское","76632440","26498291","Администрация муниципального образования сельское поселение \"Ононское\" муниципального района \"Оловяннинский район\"","7515006006","751501001","производство (некомбинированная выработка)+передача+сбыт","WARM"]
[449,"Забайкальский край","Оловяннинский муниципальный район","76632000","Степнинское","76632445","26834786","Филиал ОАО \"Ремонтно-эксплуатационное управление \"Забайкальский\"","7714783092","753643001","производство (некомбинированная выработка)+передача+сбыт","WARM"]
[450,"Забайкальский край","Оловяннинский муниципальный район","76632000","Тургинское","76632450","26498293","Администрация сельского поселения \"Тургинское\"","7515006119","751501001","производство (некомбинированная выработка)+передача+сбыт","WARM"]
[451,"Забайкальский край","Оловяннинский муниципальный район","76632000","Улятуйское","76632455","26498295","Администрация сельского поселения \"Улятуйское\"","7515006101","751501001","производство (некомбинированная выработка)+передача+сбыт","WARM"]
[452,"Забайкальский край","Оловяннинский муниципальный район","76632000","Уртуйское","76632457","26498139","Забайкальская дирекция по тепловодоснабжению - структурное подразделение Центральной дирекции по тепловодоснабжению филиала ОАО \"РЖД\"","7708503727","753602001","производство (некомбинированная выработка)+передача+сбыт","WARM"]
[453,"Забайкальский край","Оловяннинский муниципальный район","76632000","Яснинское","76632470","28010164","МУП \"ЖКХ Ясная\"","7515007923","751501001","производство (некомбинированная выработка)+передача+сбыт","WARM"]
[454,"Забайкальский край","Оловяннинский муниципальный район","76632000","Яснинское","76632470","26498141","ООО \"Коммунальник\"","7536089691","753601001","производство (некомбинированная выработка)+передача+сбыт","WARM"]
[455,"Забайкальский край","Оловяннинский муниципальный район","76632000","Яснинское","76632470","26375516","Оловянниская КЭЧ района","7515003630","751501001","производство (некомбинированная выработка)+передача+сбыт","WARM"]
[456,"Забайкальский край","Оловяннинский муниципальный район","76632000","Яснинское","76632470","26834786","Филиал ОАО \"Ремонтно-эксплуатационное управление \"Забайкальский\"","7714783092","753643001","производство (некомбинированная выработка)+передача+сбыт","WARM"]
[457,"Забайкальский край","Оловяннинский муниципальный район","76632000","Ясногорское","76632170","30335229","АО \"ГУ ЖКХ\"","5116000922","770401001","производство (некомбинированная выработка)+передача+сбыт","WARM"]
[458,"Забайкальский край","Оловяннинский муниципальный район","76632000","Ясногорское","76632170","30431003","АО \"ГУ ЖКХ\"","5116000922","753645001","производство (некомбинированная выработка)+передача+сбыт","WARM"]
[459,"Забайкальский край","Оловяннинский муниципальный район","76632000","Ясногорское","76632170","26503259","ОАО \"Коммунальник\"","7515005891","751501001","Передача+Сбыт","WARM"]
[460,"Забайкальский край","Оловяннинский муниципальный район","76632000","Ясногорское","76632170","26499406","Филиал \"ОГК-3\" \"Харанорская ГРЭС\"","0326023099","751502001","Передача","WARM"]
[461,"Забайкальский край","Оловяннинский муниципальный район","76632000","Ясногорское","76632170","26499406","Филиал \"ОГК-3\" \"Харанорская ГРЭС\"","0326023099","751502001","производство комбинированная выработка","WARM"]
[462,"Забайкальский край","Оловяннинский муниципальный район","76632000","Ясногорское","76632170","27902527","Филиал \"Харанорская ГРЭС\" АО \"Интер РАО - Электрогенерация\"","7704784450","751543001","Передача+Сбыт","WARM"]
[463,"Забайкальский край","Оловяннинский муниципальный район","76632000","Ясногорское","76632170","27902527","Филиал \"Харанорская ГРЭС\" АО \"Интер РАО - Электрогенерация\"","7704784450","751543001","производство комбинированная выработка","WARM"]
[464,"Забайкальский край","Ононский муниципальный район","76634000","Большевистское","76634405","26498297","МОУ Кубухайская СОШ","7516002942","751601001","производство (некомбинированная выработка)+передача+сбыт","WARM"]
[465,"Забайкальский край","Ононский муниципальный район","76634000","Большевистское","76634405","28010223","ООО \"ЖКХ-Сервис\"","7516003110","751601001","производство (некомбинированная выработка)+передача+сбыт","WARM"]
[466,"Забайкальский край","Ононский муниципальный район","76634000","Большевистское","76634405","28942780","ООО \"Теплосервис\"","7516000134","751601001","производство (некомбинированная выработка)+передача+сбыт","WARM"]
[467,"Забайкальский край","Ононский муниципальный район","76634000","Ималкинское","76634415","26498299","Муниципальное общеобразовательное учреждение Красноималкинская основная общеобразовательная школа","7516002950","751601001","производство (некомбинированная выработка)+передача+сбыт","WARM"]
[468,"Забайкальский край","Ононский муниципальный район","76634000","Нижнецасучейское","76634445","26647937","КГУП \"Автомобильные дороги Забайкалья\"","7536002877","751602001","производство (некомбинированная выработка)+передача+сбыт","WARM"]
[469,"Забайкальский край","Ононский муниципальный район","76634000","Нижнецасучейское","76634445","26823644","МОУ \"Нижнецасучейская СОШ\"","7516001201","751601001","производство (некомбинированная выработка)+передача+сбыт","WARM"]
[470,"Забайкальский край","Ононский муниципальный район","76634000","Нижнецасучейское","76634445","30870859","МУП \"Теплосети\"","7516003270","751601001","производство (некомбинированная выработка)+передача+сбыт","WARM"]
[471,"Забайкальский край","Ононский муниципальный район","76634000","Нижнецасучейское","76634445","28010223","ООО \"ЖКХ-Сервис\"","7516003110","751601001","производство (некомбинированная выработка)+передача+сбыт","WARM"]
[472,"Забайкальский край","Ононский муниципальный район","76634000","Нижнецасучейское","76634445","26647331","ООО \"Жилкомсервис\"","7516002999","751601001","производство (некомбинированная выработка)+передача+сбыт","WARM"]
[473,"Забайкальский край","Ононский муниципальный район","76634000","Нижнецасучейское","76634445","26498301","ООО \"ОнонАгро\"","7516002413","751601001","производство (некомбинированная выработка)+передача+сбыт","WARM"]
[474,"Забайкальский край","Петровск-Забайкальский муниципальный район","76636000","Балягинское","76636152","26375581","МУП ЖКХ п. Баляга","7531004775","753101001","производство (некомбинированная выработка)+передача+сбыт","WARM"]
[475,"Забайкальский край","Петровск-Забайкальский муниципальный район","76636000","Балягинское","76636152","26645584","ООО \"Благоустройство\"","7531005225","753101001","производство (некомбинированная выработка)+передача+сбыт","WARM"]
[476,"Забайкальский край","Петровск-Забайкальский муниципальный район","76636000","Балягинское","76636152","27582463","ООО \"Благоустройство+\"","7531006317","753101001","производство (некомбинированная выработка)+передача+сбыт","WARM"]
[477,"Забайкальский край","Петровск-Забайкальский муниципальный район","76636000","Катаевское","76636425","26498305","Администрация сельского поселения \"Катаевское\"","7531004020","753101001","производство (некомбинированная выработка)+передача+сбыт","WARM"]
[478,"Забайкальский край","Петровск-Забайкальский муниципальный район","76636000","Катаевское","76636425","27500831","ООО \"ПрофСервис\"","7509004882","750901001","производство (некомбинированная выработка)+передача+сбыт","WARM"]
[479,"Забайкальский край","Петровск-Забайкальский муниципальный район","76636000","Катаевское","76636425","26498307","ООО \"СтройМонтаж\"","7509004297","750901001","производство (некомбинированная выработка)+передача+сбыт","WARM"]
[480,"Забайкальский край","Петровск-Забайкальский муниципальный район","76636000","Катаевское","76636425","27500584","ООО \"СтройМонтаж\"","7509004297","750901001","производство комбинированная выработка","WARM"]
[481,"Забайкальский край","Петровск-Забайкальский муниципальный район","76636000","Малетинское","76636440","26320253","Администрация сельского поселения \"Малетинское\"","7531004013","753101001","производство (некомбинированная выработка)+передача+сбыт","WARM"]
[482,"Забайкальский край","Петровск-Забайкальский муниципальный район","76636000","Малетинское","76636440","27500831","ООО \"ПрофСервис\"","7509004882","750901001","производство (некомбинированная выработка)+передача+сбыт","WARM"]
[483,"Забайкальский край","Петровск-Забайкальский муниципальный район","76636000","Новопавловское","76636156","26375579","МУП \"Восход\"","7531003700","753101001","производство (некомбинированная выработка)+передача+сбыт","WARM"]
[484,"Забайкальский край","Петровск-Забайкальский муниципальный район","76636000","Новопавловское","76636156","26498303","ООО  \"Восход\"","7531005240","753101001","производство (некомбинированная выработка)+передача+сбыт","WARM"]
[485,"Забайкальский край","Петровск-Забайкальский муниципальный район","76636000","Песчанское","76636450","26503261","ИП Попова Е.Б.","753101362388","753101001","производство (некомбинированная выработка)+передача+сбыт","WARM"]
[486,"Забайкальский край","Петровск-Забайкальский муниципальный район","76636000","Песчанское","76636450","27500831","ООО \"ПрофСервис\"","7509004882","750901001","производство (некомбинированная выработка)+передача+сбыт","WARM"]
[487,"Забайкальский край","Петровск-Забайкальский муниципальный район","76636000","Тарбагатайское","76636158","26498303","ООО  \"Восход\"","7531005240","753101001","производство (некомбинированная выработка)+передача+сбыт","WARM"]
[488,"Забайкальский край","Петровск-Забайкальский муниципальный район","76636000","Тарбагатайское","76636158","26779038","ООО \"ЖКХ п. Тарбагатай\"","7531005296","753101001","производство (некомбинированная выработка)+передача+сбыт","WARM"]
[489,"Забайкальский край","Петровск-Забайкальский муниципальный район","76636000","Тарбагатайское","76636158","27500844","ООО \"ЖКХ п.Тарбагатай\"","7531005296","753101001","производство (некомбинированная выработка)+передача+сбыт","WARM"]
[490,"Забайкальский край","Петровск-Забайкальский муниципальный район","76636000","Усть-Оборское","76636457","27500831","ООО \"ПрофСервис\"","7509004882","750901001","производство (некомбинированная выработка)+передача+сбыт","WARM"]
[491,"Забайкальский край","Петровск-Забайкальский муниципальный район","76636000","Хараузское","76636460","26375582","ООО \"Тепловик\"","7531005120","753101001","производство (некомбинированная выработка)+передача+сбыт","WARM"]
[492,"Забайкальский край","Петровск-Забайкальский муниципальный район","76636000","Хохотуйское","76636470","26375583","ООО \"Родник\"","7531005151","753101001","производство (некомбинированная выработка)+передача+сбыт","WARM"]
[493,"Забайкальский край","Приаргунский муниципальный район","76638000","Досатуйское","76638418","26375524","Отдел ЖКХ Администрации с.п. Досатуйское","7518006050","751801001","Передача+Сбыт","WARM"]
[494,"Забайкальский край","Приаргунский муниципальный район","76638000","Досатуйское","76638418","26375524","Отдел ЖКХ Администрации с.п. Досатуйское","7518006050","751801001","производство комбинированная выработка","WARM"]
[495,"Забайкальский край","Приаргунский муниципальный район","76638000","Кличкинское","76638154","26503263","МП ЖКХ \"Искра\"","7518006759","751801759","производство (некомбинированная выработка)+передача+сбыт","WARM"]
[496,"Забайкальский край","Приаргунский муниципальный район","76638000","Кличкинское","76638154","30389296","МП ЖКХ \"Исток\"","7518007287","751801001","производство (некомбинированная выработка)","WARM"]
[497,"Забайкальский край","Приаргунский муниципальный район","76638000","Кличкинское","76638154","26375525","МП ЖКХ \"Кристалл\"","7518006389","751801001","производство (некомбинированная выработка)+передача+сбыт","WARM"]
[498,"Забайкальский край","Приаргунский муниципальный район","76638000","Кличкинское","76638154","27666537","МП ЖКХ \"Тепловик\"","7518006999","751801001","производство (некомбинированная выработка)+передача+сбыт","WARM"]
[499,"Забайкальский край","Приаргунский муниципальный район","76638000","Кличкинское","76638154","28814863","МП ЖКХ Гранит","7518007209","751801001","производство (некомбинированная выработка)+передача+сбыт","WARM"]
[500,"Забайкальский край","Приаргунский муниципальный район","76638000","Приаргунское","76638151","28814863","МП ЖКХ Гранит","7518007209","751801001","производство (некомбинированная выработка)+передача+сбыт","WARM"]
[501,"Забайкальский край","Приаргунский муниципальный район","76638000","Приаргунское","76638151","26498149","ПАО \"ТГК-14\"","7534018889","753401001","Передача+Сбыт","WARM"]
[502,"Забайкальский край","Приаргунский муниципальный район","76638000","Приаргунское","76638151","26498149","ПАО \"ТГК-14\"","7534018889","753401001","производство (некомбинированная выработка)+передача+сбыт","WARM"]
[503,"Забайкальский край","Приаргунский муниципальный район","76638000","Приаргунское","76638151","26498149","ПАО \"ТГК-14\"","7534018889","753401001","производство комбинированная выработка","WARM"]
[504,"Забайкальский край","Сретенский муниципальный район","76640000","Алиянское","76640435","28815879","Администрация сельского поселения \"Алиянское\" МР \"Сретенский район\" Забайкальского края","7519003542","751901001","производство (некомбинированная выработка)+передача+сбыт","WARM"]
[505,"Забайкальский край","Сретенский муниципальный район","76640000","Верхне-Куларкинское","76640410","28867943","МОУ \" Верхнекуларкинская СОШ\"","7519002700","751901001","производство (некомбинированная выработка)+передача+сбыт","WARM"]
[506,"Забайкальский край","Сретенский муниципальный район","76640000","Верхне-Куэнгинское","76640415","26777699","Администрация сельского поселения \"Верхне-Куэнгинское\"","7519003630","751901001","производство (некомбинированная выработка)+передача+сбыт","WARM"]
[507,"Забайкальский край","Сретенский муниципальный район","76640000","Верхне-Куэнгинское","76640415","28058055","МУК \"Библиотечно-информационное и культурно-досуговое объединение сельского поселения \"Верхне-Куэнгинское\"","7519004352","751901001","производство (некомбинированная выработка)+передача+сбыт","WARM"]
[508,"Забайкальский край","Сретенский муниципальный район","76640000","Верхне-Куэнгинское","76640415","30372462","ООО \"Авангард плюс\"","7524018664","752401001","производство (некомбинированная выработка)+сбыт","WARM"]
[509,"Забайкальский край","Сретенский муниципальный район","76640000","Верхне-Куэнгинское","76640415","30392334","ООО \"Горизонт-Сретенск\"","7519004722","751901001","производство (некомбинированная выработка)+сбыт","WARM"]
[510,"Забайкальский край","Сретенский муниципальный район","76640000","Дунаевское","76640420","26375528","Администрация сельского поселения \"Дунаевское\"","7519003937","751901001","производство (некомбинированная выработка)+передача+сбыт","WARM"]
[511,"Забайкальский край","Сретенский муниципальный район","76640000","Дунаевское","76640420","30372462","ООО \"Авангард плюс\"","7524018664","752401001","производство (некомбинированная выработка)+сбыт","WARM"]
[512,"Забайкальский край","Сретенский муниципальный район","76640000","Дунаевское","76640420","30392334","ООО \"Горизонт-Сретенск\"","7519004722","751901001","производство (некомбинированная выработка)+сбыт","WARM"]
[513,"Забайкальский край","Сретенский муниципальный район","76640000","Дунаевское","76640420","26496393","ООО \"ЖКХ Дунаево\"","7519004120","751901001","производство (некомбинированная выработка)+передача+сбыт","WARM"]
[514,"Забайкальский край","Сретенский муниципальный район","76640000","Дунаевское","76640420","26645759","ООО «Дунаево»","7519004289","751901001","производство (некомбинированная выработка)+передача+сбыт","WARM"]
[515,"Забайкальский край","Сретенский муниципальный район","76640000","Кокуйское","76640154","26503273","МУП «ЖКУ п. Кокуй»","7519003430","751901001","производство (некомбинированная выработка)+передача+сбыт","WARM"]
[516,"Забайкальский край","Сретенский муниципальный район","76640000","Кокуйское","76640154","28267929","ООО \"ССЗ-Водоканал\"","7519003359","751901001","производство (некомбинированная выработка)+передача+сбыт","WARM"]
[517,"Забайкальский край","Сретенский муниципальный район","76640000","Кокуйское","76640154","26375526","ООО \"ССЗ-Управление\"","7519003334","751901001","производство (некомбинированная выработка)+передача+сбыт","WARM"]
[518,"Забайкальский край","Сретенский муниципальный район","76640000","Кокуйское","76640154","28818823","Общество с ограниченной ответственностью \"Тепловодоканал\"","7519004666","751901001","Передача+Сбыт","WARM"]
[519,"Забайкальский край","Сретенский муниципальный район","76640000","Кокуйское","76640154","28818823","Общество с ограниченной ответственностью \"Тепловодоканал\"","7519004666","751901001","производство комбинированная выработка","WARM"]
[520,"Забайкальский край","Сретенский муниципальный район","76640000","Сретенское","76640101","30335229","АО \"ГУ ЖКХ\"","5116000922","770401001","производство (некомбинированная выработка)+передача+сбыт","WARM"]
[521,"Забайкальский край","Сретенский муниципальный район","76640000","Сретенское","76640101","30431003","АО \"ГУ ЖКХ\"","5116000922","753645001","производство (некомбинированная выработка)+передача+сбыт","WARM"]
[522,"Забайкальский край","Сретенский муниципальный район","76640000","Сретенское","76640101","26498139","Забайкальская дирекция по тепловодоснабжению - структурное подразделение Центральной дирекции по тепловодоснабжению филиала ОАО \"РЖД\"","7708503727","753602001","производство (некомбинированная выработка)+передача+сбыт","WARM"]
[523,"Забайкальский край","Сретенский муниципальный район","76640000","Сретенское","76640101","26503269","МУП \"Городские теплосети\"","7519003510","751901001","производство (некомбинированная выработка)+передача+сбыт","WARM"]
[524,"Забайкальский край","Сретенский муниципальный район","76640000","Сретенское","76640101","26503267","МУП \"Редакция газеты \"Советское Забайкалье\"","7519003743","751901001","производство (некомбинированная выработка)+передача+сбыт","WARM"]
[525,"Забайкальский край","Сретенский муниципальный район","76640000","Сретенское","76640101","26530904","МУП Коммунальное хозяйство г. Сретенск","7519003535","751901001","производство (некомбинированная выработка)+передача+сбыт","WARM"]
[526,"Забайкальский край","Сретенский муниципальный район","76640000","Сретенское","76640101","28980466","Могочинская дистанция гражданских сооружений","7708503727","751245167","производство (некомбинированная выработка)+передача+сбыт","WARM"]
[527,"Забайкальский край","Сретенский муниципальный район","76640000","Сретенское","76640101","30374018","ООО \"Восток-Гарант\"","7519004680","751901001","производство (некомбинированная выработка)+передача+сбыт","WARM"]
[528,"Забайкальский край","Сретенский муниципальный район","76640000","Сретенское","76640101","27500723","ООО \"Жилкомхоз Сретенск\"","7519004151","751901001","производство (некомбинированная выработка)+передача+сбыт","WARM"]
[529,"Забайкальский край","Сретенский муниципальный район","76640000","Сретенское","76640101","30852518","ООО \"Забайкальский тепловик\"","7536158930","753601001","Теплоноситель - Сбыт :: Производство :: Передача","WARM"]
[530,"Забайкальский край","Сретенский муниципальный район","76640000","Сретенское","76640101","30852518","ООО \"Забайкальский тепловик\"","7536158930","753601001","производство (некомбинированная выработка)+передача+сбыт","WARM"]
[531,"Забайкальский край","Сретенский муниципальный район","76640000","Сретенское","76640101","26503271","Сретенская ООШ №1","7519002806","751901001","производство (некомбинированная выработка)+передача+сбыт","WARM"]
[532,"Забайкальский край","Сретенский муниципальный район","76640000","Сретенское","76640101","26651072","Управление образованием Администрации муниципального района \"Сретенский район\" Забайкальского края","7519000164","751901001","производство (некомбинированная выработка)+передача+сбыт","WARM"]
[533,"Забайкальский край","Сретенский муниципальный район","76640000","Сретенское","76640101","26503265","Филиал КГУП \"Автомобильные дороги Забайкалья\" Сретенский ДЭУч","7536002877","751902001","производство (некомбинированная выработка)+передача+сбыт","WARM"]
[534,"Забайкальский край","Сретенский муниципальный район","76640000","Сретенское","76640101","26834786","Филиал ОАО \"Ремонтно-эксплуатационное управление \"Забайкальский\"","7714783092","753643001","производство (некомбинированная выработка)+передача+сбыт","WARM"]
[535,"Забайкальский край","Сретенский муниципальный район","76640000","Сретенское","76640101","27500731","Эксплуатационное локомотивное депо Чернышевск структурное подразделение Забайкальской дирекции тяги, структурное подразделение дирекции тяги, филиала ОАО \"РЖД\"\"","7708503727","753645049","производство (некомбинированная выработка)+передача+сбыт","WARM"]
[536,"Забайкальский край","Сретенский муниципальный район","76640000","Усть-Карское","76640156","26503275","Муниципальное общеобразовательное учреждение «Усть-Карская средняя общеобразовательная школа»","7519002796","751901001","производство (некомбинированная выработка)+передача+сбыт","WARM"]
[537,"Забайкальский край","Сретенский муниципальный район","76640000","Усть-Карское","76640156","26320240","ОАО \"Прииск Усть-Кара\"","7519001200","751901001","производство (некомбинированная выработка)+передача+сбыт","WARM"]
[538,"Забайкальский край","Сретенский муниципальный район","76640000","Усть-Начинское","76640441","27500750","Администрация муниципального образования сельское поселение \"Усть-Начинское\"","7519003670","751901001","производство комбинированная выработка","WARM"]
[539,"Забайкальский край","Сретенский муниципальный район","76640000","Фирсовское","76640445","26651074","МДОУ Детский сад с. Фирсово","7519002980","751901001","производство (некомбинированная выработка)+передача+сбыт","WARM"]
[540,"Забайкальский край","Сретенский муниципальный район","76640000","Чикичейское","76640450","27500765","МДОУ Детский сад с. Чикичей","7519002997","751901001","производство (некомбинированная выработка)+передача+сбыт","WARM"]
[541,"Забайкальский край","Сретенский муниципальный район","76640000","Чикичейское","76640450","27585016","МОУ \"Чикичейская ООШ\"","7519004169","751901001","производство (некомбинированная выработка)+передача+сбыт","WARM"]
[542,"Забайкальский край","Тунгиро-Олекминский муниципальный район","76642000","Тупикское","76642401","26375529","ООО \"Коммунальник\"","7520000828","752001001","производство (некомбинированная выработка)+передача+сбыт","WARM"]
[543,"Забайкальский край","Тунгокоченский муниципальный район","76644000","Верх-Усуглинское","76644411","30335229","АО \"ГУ ЖКХ\"","5116000922","770401001","производство (некомбинированная выработка)+передача+сбыт","WARM"]
[544,"Забайкальский край","Тунгокоченский муниципальный район","76644000","Верх-Усуглинское","76644411","30431003","АО \"ГУ ЖКХ\"","5116000922","753645001","производство (некомбинированная выработка)+передача+сбыт","WARM"]
[545,"Забайкальский край","Тунгокоченский муниципальный район","76644000","Верх-Усуглинское","76644411","26499095","МУ Тунгокоченская центральная районная больница","7521000429","752101001","производство (некомбинированная выработка)+передача+сбыт","WARM"]
[546,"Забайкальский край","Тунгокоченский муниципальный район","76644000","Верх-Усуглинское","76644411","26375530","ООО \"Районный коммунальник\"","7521003388","753101001","производство (некомбинированная выработка)+передача+сбыт","WARM"]
[547,"Забайкальский край","Тунгокоченский муниципальный район","76644000","Верх-Усуглинское","76644411","26834786","Филиал ОАО \"Ремонтно-эксплуатационное управление \"Забайкальский\"","7714783092","753643001","производство (некомбинированная выработка)+передача+сбыт","WARM"]
[548,"Забайкальский край","Тунгокоченский муниципальный район","76644000","Вершино-Дарасунское","76644154","28882951","МУП \"Тепловодосервис\"","7521003902","752101001","производство (некомбинированная выработка)+передача+сбыт","WARM"]
[549,"Забайкальский край","Тунгокоченский муниципальный район","76644000","Вершино-Дарасунское","76644154","30874857","МУП \"Теплосервис\"","7521004007","752101001","производство (некомбинированная выработка)+передача+сбыт","WARM"]
[550,"Забайкальский край","Тунгокоченский муниципальный район","76644000","Вершино-Дарасунское","76644154","26596135","МУП «Тепловодосети»","7521003878","752100101","производство (некомбинированная выработка)+передача+сбыт","WARM"]
[551,"Забайкальский край","Тунгокоченский муниципальный район","76644000","Вершино-Дарасунское","76644154","26499093","Общество с ограниченной ответственностью «Дарасунский водоканал»","7521003652","752101001","производство (некомбинированная выработка)+передача+сбыт","WARM"]
[552,"Забайкальский край","Тунгокоченский муниципальный район","76644000","Вершино-Дарасунское","76644154","26499091","Общество с ограниченной ответственностью «Дарасунское тепло-снабжение»","7521003691","752101001","производство (некомбинированная выработка)+передача+сбыт","WARM"]
[553,"Забайкальский край","Улетовский муниципальный район","76646000","Аблатуйское","76646402","27500656","Администрация сельского поселения \"Аблатуйское\"","7522003581","752201001","производство (некомбинированная выработка)+передача+сбыт","WARM"]
[554,"Забайкальский край","Улетовский муниципальный район","76646000","Аблатуйское","76646402","26499104","МОУ \"Военхозовская СОШ\"","7522002845","752201001","производство (некомбинированная выработка)+передача+сбыт","WARM"]
[555,"Забайкальский край","Улетовский муниципальный район","76646000","Аблатуйское","76646402","27505504","ООО УК \"Контакт\"","7529011888","752901001","производство (некомбинированная выработка)+передача+сбыт","WARM"]
[556,"Забайкальский край","Улетовский муниципальный район","76646000","Аблатуйское","76646402","26774216","ФГУП \"Забайкалавтодор\" в лице Улетовского ДЭУ","7536007032","752202001","производство (некомбинированная выработка)+передача+сбыт","WARM"]
[557,"Забайкальский край","Улетовский муниципальный район","76646000","Артинское","76646405","27500663","МУП \"МК\"","7522004240","752201001","производство (некомбинированная выработка)+передача+сбыт","WARM"]
[558,"Забайкальский край","Улетовский муниципальный район","76646000","Горекацанское","76646415","27500663","МУП \"МК\"","7522004240","752201001","производство (некомбинированная выработка)+передача+сбыт","WARM"]
[559,"Забайкальский край","Улетовский муниципальный район","76646000","Доронинское","76646420","26499106","Муниципальное общеобразовательное учреждение \"Доронинская средняя общеобразовательная школа\"","7522002958","752201001","производство (некомбинированная выработка)+передача+сбыт","WARM"]
[560,"Забайкальский край","Улетовский муниципальный район","76646000","Дровянинское","76646153","27510302","Администрация сельского поселения \"Дровянинское\"","7522003528","752201001","производство (некомбинированная выработка)+передача+сбыт","WARM"]
[561,"Забайкальский край","Улетовский муниципальный район","76646000","Дровянинское","76646153","26498141","ООО \"Коммунальник\"","7536089691","753601001","производство (некомбинированная выработка)","WARM"]
[562,"Забайкальский край","Улетовский муниципальный район","76646000","Дровянинское","76646153","27505500","ООО \"Произвоственная компания \"Теплосервис\"","7536122518","753601001","производство (некомбинированная выработка)+передача+сбыт","WARM"]
[563,"Забайкальский край","Улетовский муниципальный район","76646000","Дровянинское","76646153","26499101","ООО \"Управляющая компания Дровяная\"","7522004137","752201001","производство (некомбинированная выработка)+передача+сбыт","WARM"]
[564,"Забайкальский край","Улетовский муниципальный район","76646000","Дровянинское","76646153","27505504","ООО УК \"Контакт\"","7529011888","752901001","производство (некомбинированная выработка)+передача+сбыт","WARM"]
[565,"Забайкальский край","Улетовский муниципальный район","76646000","Ленинское","76646425","27500663","МУП \"МК\"","7522004240","752201001","производство (некомбинированная выработка)+передача+сбыт","WARM"]
[566,"Забайкальский край","Улетовский муниципальный район","76646000","Ленинское","76646425","26499108","Муниципальное общеобразовательное учреждение \"Ленинская средняя общеобразовательная школа\"","7522002926","752201001","производство (некомбинированная выработка)+передача+сбыт","WARM"]
[567,"Забайкальский край","Улетовский муниципальный район","76646000","Николаевское","76646430","27500663","МУП \"МК\"","7522004240","752201001","производство (некомбинированная выработка)+передача+сбыт","WARM"]
[568,"Забайкальский край","Улетовский муниципальный район","76646000","Тангинское","76646440","30335229","АО \"ГУ ЖКХ\"","5116000922","770401001","производство (некомбинированная выработка)+передача+сбыт","WARM"]
[569,"Забайкальский край","Улетовский муниципальный район","76646000","Тангинское","76646440","30431003","АО \"ГУ ЖКХ\"","5116000922","753645001","производство (некомбинированная выработка)+передача+сбыт","WARM"]
[570,"Забайкальский край","Улетовский муниципальный район","76646000","Тангинское","76646440","27711778","Администрация сп \"Тангинское\"","7522003542","752201001","производство (некомбинированная выработка)+передача+сбыт","WARM"]
[571,"Забайкальский край","Улетовский муниципальный район","76646000","Тангинское","76646440","27500663","МУП \"МК\"","7522004240","752201001","производство (некомбинированная выработка)+передача+сбыт","WARM"]
[572,"Забайкальский край","Улетовский муниципальный район","76646000","Тангинское","76646440","26499110","Муниципальное общеобразовательное учреждение «Тангинская средняя общеобразовательная школа»","7522002740","752201001","производство (некомбинированная выработка)+передача+сбыт","WARM"]
[573,"Забайкальский край","Улетовский муниципальный район","76646000","Тангинское","76646440","26834786","Филиал ОАО \"Ремонтно-эксплуатационное управление \"Забайкальский\"","7714783092","753643001","производство (некомбинированная выработка)+передача+сбыт","WARM"]
[574,"Забайкальский край","Улетовский муниципальный район","76646000","Улетовское","76646450","30335229","АО \"ГУ ЖКХ\"","5116000922","770401001","производство (некомбинированная выработка)+передача+сбыт","WARM"]
[575,"Забайкальский край","Улетовский муниципальный район","76646000","Улетовское","76646450","30431003","АО \"ГУ ЖКХ\"","5116000922","753645001","производство (некомбинированная выработка)+передача+сбыт","WARM"]
[576,"Забайкальский край","Улетовский муниципальный район","76646000","Улетовское","76646450","30795382","ИП Лихунча В.С.","752200034989","отсутствует","производство (некомбинированная выработка)","WARM"]
[577,"Забайкальский край","Улетовский муниципальный район","76646000","Улетовское","76646450","28446398","МУП \"Коммунальник\"","7522004497","752201001","производство (некомбинированная выработка)+передача+сбыт","WARM"]
[578,"Забайкальский край","Улетовский муниципальный район","76646000","Улетовское","76646450","27500663","МУП \"МК\"","7522004240","752201001","производство (некомбинированная выработка)+передача+сбыт","WARM"]
[579,"Забайкальский край","Улетовский муниципальный район","76646000","Улетовское","76646450","26499112","Муниципальное общеобразовательное учреждение «Улетовская средняя общеобразовательная школа»","7522002933","752201001","производство (некомбинированная выработка)+передача+сбыт","WARM"]
[580,"Забайкальский край","Улетовский муниципальный район","76646000","Улетовское","76646450","26774213","ООО \"Улетовский дом быта\"","7522003775","752201001","производство (некомбинированная выработка)+передача+сбыт","WARM"]
[581,"Забайкальский край","Улетовский муниципальный район","76646000","Улетовское","76646450","26375533","ООО \"Управляющая компания ЖКХ \"Улетовский район\"\"","7522003694","752201001","производство (некомбинированная выработка)+передача+сбыт","WARM"]
[582,"Забайкальский край","Улетовский муниципальный район","76646000","Улетовское","76646450","26645970","ООО «Гефест»","7524016314","752401001","производство (некомбинированная выработка)+передача+сбыт","WARM"]
[583,"Забайкальский край","Улетовский муниципальный район","76646000","Улетовское","76646450","26834786","Филиал ОАО \"Ремонтно-эксплуатационное управление \"Забайкальский\"","7714783092","753643001","производство (некомбинированная выработка)+передача+сбыт","WARM"]
[584,"Забайкальский край","Улетовский муниципальный район","76646000","Улетовское","76646450","26777520","редакция газет \"Улетовские вести\"","7522003856","752201001","производство (некомбинированная выработка)+передача+сбыт","WARM"]
[585,"Забайкальский край","Улетовский муниципальный район","76646000","Хадактинское","76646455","27500663","МУП \"МК\"","7522004240","752201001","производство (некомбинированная выработка)+передача+сбыт","WARM"]
[586,"Забайкальский край","Хилокский муниципальный район","76647000","Бадинское","76647405","30335229","АО \"ГУ ЖКХ\"","5116000922","770401001","производство (некомбинированная выработка)+передача+сбыт","WARM"]
[587,"Забайкальский край","Хилокский муниципальный район","76647000","Бадинское","76647405","30431003","АО \"ГУ ЖКХ\"","5116000922","753645001","производство (некомбинированная выработка)+передача+сбыт","WARM"]
[588,"Забайкальский край","Хилокский муниципальный район","76647000","Бадинское","76647405","30793661","Государственное учреждение социального обслуживания \"Бадинский социально-реабилитационный центр для несовершеннолетних \"Искра\" Забайкальского края","7523005239","752301001","Передача+Сбыт","WARM"]
[589,"Забайкальский край","Хилокский муниципальный район","76647000","Бадинское","76647405","26375534","ООО \"Бадинское ЖКХ\"","7538001276","753801001","производство (некомбинированная выработка)+передача+сбыт","WARM"]
[590,"Забайкальский край","Хилокский муниципальный район","76647000","Бадинское","76647405","28151307","ООО \"Забтеплосервис\"","7707083893","753602002","производство (некомбинированная выработка)+передача+сбыт","WARM"]
[591,"Забайкальский край","Хилокский муниципальный район","76647000","Бадинское","76647405","26382809","ФГУ \"Бадинская КЭЧрайона\" МО РФ","7523003288","752301001","производство (некомбинированная выработка)+передача+сбыт","WARM"]
[592,"Забайкальский край","Хилокский муниципальный район","76647000","Бадинское","76647405","26834786","Филиал ОАО \"Ремонтно-эксплуатационное управление \"Забайкальский\"","7714783092","753643001","производство (некомбинированная выработка)+передача+сбыт","WARM"]
[593,"Забайкальский край","Хилокский муниципальный район","76647000","Жипхегенское","76647415","26498139","Забайкальская дирекция по тепловодоснабжению - структурное подразделение Центральной дирекции по тепловодоснабжению филиала ОАО \"РЖД\"","7708503727","753602001","производство (некомбинированная выработка)+передача+сбыт","WARM"]
[594,"Забайкальский край","Хилокский муниципальный район","76647000","Жипхегенское","76647415","26530914","ООО \"Коммунальщик\"","7538001533","753801001","производство (некомбинированная выработка)+передача+сбыт","WARM"]
[595,"Забайкальский край","Хилокский муниципальный район","76647000","Жипхегенское","76647415","26834777","ООО \"Коммунальщик\"","7538001847","753801001","производство (некомбинированная выработка)+передача+сбыт","WARM"]
[596,"Забайкальский край","Хилокский муниципальный район","76647000","Закультинское","76647420","27570910","Администрация сельского поселения \"Закультинское\"","7538000579","753801001","производство (некомбинированная выработка)+передача+сбыт","WARM"]
[597,"Забайкальский край","Хилокский муниципальный район","76647000","Закультинское","76647420","26375534","ООО \"Бадинское ЖКХ\"","7538001276","753801001","производство (некомбинированная выработка)+передача+сбыт","WARM"]
[598,"Забайкальский край","Хилокский муниципальный район","76647000","Могзонское","76647154","26498139","Забайкальская дирекция по тепловодоснабжению - структурное подразделение Центральной дирекции по тепловодоснабжению филиала ОАО \"РЖД\"","7708503727","753602001","производство (некомбинированная выработка)+передача+сбыт","WARM"]
[599,"Забайкальский край","Хилокский муниципальный район","76647000","Могзонское","76647154","30869783","ООО \"Авангард\"","7536142585","753601001","производство (некомбинированная выработка)+передача+сбыт","WARM"]
[600,"Забайкальский край","Хилокский муниципальный район","76647000","Могзонское","76647154","26381505","ООО \"ЖКХ Могзон\"","7538001251","753801001","производство (некомбинированная выработка)+передача+сбыт","WARM"]
[601,"Забайкальский край","Хилокский муниципальный район","76647000","Харагунское","76647440","26498139","Забайкальская дирекция по тепловодоснабжению - структурное подразделение Центральной дирекции по тепловодоснабжению филиала ОАО \"РЖД\"","7708503727","753602001","производство (некомбинированная выработка)+передача+сбыт","WARM"]
[602,"Забайкальский край","Хилокский муниципальный район","76647000","Харагунское","76647440","26499139","Муниципальное унитарное предприятие \"Гарант\"","7538001300","753801001","производство (некомбинированная выработка)+передача+сбыт","WARM"]
[603,"Забайкальский край","Хилокский муниципальный район","76647000","Харагунское","76647440","26499133","ОАО \"Теплосервис\"","7538001340","753801001","производство (некомбинированная выработка)+передача+сбыт","WARM"]
[604,"Забайкальский край","Хилокский муниципальный район","76647000","Харагунское","76647440","26375595","ООО \"Харагунское жилищно-коммунальное хозяйство\"","7538001290","753801001","производство (некомбинированная выработка)+передача+сбыт","WARM"]
[605,"Забайкальский край","Хилокский муниципальный район","76647000","Хилогосонское","76647442","26499139","Муниципальное унитарное предприятие \"Гарант\"","7538001300","753801001","производство (некомбинированная выработка)+передача+сбыт","WARM"]
[606,"Забайкальский край","Хилокский муниципальный район","76647000","Хилокское","76647101","30335229","АО \"ГУ ЖКХ\"","5116000922","770401001","производство (некомбинированная выработка)+передача+сбыт","WARM"]
[607,"Забайкальский край","Хилокский муниципальный район","76647000","Хилокское","76647101","30431003","АО \"ГУ ЖКХ\"","5116000922","753645001","производство (некомбинированная выработка)+передача+сбыт","WARM"]
[608,"Забайкальский край","Хилокский муниципальный район","76647000","Хилокское","76647101","30793661","Государственное учреждение социального обслуживания \"Бадинский социально-реабилитационный центр для несовершеннолетних \"Искра\" Забайкальского края","7523005239","752301001","Передача+Сбыт","WARM"]
[609,"Забайкальский край","Хилокский муниципальный район","76647000","Хилокское","76647101","26498139","Забайкальская дирекция по тепловодоснабжению - структурное подразделение Центральной дирекции по тепловодоснабжению филиала ОАО \"РЖД\"","7708503727","753602001","производство (некомбинированная выработка)+передача+сбыт","WARM"]
[610,"Забайкальский край","Хилокский муниципальный район","76647000","Хилокское","76647101","26499122","МУП \"ГРЭЦ\"","7538000730","753801001","производство (некомбинированная выработка)+передача+сбыт","WARM"]
[611,"Забайкальский край","Хилокский муниципальный район","76647000","Хилокское","76647101","26499139","Муниципальное унитарное предприятие \"Гарант\"","7538001300","753801001","производство (некомбинированная выработка)+передача+сбыт","WARM"]
[612,"Забайкальский край","Хилокский муниципальный район","76647000","Хилокское","76647101","26499114","ОАО \"Техносервис\"","7538001614","753801001","производство (некомбинированная выработка)+передача+сбыт","WARM"]
[613,"Забайкальский край","Хилокский муниципальный район","76647000","Хилокское","76647101","28048456","ООО \"ТеплоВодоСнаб\"","7538001798","753801001","производство (некомбинированная выработка)+передача+сбыт","WARM"]
[614,"Забайкальский край","Хилокский муниципальный район","76647000","Хилокское","76647101","27500581","ООО \"ЧитаЭнергоАудит\"","7536115687","753601001","производство (некомбинированная выработка)+передача+сбыт","WARM"]
[615,"Забайкальский край","Хилокский муниципальный район","76647000","Хушенгинское","76647445","26499139","Муниципальное унитарное предприятие \"Гарант\"","7538001300","753801001","производство (некомбинированная выработка)+передача+сбыт","WARM"]
[616,"Забайкальский край","Чернышевский муниципальный район","76648000","Аксеново-Зиловское","76648154","26498139","Забайкальская дирекция по тепловодоснабжению - структурное подразделение Центральной дирекции по тепловодоснабжению филиала ОАО \"РЖД\"","7708503727","753602001","производство (некомбинированная выработка)+передача+сбыт","WARM"]
[617,"Забайкальский край","Чернышевский муниципальный район","76648000","Аксеново-Зиловское","76648154","26499158","МДОУ \"Медвеженок\"","7525004689","752501001","производство (некомбинированная выработка)+передача+сбыт","WARM"]
[618,"Забайкальский край","Чернышевский муниципальный район","76648000","Аксеново-Зиловское","76648154","26499160","МУП \"Надежда\"","7525005080","752501001","производство (некомбинированная выработка)+передача+сбыт","WARM"]
[619,"Забайкальский край","Чернышевский муниципальный район","76648000","Аксеново-Зиловское","76648154","27500441","ООО \"Доверие\"","7525005820","752501001","производство (некомбинированная выработка)+передача+сбыт","WARM"]
[620,"Забайкальский край","Чернышевский муниципальный район","76648000","Аксеново-Зиловское","76648154","28455442","ООО УК \"ЖКХ Зилово\"","7525006164","752501001","Передача+Сбыт","WARM"]
[621,"Забайкальский край","Чернышевский муниципальный район","76648000","Аксеново-Зиловское","76648154","28455442","ООО УК \"ЖКХ Зилово\"","7525006164","752501001","производство комбинированная выработка","WARM"]
[622,"Забайкальский край","Чернышевский муниципальный район","76648000","Аксеново-Зиловское","76648154","27500437","Рельсосварочный поезд № 37 - структурное подразделение Забайкальской дирекции по ремонту пути - строительного подразделения Центральной дирекции по ремонту пути - филиал ОАО \"РЖД\"","7536002500","752501001","производство (некомбинированная выработка)+передача+сбыт","WARM"]
[623,"Забайкальский край","Чернышевский муниципальный район","76648000","Алеурское","76648405","26498139","Забайкальская дирекция по тепловодоснабжению - структурное подразделение Центральной дирекции по тепловодоснабжению филиала ОАО \"РЖД\"","7708503727","753602001","производство (некомбинированная выработка)+передача+сбыт","WARM"]
[624,"Забайкальский край","Чернышевский муниципальный район","76648000","Букачачинское","76648156","28446472","МУП \"Тепло вода и коммунальные услуги\"","7525006132","752501001","производство (некомбинированная выработка)+передача+сбыт","WARM"]
[625,"Забайкальский край","Чернышевский муниципальный район","76648000","Букачачинское","76648156","26375556","МУП \"Тепловодоснабжение п. Букачача\"","7525004946","752501001","производство (некомбинированная выработка)+передача+сбыт","WARM"]
[626,"Забайкальский край","Чернышевский муниципальный район","76648000","Бушулейское","76648420","26530921","Администрация с.п. \"Бушулейское\"","7525004858","752501001","производство (некомбинированная выработка)+передача+сбыт","WARM"]
[627,"Забайкальский край","Чернышевский муниципальный район","76648000","Бушулейское","76648420","26498139","Забайкальская дирекция по тепловодоснабжению - структурное подразделение Центральной дирекции по тепловодоснабжению филиала ОАО \"РЖД\"","7708503727","753602001","производство (некомбинированная выработка)+передача+сбыт","WARM"]
[628,"Забайкальский край","Чернышевский муниципальный район","76648000","Бушулейское","76648420","28455426","МУП \"Бушулей\"","7525006157","752501001","Передача+Сбыт","WARM"]
[629,"Забайкальский край","Чернышевский муниципальный район","76648000","Бушулейское","76648420","28455426","МУП \"Бушулей\"","7525006157","752501001","производство комбинированная выработка","WARM"]
[630,"Забайкальский край","Чернышевский муниципальный район","76648000","Жирекенское","76648158","26375552","ОАО \"Жирекенский ГОК\"","7525003389","752550001","производство (некомбинированная выработка)+передача","WARM"]
[631,"Забайкальский край","Чернышевский муниципальный район","76648000","Жирекенское","76648158","26498141","ООО \"Коммунальник\"","7536089691","753601001","Передача+Сбыт","WARM"]
[632,"Забайкальский край","Чернышевский муниципальный район","76648000","Жирекенское","76648158","26498141","ООО \"Коммунальник\"","7536089691","753601001","производство (некомбинированная выработка)+передача+сбыт","WARM"]
[633,"Забайкальский край","Чернышевский муниципальный район","76648000","Жирекенское","76648158","26498141","ООО \"Коммунальник\"","7536089691","753601001","производство комбинированная выработка","WARM"]
[634,"Забайкальский край","Чернышевский муниципальный район","76648000","Комсомольское","76648432","26499167","Дом культуры п. Багульный сельского поселения \"Комсомольское\" муниципального района\"Чернышевский район\"","7525005315","752501001","производство (некомбинированная выработка)+передача+сбыт","WARM"]
[635,"Забайкальский край","Чернышевский муниципальный район","76648000","Мильгидунское","76648435","26499169","Администрация сельского поселения \"Мильгидунское\"","7525004752","752501001","производство (некомбинированная выработка)+передача+сбыт","WARM"]
[636,"Забайкальский край","Чернышевский муниципальный район","76648000","Урюмское","76648460","26498139","Забайкальская дирекция по тепловодоснабжению - структурное подразделение Центральной дирекции по тепловодоснабжению филиала ОАО \"РЖД\"","7708503727","753602001","производство (некомбинированная выработка)+передача+сбыт","WARM"]
[637,"Забайкальский край","Чернышевский муниципальный район","76648000","Урюмское","76648460","27500469","ТСЖ \"Дом\"","7525005844","752501001","производство (некомбинированная выработка)+передача+сбыт","WARM"]
[638,"Забайкальский край","Чернышевский муниципальный район","76648000","Чернышевское","76648151","26498139","Забайкальская дирекция по тепловодоснабжению - структурное подразделение Центральной дирекции по тепловодоснабжению филиала ОАО \"РЖД\"","7708503727","753602001","производство (некомбинированная выработка)+передача+сбыт","WARM"]
[639,"Забайкальский край","Чернышевский муниципальный район","76648000","Чернышевское","76648151","26499145","ИП Переломов С.А.","752502806367","752501001","производство (некомбинированная выработка)+передача+сбыт","WARM"]
[640,"Забайкальский край","Чернышевский муниципальный район","76648000","Чернышевское","76648151","28446836","МУП \"Чернышевский теплоэнергетический комплекс\"","7525006171","752501001","производство (некомбинированная выработка)+передача+сбыт","WARM"]
[641,"Забайкальский край","Чернышевский муниципальный район","76648000","Чернышевское","76648151","27570862","ОАО \"Вагонная ремонтная компания-1\"","7708737490","770801001","производство (некомбинированная выработка)+передача+сбыт","WARM"]
[642,"Забайкальский край","Чернышевский муниципальный район","76648000","Чернышевское","76648151","28153680","ООО \"ДорСервис\"","7525006125","752501001","производство (некомбинированная выработка)+передача+сбыт","WARM"]
[643,"Забайкальский край","Чернышевский муниципальный район","76648000","Чернышевское","76648151","26647978","ООО \"Теплоснаб\"","7525005876","752501001","производство (некомбинированная выработка)+передача+сбыт","WARM"]
[644,"Забайкальский край","Чернышевский муниципальный район","76648000","Чернышевское","76648151","28463943","ООО \"Теплоснабжение\"","7525006118","752501001","производство (некомбинированная выработка)+передача+сбыт","WARM"]
[645,"Забайкальский край","Чернышевский муниципальный район","76648000","Чернышевское","76648151","26381477","ООО \"Центральная котельная\"","7525005724","752501001","производство (некомбинированная выработка)+передача+сбыт","WARM"]
[646,"Забайкальский край","Чернышевский муниципальный район","76648000","Чернышевское","76648151","27500502","ООО \"Энергия\"","7525005989","752501001","производство (некомбинированная выработка)+передача+сбыт","WARM"]
[647,"Забайкальский край","Чернышевский муниципальный район","76648000","Чернышевское","76648151","26375589","ФГУП \"Забайкальскавтодор\"","7536007032","752502001","производство (некомбинированная выработка)+передача+сбыт","WARM"]
[648,"Забайкальский край","Чернышевский муниципальный район","76648000","Чернышевское","76648151","27500509","ФГУП \"Забайкальскавтодор\"- филиал Чернышевский дорожно-эксплуатационный участок","7536007032","753601001","производство (некомбинированная выработка)+передача+сбыт","WARM"]
[649,"Забайкальский край","Читинский муниципальный район","76650000","Атамановское","76650154","30335229","АО \"ГУ ЖКХ\"","5116000922","770401001","производство (некомбинированная выработка)+передача+сбыт","WARM"]
[650,"Забайкальский край","Читинский муниципальный район","76650000","Атамановское","76650154","30431003","АО \"ГУ ЖКХ\"","5116000922","753645001","производство (некомбинированная выработка)+передача+сбыт","WARM"]
[651,"Забайкальский край","Читинский муниципальный район","76650000","Атамановское","76650154","26499177","ГАУСО \"Атамановский дом-интернат для престарелых и инвалидов\"","7524005947","752401001","производство (некомбинированная выработка)+передача+сбыт","WARM"]
[652,"Забайкальский край","Читинский муниципальный район","76650000","Атамановское","76650154","26499173","ГУЗ \"Областной специализированный дом ребенка №2\"","7524012126","752401001","производство (некомбинированная выработка)+передача+сбыт","WARM"]
[653,"Забайкальский край","Читинский муниципальный район","76650000","Атамановское","76650154","26498139","Забайкальская дирекция по тепловодоснабжению - структурное подразделение Центральной дирекции по тепловодоснабжению филиала ОАО \"РЖД\"","7708503727","753602001","производство (некомбинированная выработка)+передача+сбыт","WARM"]
[654,"Забайкальский край","Читинский муниципальный район","76650000","Атамановское","76650154","30874506","МП \"ЖКХ г.п. Атамановское\"","7524187503","752401001","производство (некомбинированная выработка)+передача+сбыт","WARM"]
[655,"Забайкальский край","Читинский муниципальный район","76650000","Атамановское","76650154","27505508","ООО \"Атаман-Сервис\"","7524016554","752401001","производство (некомбинированная выработка)+передача+сбыт","WARM"]
[656,"Забайкальский край","Читинский муниципальный район","76650000","Атамановское","76650154","26498141","ООО \"Коммунальник\"","7536089691","753601001","Передача+Сбыт","WARM"]
[657,"Забайкальский край","Читинский муниципальный район","76650000","Атамановское","76650154","26498141","ООО \"Коммунальник\"","7536089691","753601001","производство (некомбинированная выработка)+передача+сбыт","WARM"]
[658,"Забайкальский край","Читинский муниципальный район","76650000","Атамановское","76650154","26498141","ООО \"Коммунальник\"","7536089691","753601001","производство комбинированная выработка","WARM"]
[659,"Забайкальский край","Читинский муниципальный район","76650000","Атамановское","76650154","28872956","ООО \"Наружные сети\"","7536069455","753601001","производство (некомбинированная выработка)+передача+сбыт","WARM"]
[660,"Забайкальский край","Читинский муниципальный район","76650000","Атамановское","76650154","26375546","ООО \"Холдинговая компания Сектор\"","7524013560","752401001","производство (некомбинированная выработка)+передача+сбыт","WARM"]
[661,"Забайкальский край","Читинский муниципальный район","76650000","Атамановское","76650154","26645970","ООО «Гефест»","7524016314","752401001","производство (некомбинированная выработка)+передача+сбыт","WARM"]
[662,"Забайкальский край","Читинский муниципальный район","76650000","Атамановское","76650154","28008588","ООО «КИРА-С»","7524017205","752401001","производство (некомбинированная выработка)+передача+сбыт","WARM"]
[663,"Забайкальский край","Читинский муниципальный район","76650000","Атамановское","76650154","28447340","ООО УК \"Регион Сервис\"","7536135250","753601001","производство (некомбинированная выработка)+передача+сбыт","WARM"]
[664,"Забайкальский край","Читинский муниципальный район","76650000","Атамановское","76650154","26834786","Филиал ОАО \"Ремонтно-эксплуатационное управление \"Забайкальский\"","7714783092","753643001","производство (некомбинированная выработка)+передача+сбыт","WARM"]
[665,"Забайкальский край","Читинский муниципальный район","76650000","Беклемишевское","76650410","28446385","ИП Соколовский И.Н.","753702995018","отсутствует","производство (некомбинированная выработка)+передача+сбыт","WARM"]
[666,"Забайкальский край","Читинский муниципальный район","76650000","Беклемишевское","76650410","28816976","ООО \"Авангард\"","7536142585","753601001","производство (некомбинированная выработка)+передача+сбыт","WARM"]
[667,"Забайкальский край","Читинский муниципальный район","76650000","Беклемишевское","76650410","26645970","ООО «Гефест»","7524016314","752401001","производство (некомбинированная выработка)+передача+сбыт","WARM"]
[668,"Забайкальский край","Читинский муниципальный район","76650000","Верх-Читинское","76650415","30335229","АО \"ГУ ЖКХ\"","5116000922","770401001","производство (некомбинированная выработка)+передача+сбыт","WARM"]
[669,"Забайкальский край","Читинский муниципальный район","76650000","Верх-Читинское","76650415","30431003","АО \"ГУ ЖКХ\"","5116000922","753645001","производство (некомбинированная выработка)+передача+сбыт","WARM"]
[670,"Забайкальский край","Читинский муниципальный район","76650000","Верх-Читинское","76650415","26375551","ООО \"Прайд\"","7524014980","752401001","производство (некомбинированная выработка)+передача+сбыт","WARM"]
[671,"Забайкальский край","Читинский муниципальный район","76650000","Верх-Читинское","76650415","26834786","Филиал ОАО \"Ремонтно-эксплуатационное управление \"Забайкальский\"","7714783092","753643001","производство (некомбинированная выработка)+передача+сбыт","WARM"]
[672,"Забайкальский край","Читинский муниципальный район","76650000","Домнинское","76650420","30335229","АО \"ГУ ЖКХ\"","5116000922","770401001","производство (некомбинированная выработка)+передача+сбыт","WARM"]
[673,"Забайкальский край","Читинский муниципальный район","76650000","Домнинское","76650420","30431003","АО \"ГУ ЖКХ\"","5116000922","753645001","производство (некомбинированная выработка)+передача+сбыт","WARM"]
[674,"Забайкальский край","Читинский муниципальный район","76650000","Домнинское","76650420","26375537","Домнинская КЭЧ района","7524005961","752401001","производство (некомбинированная выработка)+передача+сбыт","WARM"]
[675,"Забайкальский край","Читинский муниципальный район","76650000","Домнинское","76650420","26375587","ООО \"Металлопром\"","7534017814","753401001","производство (некомбинированная выработка)+передача+сбыт","WARM"]
[676,"Забайкальский край","Читинский муниципальный район","76650000","Домнинское","76650420","26647428","ООО «Универсал Мастер»","7524014959","752401001","производство (некомбинированная выработка)+передача+сбыт","WARM"]
[677,"Забайкальский край","Читинский муниципальный район","76650000","Домнинское","76650420","26499179","Общество с ограниченной ответственностью «Домнинское»","7524014885","752401001","производство (некомбинированная выработка)+передача+сбыт","WARM"]
[678,"Забайкальский край","Читинский муниципальный район","76650000","Домнинское","76650420","26834786","Филиал ОАО \"Ремонтно-эксплуатационное управление \"Забайкальский\"","7714783092","753643001","производство (некомбинированная выработка)+передача+сбыт","WARM"]
[679,"Забайкальский край","Читинский муниципальный район","76650000","Елизаветинское","76650425","28446385","ИП Соколовский И.Н.","753702995018","отсутствует","производство (некомбинированная выработка)+передача+сбыт","WARM"]
[680,"Забайкальский край","Читинский муниципальный район","76650000","Елизаветинское","76650425","26645970","ООО «Гефест»","7524016314","752401001","производство (некомбинированная выработка)+передача+сбыт","WARM"]
[681,"Забайкальский край","Читинский муниципальный район","76650000","Засопкинское","76650430","26375545","Муниципальное предприятие \"Засопкинское\"","7524012782","752401001","производство (некомбинированная выработка)+передача+сбыт","WARM"]
[682,"Забайкальский край","Читинский муниципальный район","76650000","Засопкинское","76650430","27500302","ООО \"Завод строительных материалов\"","7536113880","753601001","производство (некомбинированная выработка)+передача+сбыт","WARM"]
[683,"Забайкальский край","Читинский муниципальный район","76650000","Засопкинское","76650430","26499181","ООО \"Райтоп\"","7522003951","753401001","производство (некомбинированная выработка)+передача+сбыт","WARM"]
[684,"Забайкальский край","Читинский муниципальный район","76650000","Засопкинское","76650430","28010267","ООО «УК Комфорт»","7524017460","752401001","производство (некомбинированная выработка)+передача+сбыт","WARM"]
[685,"Забайкальский край","Читинский муниципальный район","76650000","Ингодинское","76650435","26498139","Забайкальская дирекция по тепловодоснабжению - структурное подразделение Центральной дирекции по тепловодоснабжению филиала ОАО \"РЖД\"","7708503727","753602001","производство (некомбинированная выработка)+передача+сбыт","WARM"]
[686,"Забайкальский край","Читинский муниципальный район","76650000","Ингодинское","76650435","28816976","ООО \"Авангард\"","7536142585","753601001","производство (некомбинированная выработка)+передача+сбыт","WARM"]
[687,"Забайкальский край","Читинский муниципальный район","76650000","Ингодинское","76650435","28878296","ООО \"Янта\"","3827017493","381101001","производство (некомбинированная выработка)+передача+сбыт","WARM"]
[688,"Забайкальский край","Читинский муниципальный район","76650000","Колочнинское","76650440","26499185","Администрация муниципального образования сельское поселение «Колочнинское» муниципального района «Читинский район»","7524012454","752401001","производство (некомбинированная выработка)+передача+сбыт","WARM"]
[689,"Забайкальский край","Читинский муниципальный район","76650000","Колочнинское","76650440","28816976","ООО \"Авангард\"","7536142585","753601001","производство (некомбинированная выработка)+передача+сбыт","WARM"]
[690,"Забайкальский край","Читинский муниципальный район","76650000","Колочнинское","76650440","26499179","Общество с ограниченной ответственностью «Домнинское»","7524014885","752401001","производство (некомбинированная выработка)+передача+сбыт","WARM"]
[691,"Забайкальский край","Читинский муниципальный район","76650000","Ленинское","76650445","26375537","Домнинская КЭЧ района","7524005961","752401001","производство (некомбинированная выработка)+передача+сбыт","WARM"]
[692,"Забайкальский край","Читинский муниципальный район","76650000","Леснинское","76650450","30335229","АО \"ГУ ЖКХ\"","5116000922","770401001","производство (некомбинированная выработка)+передача+сбыт","WARM"]
[693,"Забайкальский край","Читинский муниципальный район","76650000","Леснинское","76650450","30431003","АО \"ГУ ЖКХ\"","5116000922","753645001","производство (некомбинированная выработка)+передача+сбыт","WARM"]
[694,"Забайкальский край","Читинский муниципальный район","76650000","Леснинское","76650450","26375537","Домнинская КЭЧ района","7524005961","752401001","производство (некомбинированная выработка)+передача+сбыт","WARM"]
[695,"Забайкальский край","Читинский муниципальный район","76650000","Леснинское","76650450","30375338","ЗАО Санаторий Кука","7524000794","752401001","производство (некомбинированная выработка)+передача+сбыт","WARM"]
[696,"Забайкальский край","Читинский муниципальный район","76650000","Леснинское","76650450","26647428","ООО «Универсал Мастер»","7524014959","752401001","производство (некомбинированная выработка)+передача+сбыт","WARM"]
[697,"Забайкальский край","Читинский муниципальный район","76650000","Леснинское","76650450","26834786","Филиал ОАО \"Ремонтно-эксплуатационное управление \"Забайкальский\"","7714783092","753643001","производство (некомбинированная выработка)+передача+сбыт","WARM"]
[698,"Забайкальский край","Читинский муниципальный район","76650000","Маккавеевское","76650455","28426745","ООО Управляющая компания Азау","7524016191","752401001","производство (некомбинированная выработка)+передача+сбыт","WARM"]
[699,"Забайкальский край","Читинский муниципальный район","76650000","Маккавеевское","76650455","26375548","Общество с ограниченной ответственностью районно-эксплуатационное объединение \"Каскад\"","7524014363","752401001","производство (некомбинированная выработка)+передача+сбыт","WARM"]
[700,"Забайкальский край","Читинский муниципальный район","76650000","Новокручининское","76650158","30335229","АО \"ГУ ЖКХ\"","5116000922","770401001","производство (некомбинированная выработка)+передача+сбыт","WARM"]
[701,"Забайкальский край","Читинский муниципальный район","76650000","Новокручининское","76650158","30431003","АО \"ГУ ЖКХ\"","5116000922","753645001","производство (некомбинированная выработка)+передача+сбыт","WARM"]
[702,"Забайкальский край","Читинский муниципальный район","76650000","Новокручининское","76650158","26646077","Войсковая часть 96137 11 филиал","7536053529","752443006","производство (некомбинированная выработка)+передача+сбыт","WARM"]
[703,"Забайкальский край","Читинский муниципальный район","76650000","Новокручининское","76650158","26498139","Забайкальская дирекция по тепловодоснабжению - структурное подразделение Центральной дирекции по тепловодоснабжению филиала ОАО \"РЖД\"","7708503727","753602001","производство (некомбинированная выработка)+передача+сбыт","WARM"]
[704,"Забайкальский край","Читинский муниципальный район","76650000","Новокручининское","76650158","28446385","ИП Соколовский И.Н.","753702995018","отсутствует","производство (некомбинированная выработка)+передача+сбыт","WARM"]
[705,"Забайкальский край","Читинский муниципальный район","76650000","Новокручининское","76650158","27585036","МП \"Новокручининское\"","7524012824","752401001","производство (некомбинированная выработка)+передача+сбыт","WARM"]
[706,"Забайкальский край","Читинский муниципальный район","76650000","Новокручининское","76650158","28816976","ООО \"Авангард\"","7536142585","753601001","производство (некомбинированная выработка)+передача+сбыт","WARM"]
[707,"Забайкальский край","Читинский муниципальный район","76650000","Новокручининское","76650158","26647994","ООО \"РегионСтройСервис\"","7524014765","752401001","производство (некомбинированная выработка)+передача+сбыт","WARM"]
[708,"Забайкальский край","Читинский муниципальный район","76650000","Новокручининское","76650158","26375549","ООО «Новокручининское»","7524014451","752401001","производство (некомбинированная выработка)+передача+сбыт","WARM"]
[709,"Забайкальский край","Читинский муниципальный район","76650000","Новокручининское","76650158","26834786","Филиал ОАО \"Ремонтно-эксплуатационное управление \"Забайкальский\"","7714783092","753643001","производство (некомбинированная выработка)+передача+сбыт","WARM"]
[710,"Забайкальский край","Читинский муниципальный район","76650000","Новокукинское","76650460","28011260","ГКУЗ МЦ \"Резерв\"","7536031927","753360100","производство (некомбинированная выработка)+передача+сбыт","WARM"]
[711,"Забайкальский край","Читинский муниципальный район","76650000","Новокукинское","76650460","28446544","МУ \"Центр материально-технического и транспортного обслуживания\"","7524016410","752401001","производство (некомбинированная выработка)+передача+сбыт","WARM"]
[712,"Забайкальский край","Читинский муниципальный район","76650000","Новокукинское","76650460","30391728","ООО \"Меркурий\"","7524016138","752401001","производство (некомбинированная выработка)+передача+сбыт","WARM"]
[713,"Забайкальский край","Читинский муниципальный район","76650000","Новокукинское","76650460","30873164","ООО \"Теплоремстрой\"","7524187380","752401001","производство (некомбинированная выработка)+передача+сбыт","WARM"]
[714,"Забайкальский край","Читинский муниципальный район","76650000","Новокукинское","76650460","26382819","ООО «Новокукинское»","7524014405","752401001","производство (некомбинированная выработка)+передача+сбыт","WARM"]
[715,"Забайкальский край","Читинский муниципальный район","76650000","Новокукинское","76650460","26646088","ООО УК \"Коммунальное хозяйство\"","7536109764","753601001","производство (некомбинированная выработка)+передача+сбыт","WARM"]
[716,"Забайкальский край","Читинский муниципальный район","76650000","Новотроицкое","76650465","28446385","ИП Соколовский И.Н.","753702995018","отсутствует","производство (некомбинированная выработка)+передача+сбыт","WARM"]
[717,"Забайкальский край","Читинский муниципальный район","76650000","Сивяковское","76650473","28446385","ИП Соколовский И.Н.","753702995018","отсутствует","производство (некомбинированная выработка)+передача+сбыт","WARM"]
[718,"Забайкальский край","Читинский муниципальный район","76650000","Сивяковское","76650473","26645970","ООО «Гефест»","7524016314","752401001","производство (некомбинированная выработка)+передача+сбыт","WARM"]
[719,"Забайкальский край","Читинский муниципальный район","76650000","Сивяковское","76650473","26647428","ООО «Универсал Мастер»","7524014959","752401001","производство (некомбинированная выработка)+передача+сбыт","WARM"]
[720,"Забайкальский край","Читинский муниципальный район","76650000","Смоленское","76650475","30335229","АО \"ГУ ЖКХ\"","5116000922","770401001","производство (некомбинированная выработка)+передача+сбыт","WARM"]
[721,"Забайкальский край","Читинский муниципальный район","76650000","Смоленское","76650475","30431003","АО \"ГУ ЖКХ\"","5116000922","753645001","производство (некомбинированная выработка)+передача+сбыт","WARM"]
[722,"Забайкальский край","Читинский муниципальный район","76650000","Смоленское","76650475","28816976","ООО \"Авангард\"","7536142585","753601001","производство (некомбинированная выработка)+передача+сбыт","WARM"]
[723,"Забайкальский край","Читинский муниципальный район","76650000","Смоленское","76650475","30873164","ООО \"Теплоремстрой\"","7524187380","752401001","производство (некомбинированная выработка)+передача+сбыт","WARM"]
[724,"Забайкальский край","Читинский муниципальный район","76650000","Смоленское","76650475","28426745","ООО Управляющая компания Азау","7524016191","752401001","производство (некомбинированная выработка)+передача+сбыт","WARM"]
[725,"Забайкальский край","Читинский муниципальный район","76650000","Смоленское","76650475","26375540","Общество с ограниченной ответственностью ремонтно-эксплуатационное объединение \"Стимул\"","7524011429","752401001","производство (некомбинированная выработка)+передача+сбыт","WARM"]
[726,"Забайкальский край","Читинский муниципальный район","76650000","Смоленское","76650475","26834786","Филиал ОАО \"Ремонтно-эксплуатационное управление \"Забайкальский\"","7714783092","753643001","производство (некомбинированная выработка)+передача+сбыт","WARM"]
[727,"Забайкальский край","Читинский муниципальный район","76650000","Смоленское","76650475","27480161","Читинская дистанция гражданских сооружений структурное подразделение Дирекции по эксплуатации зданий и сооружений структурного подразделения Забайкальской железной дороги филиала ОАО \"РЖД\"","7708503727","770850001","производство (некомбинированная выработка)+передача+сбыт","WARM"]
[728,"Забайкальский край","Читинский муниципальный район","76650000","Сохондинское","76650480","30335229","АО \"ГУ ЖКХ\"","5116000922","770401001","производство (некомбинированная выработка)+передача+сбыт","WARM"]
[729,"Забайкальский край","Читинский муниципальный район","76650000","Сохондинское","76650480","30431003","АО \"ГУ ЖКХ\"","5116000922","753645001","производство (некомбинированная выработка)+передача+сбыт","WARM"]
[730,"Забайкальский край","Читинский муниципальный район","76650000","Сохондинское","76650480","27500381","Администрация сельского поселения \"Сохондинское\" муниципального района \"Читинский район\"","7524012415","752401001","производство (некомбинированная выработка)+передача+сбыт","WARM"]
[731,"Забайкальский край","Читинский муниципальный район","76650000","Сохондинское","76650480","26375537","Домнинская КЭЧ района","7524005961","752401001","производство (некомбинированная выработка)+передача+сбыт","WARM"]
[732,"Забайкальский край","Читинский муниципальный район","76650000","Сохондинское","76650480","28952313","ООО \"Сохондинское\"","7524018671","752401001","производство (некомбинированная выработка)+передача+сбыт","WARM"]
[733,"Забайкальский край","Читинский муниципальный район","76650000","Сохондинское","76650480","26499179","Общество с ограниченной ответственностью «Домнинское»","7524014885","752401001","производство (некомбинированная выработка)+передача+сбыт","WARM"]
[734,"Забайкальский край","Читинский муниципальный район","76650000","Сохондинское","76650480","26834786","Филиал ОАО \"Ремонтно-эксплуатационное управление \"Забайкальский\"","7714783092","753643001","производство (некомбинированная выработка)+передача+сбыт","WARM"]
[735,"Забайкальский край","Читинский муниципальный район","76650000","Угданское","76650487","28446360","Администрация с.п. Угданское","7524012408","752401001","производство (некомбинированная выработка)+передача+сбыт","WARM"]
[736,"Забайкальский край","Читинский муниципальный район","76650000","Угданское","76650487","28446385","ИП Соколовский И.Н.","753702995018","отсутствует","производство (некомбинированная выработка)+передача+сбыт","WARM"]
[737,"Забайкальский край","Читинский муниципальный район","76650000","Угданское","76650487","26645970","ООО «Гефест»","7524016314","752401001","производство (некомбинированная выработка)+передача+сбыт","WARM"]
[738,"Забайкальский край","Читинский муниципальный район","76650000","Шишкинское","76650490","30335229","АО \"ГУ ЖКХ\"","5116000922","770401001","производство (некомбинированная выработка)+передача+сбыт","WARM"]
[739,"Забайкальский край","Читинский муниципальный район","76650000","Шишкинское","76650490","30431003","АО \"ГУ ЖКХ\"","5116000922","753645001","производство (некомбинированная выработка)+передача+сбыт","WARM"]
[740,"Забайкальский край","Читинский муниципальный район","76650000","Шишкинское","76650490","28446385","ИП Соколовский И.Н.","753702995018","отсутствует","производство (некомбинированная выработка)+передача+сбыт","WARM"]
[741,"Забайкальский край","Читинский муниципальный район","76650000","Шишкинское","76650490","28816976","ООО \"Авангард\"","7536142585","753601001","производство (некомбинированная выработка)+передача+сбыт","WARM"]
[742,"Забайкальский край","Читинский муниципальный район","76650000","Шишкинское","76650490","26499191","ООО \"СДС\"","7536093049","752401001","производство (некомбинированная выработка)+передача+сбыт","WARM"]
[743,"Забайкальский край","Читинский муниципальный район","76650000","Шишкинское","76650490","26645970","ООО «Гефест»","7524016314","752401001","производство (некомбинированная выработка)+передача+сбыт","WARM"]
[744,"Забайкальский край","Читинский муниципальный район","76650000","Шишкинское","76650490","26834786","Филиал ОАО \"Ремонтно-эксплуатационное управление \"Забайкальский\"","7714783092","753643001","производство (некомбинированная выработка)+передача+сбыт","WARM"]
[745,"Забайкальский край","Читинский муниципальный район","76650000","Яблоновское","76650164","26498139","Забайкальская дирекция по тепловодоснабжению - структурное подразделение Центральной дирекции по тепловодоснабжению филиала ОАО \"РЖД\"","7708503727","753602001","производство (некомбинированная выработка)+передача+сбыт","WARM"]
[746,"Забайкальский край","Читинский муниципальный район","76650000","Яблоновское","76650164","28446385","ИП Соколовский И.Н.","753702995018","отсутствует","производство (некомбинированная выработка)+передача+сбыт","WARM"]
[747,"Забайкальский край","Читинский муниципальный район","76650000","Яблоновское","76650164","30873164","ООО \"Теплоремстрой\"","7524187380","752401001","производство (некомбинированная выработка)+передача+сбыт","WARM"]
[748,"Забайкальский край","Шелопугинский муниципальный район","76652000","Вершино-Шахтаминское","76652410","26375559","МУП ЖКХ \"Шахтаминское\"","7526002691","752601001","производство (некомбинированная выработка)+передача+сбыт","WARM"]
[749,"Забайкальский край","Шелопугинский муниципальный район","76652000","Шелопугинское","76652475","27585272","Администрация СП \"Шелопугинское\"","7526002878","752601001","производство (некомбинированная выработка)+передача+сбыт","WARM"]
[750,"Забайкальский край","Шелопугинский муниципальный район","76652000","Шелопугинское","76652475","26375559","МУП ЖКХ \"Шахтаминское\"","7526002691","752601001","производство (некомбинированная выработка)+передача+сбыт","WARM"]
[751,"Забайкальский край","Шелопугинский муниципальный район","76652000","Шелопугинское","76652475","30372462","ООО \"Авангард плюс\"","7524018664","752401001","производство (некомбинированная выработка)+передача+сбыт","WARM"]
[752,"Забайкальский край","Шилкинский муниципальный район","76654000","Богомягковское","76654405","28085540","МОУ СОШ им. Г.П.Богомягкова","7527005825","752701001","производство (некомбинированная выработка)+передача+сбыт","WARM"]
[753,"Забайкальский край","Шилкинский муниципальный район","76654000","Верхнехилинское","76654410","26775508","МКП \"Надежда\"","7527008047","752701001","производство (некомбинированная выработка)+передача+сбыт","WARM"]
[754,"Забайкальский край","Шилкинский муниципальный район","76654000","Галкинское","76654415","26499202","МОУ Галкинская СОШ","7527006025","752701001","производство (некомбинированная выработка)+передача+сбыт","WARM"]
[755,"Забайкальский край","Шилкинский муниципальный район","76654000","Казановское","76654420","28013474","МКП \"Казаново\"","7527008946","752701001","производство (некомбинированная выработка)+передача+сбыт","WARM"]
[756,"Забайкальский край","Шилкинский муниципальный район","76654000","Казановское","76654420","26823617","МОУ Казановская СОШ","7527006307","752701001","производство (некомбинированная выработка)+передача+сбыт","WARM"]
[757,"Забайкальский край","Шилкинский муниципальный район","76654000","Мирсановское","76654425","26646169","МКП \"Луч\"","7527007808","752701001","производство (некомбинированная выработка)+передача+сбыт","WARM"]
[758,"Забайкальский край","Шилкинский муниципальный район","76654000","Мирсановское","76654425","27585043","МОУ \"Мирсановская ООШ\"","7524012824","752401001","производство (некомбинированная выработка)+передача+сбыт","WARM"]
[759,"Забайкальский край","Шилкинский муниципальный район","76654000","Мирсановское","76654425","26498141","ООО \"Коммунальник\"","7536089691","753601001","производство (некомбинированная выработка)","WARM"]
[760,"Забайкальский край","Шилкинский муниципальный район","76654000","Номоконовское","76654440","28151471","МОУ Номоконовская средняя общеобразовательная школа","7527006385","752701001","производство (некомбинированная выработка)+передача+сбыт","WARM"]
[761,"Забайкальский край","Шилкинский муниципальный район","76654000","Ононское","76654445","27500184","МУП ЖКХ \"Ононское\"","7527008671","752701001","производство (некомбинированная выработка)+передача+сбыт","WARM"]
[762,"Забайкальский край","Шилкинский муниципальный район","76654000","Первомайское","76654158","26498139","Забайкальская дирекция по тепловодоснабжению - структурное подразделение Центральной дирекции по тепловодоснабжению филиала ОАО \"РЖД\"","7708503727","753602001","производство (некомбинированная выработка)+передача+сбыт","WARM"]
[763,"Забайкальский край","Шилкинский муниципальный район","76654000","Первомайское","76654158","26498141","ООО \"Коммунальник\"","7536089691","753601001","Передача+Сбыт","WARM"]
[764,"Забайкальский край","Шилкинский муниципальный район","76654000","Первомайское","76654158","26498141","ООО \"Коммунальник\"","7536089691","753601001","производство (некомбинированная выработка)+передача+сбыт","WARM"]
[765,"Забайкальский край","Шилкинский муниципальный район","76654000","Первомайское","76654158","26498141","ООО \"Коммунальник\"","7536089691","753601001","производство комбинированная выработка","WARM"]
[766,"Забайкальский край","Шилкинский муниципальный район","76654000","Первомайское","76654158","26649581","ООО \"Первомайская ТЭЦ\"","7527007903","752701001","Передача+Сбыт","WARM"]
[767,"Забайкальский край","Шилкинский муниципальный район","76654000","Первомайское","76654158","26649581","ООО \"Первомайская ТЭЦ\"","7527007903","752701001","производство комбинированная выработка","WARM"]
[768,"Забайкальский край","Шилкинский муниципальный район","76654000","Размахнинское","76654450","26375562","МУП \"ЖКХ \"Ингода\"","7527006850","752701001","производство (некомбинированная выработка)+передача+сбыт","WARM"]
[769,"Забайкальский край","Шилкинский муниципальный район","76654000","Усть-Теленгуйское","76654455","27500188","МУП \"ЖКХ с. Усть-Теленгуй\"","7527006890","752501001","производство (некомбинированная выработка)+передача+сбыт","WARM"]
[770,"Забайкальский край","Шилкинский муниципальный район","76654000","Холбонское","76654164","26498143","ОАО «Межрегиональная распределительная сетевая компания Сибири»- филиал \"Читаэнерго\"","2460069527","753643001","производство (некомбинированная выработка)+передача+сбыт","WARM"]
[771,"Забайкальский край","Шилкинский муниципальный район","76654000","Чиронское","76654460","26499206","Администрация сельского поселения \"Чиронское\"","7527007090","752701001","производство (некомбинированная выработка)+передача+сбыт","WARM"]
[772,"Забайкальский край","Шилкинский муниципальный район","76654000","Чиронское","76654460","28463481","МКП \"Онон\"","7527009072","752701001","производство (некомбинированная выработка)+передача+сбыт","WARM"]
[773,"Забайкальский край","Шилкинский муниципальный район","76654000","Шилкинское","76654101","30335229","АО \"ГУ ЖКХ\"","5116000922","770401001","производство (некомбинированная выработка)+передача+сбыт","WARM"]
[774,"Забайкальский край","Шилкинский муниципальный район","76654000","Шилкинское","76654101","30431003","АО \"ГУ ЖКХ\"","5116000922","753645001","производство (некомбинированная выработка)+передача+сбыт","WARM"]
[775,"Забайкальский край","Шилкинский муниципальный район","76654000","Шилкинское","76654101","26498139","Забайкальская дирекция по тепловодоснабжению - структурное подразделение Центральной дирекции по тепловодоснабжению филиала ОАО \"РЖД\"","7708503727","753602001","производство (некомбинированная выработка)+передача+сбыт","WARM"]
[776,"Забайкальский край","Шилкинский муниципальный район","76654000","Шилкинское","76654101","26499198","Краевое государственное учреждение «Шилкинский лес»","7536088539","752702001","производство (некомбинированная выработка)+передача+сбыт","WARM"]
[777,"Забайкальский край","Шилкинский муниципальный район","76654000","Шилкинское","76654101","27660173","МОУ Шилкинская СОШ 2","7527006240","752701001","производство (некомбинированная выработка)+передача+сбыт","WARM"]
[778,"Забайкальский край","Шилкинский муниципальный район","76654000","Шилкинское","76654101","26823649","МУ Управления образования \"Шилкинский район\"","7527002292","752701001","производство (некомбинированная выработка)+передача+сбыт","WARM"]
[779,"Забайкальский край","Шилкинский муниципальный район","76654000","Шилкинское","76654101","26499196","МУЗ \"Шилкинская центральная районная больница\"","7527002221","752701001","производство (некомбинированная выработка)+передача+сбыт","WARM"]
[780,"Забайкальский край","Шилкинский муниципальный район","76654000","Шилкинское","76654101","26375561","МУП \"ЖКХ г. Шилка\"","7527006480","752701001","производство (некомбинированная выработка)+передача+сбыт","WARM"]
[781,"Забайкальский край","Шилкинский муниципальный район","76654000","Шилкинское","76654101","26823634","МУП \"Торговый комплекс \"Гранд\"","7527004363","752701001","производство (некомбинированная выработка)+передача+сбыт","WARM"]
[782,"Забайкальский край","Шилкинский муниципальный район","76654000","Шилкинское","76654101","26381483","МУП \"Управляющая компания г. Шилка\"","7527007678","752701001","производство (некомбинированная выработка)+передача+сбыт","WARM"]
[783,"Забайкальский край","Шилкинский муниципальный район","76654000","Шилкинское","76654101","26498141","ООО \"Коммунальник\"","7536089691","753601001","Передача+Сбыт","WARM"]
[784,"Забайкальский край","Шилкинский муниципальный район","76654000","Шилкинское","76654101","26498141","ООО \"Коммунальник\"","7536089691","753601001","производство (некомбинированная выработка)+передача+сбыт","WARM"]
[785,"Забайкальский край","Шилкинский муниципальный район","76654000","Шилкинское","76654101","26498141","ООО \"Коммунальник\"","7536089691","753601001","производство комбинированная выработка","WARM"]
[786,"Забайкальский край","Шилкинский муниципальный район","76654000","Шилкинское","76654101","26649591","ООО \"Стимул\"","7527008640","752701001","производство (некомбинированная выработка)+передача+сбыт","WARM"]
[787,"Забайкальский край","Шилкинский муниципальный район","76654000","Шилкинское","76654101","26648474","ООО УК г.Шилка","7527008632","752701001","производство (некомбинированная выработка)+передача+сбыт","WARM"]
[788,"Забайкальский край","Шилкинский муниципальный район","76654000","Шилкинское","76654101","27500241","Управление образования Администрации муниципального района \"Шилкинский район\"","7527002292","752701001","производство (некомбинированная выработка)+передача+сбыт","WARM"]

{"sheet":"modClassifierValidate","index":24,"n_rows":0,"n_cols":0,"rows_kept":0,"hidden":true}

{"sheet":"modProv","index":25,"n_rows":0,"n_cols":0,"rows_kept":0,"hidden":true}

{"sheet":"modHyp","index":26,"n_rows":0,"n_cols":0,"rows_kept":0,"hidden":true}

{"sheet":"modList00","index":27,"n_rows":0,"n_cols":0,"rows_kept":0,"hidden":true}

{"sheet":"modList02","index":28,"n_rows":0,"n_cols":0,"rows_kept":0,"hidden":true}

{"sheet":"modList03","index":29,"n_rows":0,"n_cols":0,"rows_kept":0,"hidden":true}

{"sheet":"modList04","index":30,"n_rows":0,"n_cols":0,"rows_kept":0,"hidden":true}

{"sheet":"modList05","index":31,"n_rows":0,"n_cols":0,"rows_kept":0,"hidden":true}

{"sheet":"modList06","index":32,"n_rows":0,"n_cols":0,"rows_kept":0,"hidden":true}

{"sheet":"modList07","index":33,"n_rows":0,"n_cols":0,"rows_kept":0,"hidden":true}

{"sheet":"modfrmDateChoose","index":34,"n_rows":0,"n_cols":0,"rows_kept":0,"hidden":true}

{"sheet":"modComm","index":35,"n_rows":0,"n_cols":0,"rows_kept":0,"hidden":true}

{"sheet":"modThisWorkbook","index":36,"n_rows":0,"n_cols":0,"rows_kept":0,"hidden":true}

{"sheet":"REESTR_MO","index":37,"n_rows":417,"n_cols":4,"rows_kept":417,"hidden":true}
["№","МР","МО","МО_ОКТМО"]
[1,"Агинский муниципальный район","Агинский муниципальный район","76602000"]
[2,"Агинский муниципальный район","Амитхаша","76602402"]
[3,"Агинский муниципальный район","Будулан","76602404"]
[4,"Агинский муниципальный район","Гунэй","76602408"]
[5,"Агинский муниципальный район","Кункур","76602412"]
[6,"Агинский муниципальный район","Новоорловск","76602153"]
[7,"Агинский муниципальный район","Орловский","76602154"]
[8,"Агинский муниципальный район","Сахюрта","76602416"]
[9,"Агинский муниципальный район","Судунтуй","76602420"]
[10,"Агинский муниципальный район","Урда-Ага","76602424"]
[11,"Агинский муниципальный район","Хойто-Ага","76602428"]
[12,"Агинский муниципальный район","Цокто-Хангил","76602432"]
[13,"Агинский муниципальный район","Челутай","76602436"]
[14,"Агинский муниципальный район","Южный Аргалей","76602440"]
[15,"Акшинский муниципальный район","Акшинский муниципальный район","76603000"]
[16,"Акшинский муниципальный район","Акшинское","76603411"]
[17,"Акшинский муниципальный район","Бытевское","76603420"]
[18,"Акшинский муниципальный район","Курулгинское","76603427"]
[19,"Акшинский муниципальный район","Могойтуйское","76603430"]
[20,"Акшинский муниципальный район","Нарасунское","76603440"]
[21,"Акшинский муниципальный район","Новокургатайское","76603450"]
[22,"Акшинский муниципальный район","Оройское","76603460"]
[23,"Акшинский муниципальный район","Тохторское","76603465"]
[24,"Акшинский муниципальный район","Убур-Тохторское","76603468"]
[25,"Акшинский муниципальный район","Улачинское","76603470"]
[26,"Акшинский муниципальный район","Урейское","76603480"]
[27,"Акшинский муниципальный район","Усть-Илинское","76603490"]
[28,"Александрово-Заводский муниципальный район","Александрово-Заводский муниципальный район","76604000"]
[29,"Александрово-Заводский муниципальный район","Александрово-Заводское","76604412"]
[30,"Александрово-Заводский муниципальный район","Бохтинское","76604416"]
[31,"Александрово-Заводский муниципальный район","Бутунтайское","76604418"]
[32,"Александрово-Заводский муниципальный район","Кузнецовское","76604432"]
[33,"Александрово-Заводский муниципальный район","Манкечурское","76604440"]
[34,"Александрово-Заводский муниципальный район","Маньковское","76604443"]
[35,"Александрово-Заводский муниципальный район","Николаевское","76604450"]
[36,"Александрово-Заводский муниципальный район","Ново-Акатуйское","76604404"]
[37,"Александрово-Заводский муниципальный район","Онон-Борзинское","76604456"]
[38,"Александрово-Заводский муниципальный район","Первококуйское","76604458"]
[39,"Александрово-Заводский муниципальный район","Савво-Борзинское","76604460"]
[40,"Александрово-Заводский муниципальный район","Чиндагатайское","76604465"]
[41,"Александрово-Заводский муниципальный район","Шаранчинское","76604470"]
[42,"Балейский муниципальный район","Балейский муниципальный район","76606000"]
[43,"Балейский муниципальный район","Городское поселение \"Город Балей\"","76606101"]
[44,"Балейский муниципальный район","Жидкинское","76606410"]
[45,"Балейский муниципальный район","Казаковское","76606405"]
[46,"Балейский муниципальный район","Матусовское","76606425"]
[47,"Балейский муниципальный район","Нижнегирюнинское","76606430"]
[48,"Балейский муниципальный район","Нижнеильдиканское","76606415"]
[49,"Балейский муниципальный район","Нижнекокуйское","76606435"]
[50,"Балейский муниципальный район","Подойницинское","76606440"]
[51,"Балейский муниципальный район","Ундино-Посельское","76606445"]
[52,"Балейский муниципальный район","Ундинское","76606450"]
[53,"Борзинский муниципальный район","Акурайское","76609408"]
[54,"Борзинский муниципальный район","Биликтуйское","76609414"]
[55,"Борзинский муниципальный район","Борзинский муниципальный район","76609000"]
[56,"Борзинский муниципальный район","Борзинское","76609101"]
[57,"Борзинский муниципальный район","Ключевское","76609420"]
[58,"Борзинский муниципальный район","Кондуйское","76609424"]
[59,"Борзинский муниципальный район","Курунзулайское","76609436"]
[60,"Борзинский муниципальный район","Новоборзинское","76609440"]
[61,"Борзинский муниципальный район","Переднебыркинское","76609460"]
[62,"Борзинский муниципальный район","Приозёрное","76609462"]
[63,"Борзинский муниципальный район","Соловьёвское","76609464"]
[64,"Борзинский муниципальный район","Усть-Озёрское","76609468"]
[65,"Борзинский муниципальный район","Хада-Булакское","76609472"]
[66,"Борзинский муниципальный район","Цаган-Олуйское","76609476"]
[67,"Борзинский муниципальный район","Чиндантское","76609480"]
[68,"Борзинский муниципальный район","Шерловогорское","76609154"]
[69,"Борзинский муниципальный район","Шоноктуйское","76609488"]
[70,"Борзинский муниципальный район","Южное","76609452"]
[71,"Газимуро-Заводский муниципальный район","Батаканское","76610403"]
[72,"Газимуро-Заводский муниципальный район","Буруканское","76610405"]
[73,"Газимуро-Заводский муниципальный район","Газимуро-Заводский муниципальный район","76610000"]
[74,"Газимуро-Заводский муниципальный район","Газимуро-Заводское","76610409"]
[75,"Газимуро-Заводский муниципальный район","Зеренское","76610412"]
[76,"Газимуро-Заводский муниципальный район","Кактолгинское","76610418"]
[77,"Газимуро-Заводский муниципальный район","Новоширокинское","76610433"]
[78,"Газимуро-Заводский муниципальный район","Солонеченское","76610420"]
[79,"Газимуро-Заводский муниципальный район","Трубачевское","76610426"]
[80,"Газимуро-Заводский муниципальный район","Ушмунское","76610430"]
[81,"Город Краснокаменск и Краснокаменский муниципальный район","Богдановское","76621408"]
[82,"Город Краснокаменск и Краснокаменский муниципальный район","Город Краснокаменск и Краснокаменский муниципальный район","76621000"]
[83,"Город Краснокаменск и Краснокаменский муниципальный район","Кайластуйское","76621420"]
[84,"Город Краснокаменск и Краснокаменский муниципальный район","Капцегайтуйское","76621424"]
[85,"Город Краснокаменск и Краснокаменский муниципальный район","Ковылинское","76621402"]
[86,"Город Краснокаменск и Краснокаменский муниципальный район","Краснокаменское","76621101"]
[87,"Город Краснокаменск и Краснокаменский муниципальный район","Маргуцекское","76621427"]
[88,"Город Краснокаменск и Краснокаменский муниципальный район","Соктуй-Милозанское","76621430"]
[89,"Город Краснокаменск и Краснокаменский муниципальный район","Среднеаргунское","76621434"]
[90,"Город Краснокаменск и Краснокаменский муниципальный район","Целиннинское","76621445"]
[91,"Город Краснокаменск и Краснокаменский муниципальный район","Юбилейнинское","76621450"]
[92,"Городской округ \"Город Петровск-Забайкальский\"","Городской округ \"Город Петровск-Забайкальский\"","76715000"]
[93,"Городской округ \"Город Чита\"","Городской округ \"Город Чита\"","76701000"]
[94,"Городской округ \"Посёлок Горный (ЗАТО)\"","Городской округ \"Посёлок Горный (ЗАТО)\"","76785000"]
[95,"Городской округ \"Поселок Агинское\"","Городской округ \"Поселок Агинское\"","76702000"]
[96,"Дульдургинский муниципальный район","Алханай","76611404"]
[97,"Дульдургинский муниципальный район","Ара-Иля","76611408"]
[98,"Дульдургинский муниципальный район","Бальзино","76611412"]
[99,"Дульдургинский муниципальный район","Дульдурга","76611416"]
[100,"Дульдургинский муниципальный район","Дульдургинский муниципальный район","76611000"]
[101,"Дульдургинский муниципальный район","Зуткулей","76611420"]
[102,"Дульдургинский муниципальный район","Иля","76611422"]
[103,"Дульдургинский муниципальный район","Таптанай","76611424"]
[104,"Дульдургинский муниципальный район","Токчин","76611428"]
[105,"Дульдургинский муниципальный район","Узон","76611432"]
[106,"Дульдургинский муниципальный район","Чиндалей","76611436"]
[107,"Забайкальский муниципальный район","Абагайтуйское","76612405"]
[108,"Забайкальский муниципальный район","Билитуйское","76612415"]
[109,"Забайкальский муниципальный район","Даурское","76612425"]
[110,"Забайкальский муниципальный район","Забайкальский муниципальный район","76612000"]
[111,"Забайкальский муниципальный район","Забайкальское","76612151"]
[112,"Забайкальский муниципальный район","Красновеликанское","76612420"]
[113,"Забайкальский муниципальный район","Рудник-Абагайтуйское","76612410"]
[114,"Забайкальский муниципальный район","Степное","76612445"]
[115,"Забайкальский муниципальный район","Черно-Озерское","76612455"]
[116,"Каларский муниципальный район","Икабьинское","76615405"]
[117,"Каларский муниципальный район","Каларский муниципальный район","76615000"]
[118,"Каларский муниципальный район","Куандинское","76615407"]
[119,"Каларский муниципальный район","Межселенная территория Каларского муниципального района, находящаяся вне границ городского и сельских поселений, с расположенным на этой территории с Средний Калар","76615701"]
[120,"Каларский муниципальный район","Новочарское","76615156"]
[121,"Каларский муниципальный район","Чапо-Ологское","76615433"]
[122,"Каларский муниципальный район","Чарское","76615444"]
[123,"Калганский муниципальный район","Буринское","76618411"]
[124,"Калганский муниципальный район","Верхне-Калгуканское","76618414"]
[125,"Калганский муниципальный район","Доновское","76618422"]
[126,"Калганский муниципальный район","Кадаинское","76618430"]
[127,"Калганский муниципальный район","Калганский муниципальный район","76618000"]
[128,"Калганский муниципальный район","Калганское","76618433"]
[129,"Калганский муниципальный район","Козловское","76618444"]
[130,"Калганский муниципальный район","Нижне-Калгуканское","76618455"]
[131,"Калганский муниципальный район","Средне-Борзинское","76618466"]
[132,"Калганский муниципальный район","Чингильтуйское","76618477"]
[133,"Калганский муниципальный район","Чупровское","76618488"]
[134,"Калганский муниципальный район","Шивиинское","76618490"]
[135,"Карымский муниципальный район","Адриановское","76620405"]
[136,"Карымский муниципальный район","Большетуринское","76620409"]
[137,"Карымский муниципальный район","Дарасунское","76620153"]
[138,"Карымский муниципальный район","Жимбиринское","76620420"]
[139,"Карымский муниципальный район","Кадахтинское","76620425"]
[140,"Карымский муниципальный район","Кайдаловское","76620430"]
[141,"Карымский муниципальный район","Карымский муниципальный район","76620000"]
[142,"Карымский муниципальный район","Карымское","76620151"]
[143,"Карымский муниципальный район","Курорт-Дарасунское","76620157"]
[144,"Карымский муниципальный район","Маякинское","76620435"]
[145,"Карымский муниципальный район","Нарын-Талачинское","76620440"]
[146,"Карымский муниципальный район","Новодоронинское","76620445"]
[147,"Карымский муниципальный район","Тыргетуйское","76620450"]
[148,"Карымский муниципальный район","Урульгинское","76620455"]
[149,"Красночикойский муниципальный район","Альбитуйское","76622405"]
[150,"Красночикойский муниципальный район","Архангельское","76622410"]
[151,"Красночикойский муниципальный район","Байхорское","76622415"]
[152,"Красночикойский муниципальный район","Большеречинское","76622420"]
[153,"Красночикойский муниципальный район","Верхнешергольджинское","76622425"]
[154,"Красночикойский муниципальный район","Жиндойское","76622430"]
[155,"Красночикойский муниципальный район","Захаровское","76622435"]
[156,"Красночикойский муниципальный район","Конкинское","76622470"]
[157,"Красночикойский муниципальный район","Коротковское","76622440"]
[158,"Красночикойский муниципальный район","Красночикойский муниципальный район","76622000"]
[159,"Красночикойский муниципальный район","Красночикойское","76622445"]
[160,"Красночикойский муниципальный район","Малоархангельское","76622450"]
[161,"Красночикойский муниципальный район","Межселенная территория Красночикойского муниципального района, находящаяся вне границ сельских поселений, с расположенным на этой территории с Семиозёрье","76622701"]
[162,"Красночикойский муниципальный район","Мензинское","76622455"]
[163,"Красночикойский муниципальный район","Урлукское","76622460"]
[164,"Красночикойский муниципальный район","Черемховское","76622475"]
[165,"Красночикойский муниципальный район","Шимбиликское","76622480"]
[166,"Кыринский муниципальный район","Алтанское","76624405"]
[167,"Кыринский муниципальный район","Билютуйское","76624410"]
[168,"Кыринский муниципальный район","Верхне-Ульхунское","76624415"]
[169,"Кыринский муниципальный район","Гаваньское","76624420"]
[170,"Кыринский муниципальный район","Кыринский муниципальный район","76624000"]
[171,"Кыринский муниципальный район","Кыринское","76624425"]
[172,"Кыринский муниципальный район","Любавинское","76624430"]
[173,"Кыринский муниципальный район","Мангутское","76624435"]
[174,"Кыринский муниципальный район","Михайло-Павловское","76624440"]
[175,"Кыринский муниципальный район","Мордойское","76624445"]
[176,"Кыринский муниципальный район","Надежнинское","76624450"]
[177,"Кыринский муниципальный район","Тарбальджейское","76624451"]
[178,"Кыринский муниципальный район","Ульхун-Партионское","76624453"]
[179,"Кыринский муниципальный район","Хапчерангинское","76624452"]
[180,"Кыринский муниципальный район","Шумундинское","76624455"]
[181,"Могойтуйский муниципальный район","Ага-Хангил","76625404"]
[182,"Могойтуйский муниципальный район","Боржигантай","76625408"]
[183,"Могойтуйский муниципальный район","Догой","76625412"]
[184,"Могойтуйский муниципальный район","Зугалай","76625416"]
[185,"Могойтуйский муниципальный район","Кусоча","76625448"]
[186,"Могойтуйский муниципальный район","Могойтуй","76625151"]
[187,"Могойтуйский муниципальный район","Могойтуйский муниципальный район","76625000"]
[188,"Могойтуйский муниципальный район","Нуринск","76625418"]
[189,"Могойтуйский муниципальный район","Ортуй","76625420"]
[190,"Могойтуйский муниципальный район","Усть-Нарин","76625422"]
[191,"Могойтуйский муниципальный район","Ушарбай","76625424"]
[192,"Могойтуйский муниципальный район","Хара-Шибирь","76625428"]
[193,"Могойтуйский муниципальный район","Хила","76625432"]
[194,"Могойтуйский муниципальный район","Цаган-Ола","76625436"]
[195,"Могойтуйский муниципальный район","Цаган-Челутай","76625440"]
[196,"Могойтуйский муниципальный район","Цугол","76625444"]
[197,"Могочинский муниципальный район","Амазарское","76626154"]
[198,"Могочинский муниципальный район","Давендинское","76626156"]
[199,"Могочинский муниципальный район","Ключевское","76626160"]
[200,"Могочинский муниципальный район","Ксеньевское","76626162"]
[201,"Могочинский муниципальный район","Межселенная территория Могочинского муниципального района, находящаяся вне границ городских и сельских поселений","76626701"]
[202,"Могочинский муниципальный район","Могочинский муниципальный район","76626000"]
[203,"Могочинский муниципальный район","Могочинское","76626101"]
[204,"Могочинский муниципальный район","Сбегинское","76626410"]
[205,"Могочинский муниципальный район","Семиозернинское","76626408"]
[206,"Нерчинский муниципальный район","Андронниковское","76628415"]
[207,"Нерчинский муниципальный район","Бишигинское","76628405"]
[208,"Нерчинский муниципальный район","Верхнеключевское","76628410"]
[209,"Нерчинский муниципальный район","Верхнеумыкейское","76628450"]
[210,"Нерчинский муниципальный район","Зареченское","76628420"]
[211,"Нерчинский муниципальный район","Знаменское","76628425"]
[212,"Нерчинский муниципальный район","Зюльзинское","76628430"]
[213,"Нерчинский муниципальный район","Илимское","76628435"]
[214,"Нерчинский муниципальный район","Кумакинское","76628445"]
[215,"Нерчинский муниципальный район","Нерчинский муниципальный район","76628000"]
[216,"Нерчинский муниципальный район","Нерчинское","76628101"]
[217,"Нерчинский муниципальный район","Нижнеключевское","76628455"]
[218,"Нерчинский муниципальный район","Олеканское","76628460"]
[219,"Нерчинский муниципальный район","Олинское","76628465"]
[220,"Нерчинский муниципальный район","Пешковское","76628470"]
[221,"Нерчинский муниципальный район","Приисковское","76628153"]
[222,"Нерчинско-Заводский муниципальный район","Аргунское","76630405"]
[223,"Нерчинско-Заводский муниципальный район","Больше-Зерентуйское","76630410"]
[224,"Нерчинско-Заводский муниципальный район","Булдуруйское","76630415"]
[225,"Нерчинско-Заводский муниципальный район","Георгиевское","76630420"]
[226,"Нерчинско-Заводский муниципальный район","Горбуновское","76630425"]
[227,"Нерчинско-Заводский муниципальный район","Горно-Зерентуйское","76630426"]
[228,"Нерчинско-Заводский муниципальный район","Ивановское","76630430"]
[229,"Нерчинско-Заводский муниципальный район","Михайловское","76630440"]
[230,"Нерчинско-Заводский муниципальный район","Нерчинско-Заводский муниципальный район","76630000"]
[231,"Нерчинско-Заводский муниципальный район","Нерчинско-Заводское","76630445"]
[232,"Нерчинско-Заводский муниципальный район","Олочинское","76630450"]
[233,"Нерчинско-Заводский муниципальный район","Уров-Ключевское","76630455"]
[234,"Нерчинско-Заводский муниципальный район","Чашино-Ильдиканское","76630460"]
[235,"Нерчинско-Заводский муниципальный район","Широковское","76630465"]
[236,"Нерчинско-Заводский муниципальный район","Явленское","76630470"]
[237,"Оловяннинский муниципальный район","Безречнинское","76632408"]
[238,"Оловяннинский муниципальный район","Булумское","76632410"]
[239,"Оловяннинский муниципальный район","Бурулятуйское","76632415"]
[240,"Оловяннинский муниципальный район","Долгокычинское","76632425"]
[241,"Оловяннинский муниципальный район","Единенское","76632430"]
[242,"Оловяннинский муниципальный район","Золотореченское","76632152"]
[243,"Оловяннинский муниципальный район","Калангуйское","76632153"]
[244,"Оловяннинский муниципальный район","Мирнинское","76632435"]
[245,"Оловяннинский муниципальный район","Оловяннинский муниципальный район","76632000"]
[246,"Оловяннинский муниципальный район","Оловяннинское","76632151"]
[247,"Оловяннинский муниципальный район","Ононское","76632440"]
[248,"Оловяннинский муниципальный район","Степнинское","76632445"]
[249,"Оловяннинский муниципальный район","Тургинское","76632450"]
[250,"Оловяннинский муниципальный район","Улан-Цацыкское","76632453"]
[251,"Оловяннинский муниципальный район","Улятуйское","76632455"]
[252,"Оловяннинский муниципальный район","Уртуйское","76632457"]
[253,"Оловяннинский муниципальный район","Хада-Булакское","76632460"]
[254,"Оловяннинский муниципальный район","Хара-Быркинское","76632465"]
[255,"Оловяннинский муниципальный район","Яснинское","76632470"]
[256,"Оловяннинский муниципальный район","Ясногорское","76632170"]
[257,"Ононский муниципальный район","Большевистское","76634405"]
[258,"Ононский муниципальный район","Буйлэсанское","76634410"]
[259,"Ононский муниципальный район","Верхнецасучейское","76634412"]
[260,"Ононский муниципальный район","Дурулгуйское","76634425"]
[261,"Ононский муниципальный район","Ималкинское","76634415"]
[262,"Ононский муниципальный район","Кулусутайское","76634422"]
[263,"Ононский муниципальный район","Нижнецасучейское","76634445"]
[264,"Ононский муниципальный район","Новозоринское","76634430"]
[265,"Ононский муниципальный район","Ононский муниципальный район","76634000"]
[266,"Ононский муниципальный район","Тут-Халтуйское","76634440"]
[267,"Ононский муниципальный район","Холуй-Базинское","76634435"]
[268,"Ононский муниципальный район","Чиндантское","76634450"]
[269,"Петровск-Забайкальский муниципальный район","Баляга-Катангарское","76636406"]
[270,"Петровск-Забайкальский муниципальный район","Балягинское","76636152"]
[271,"Петровск-Забайкальский муниципальный район","Зугмарское","76636421"]
[272,"Петровск-Забайкальский муниципальный район","Катаевское","76636425"]
[273,"Петровск-Забайкальский муниципальный район","Катангарское","76636430"]
[274,"Петровск-Забайкальский муниципальный район","Малетинское","76636440"]
[275,"Петровск-Забайкальский муниципальный район","Новопавловское","76636156"]
[276,"Петровск-Забайкальский муниципальный район","Песчанское","76636450"]
[277,"Петровск-Забайкальский муниципальный район","Петровск-Забайкальский муниципальный район","76636000"]
[278,"Петровск-Забайкальский муниципальный район","Тарбагатайское","76636158"]
[279,"Петровск-Забайкальский муниципальный район","Толбагинское","76636455"]
[280,"Петровск-Забайкальский муниципальный район","Усть-Оборское","76636457"]
[281,"Петровск-Забайкальский муниципальный район","Хараузское","76636460"]
[282,"Петровск-Забайкальский муниципальный район","Хохотуйское","76636470"]
[283,"Приаргунский муниципальный район","Быркинское","76638409"]
[284,"Приаргунский муниципальный район","Досатуйское","76638418"]
[285,"Приаргунский муниципальный район","Дуройское","76638423"]
[286,"Приаргунский муниципальный район","Зоргольское","76638428"]
[287,"Приаргунский муниципальный район","Кличкинское","76638154"]
[288,"Приаргунский муниципальный район","Молодежнинское","76638442"]
[289,"Приаргунский муниципальный район","Новоцурухайтуйское","76638452"]
[290,"Приаргунский муниципальный район","Погадаевское","76638457"]
[291,"Приаргунский муниципальный район","Пограничнинское","76638461"]
[292,"Приаргунский муниципальный район","Приаргунский муниципальный район","76638000"]
[293,"Приаргунский муниципальный район","Приаргунское","76638151"]
[294,"Приаргунский муниципальный район","Староцурухайтуйское","76638471"]
[295,"Приаргунский муниципальный район","Урулюнгуйское","76638476"]
[296,"Приаргунский муниципальный район","Усть-Тасуркайское","76638481"]
[297,"Сретенский муниципальный район","Алиянское","76640435"]
[298,"Сретенский муниципальный район","Ботовское","76640405"]
[299,"Сретенский муниципальный район","Верхне-Куларкинское","76640410"]
[300,"Сретенский муниципальный район","Верхне-Куэнгинское","76640415"]
[301,"Сретенский муниципальный район","Дунаевское","76640420"]
[302,"Сретенский муниципальный район","Кокуйское","76640154"]
[303,"Сретенский муниципальный район","Межселенная территория Сретенского муниципального района, находящаяся вне границ городских и сельских поселений","76640701"]
[304,"Сретенский муниципальный район","Молодовское","76640430"]
[305,"Сретенский муниципальный район","Сретенский муниципальный район","76640000"]
[306,"Сретенский муниципальный район","Сретенское","76640101"]
[307,"Сретенский муниципальный район","Усть-Карское","76640156"]
[308,"Сретенский муниципальный район","Усть-Наринзорское","76640440"]
[309,"Сретенский муниципальный район","Усть-Начинское","76640441"]
[310,"Сретенский муниципальный район","Фирсовское","76640445"]
[311,"Сретенский муниципальный район","Чикичейское","76640450"]
[312,"Сретенский муниципальный район","Шилко-Заводское","76640455"]
[313,"Тунгиро-Олекминский муниципальный район","Зареченское","76642415"]
[314,"Тунгиро-Олекминский муниципальный район","Межселенная территория Тунгиро-Олёкминского муниципального района, находящаяся вне границ сельских поселений, с расположенными на этой территории с Моклакан, с Средняя Олёкма, с Гуля","76642701"]
[315,"Тунгиро-Олекминский муниципальный район","Тунгиро-Олекминский муниципальный район","76642000"]
[316,"Тунгиро-Олекминский муниципальный район","Тупикское","76642401"]
[317,"Тунгокоченский муниципальный район","Верх-Усуглинское","76644411"]
[318,"Тунгокоченский муниципальный район","Вершино-Дарасунское","76644154"]
[319,"Тунгокоченский муниципальный район","Кыкерское","76644444"]
[320,"Тунгокоченский муниципальный район","Межселенная территория Тунгокоченского муниципального района, находящаяся вне границ городского и сельских поселений, с расположенными на этой территории с Зелёное Озеро, с Красный Яр, с Юмурчен","76644701"]
[321,"Тунгокоченский муниципальный район","Нижнестанское","76644446"]
[322,"Тунгокоченский муниципальный район","Тунгокоченский муниципальный район","76644000"]
[323,"Тунгокоченский муниципальный район","Тунгокоченское","76644455"]
[324,"Тунгокоченский муниципальный район","Усть-Каренгинское","76644466"]
[325,"Тунгокоченский муниципальный район","Усуглинское","76644477"]
[326,"Улетовский муниципальный район","Аблатуйское","76646402"]
[327,"Улетовский муниципальный район","Артинское","76646405"]
[328,"Улетовский муниципальный район","Горекацанское","76646415"]
[329,"Улетовский муниципальный район","Доронинское","76646420"]
[330,"Улетовский муниципальный район","Дровянинское","76646153"]
[331,"Улетовский муниципальный район","Ленинское","76646425"]
[332,"Улетовский муниципальный район","Николаевское","76646430"]
[333,"Улетовский муниципальный район","Тангинское","76646440"]
[334,"Улетовский муниципальный район","Улетовский муниципальный район","76646000"]
[335,"Улетовский муниципальный район","Улетовское","76646450"]
[336,"Улетовский муниципальный район","Хадактинское","76646455"]
[337,"Хилокский муниципальный район","Бадинское","76647405"]
[338,"Хилокский муниципальный район","Глинкинское","76647410"]
[339,"Хилокский муниципальный район","Жипхегенское","76647415"]
[340,"Хилокский муниципальный район","Закультинское","76647420"]
[341,"Хилокский муниципальный район","Линево-Озёрское","76647430"]
[342,"Хилокский муниципальный район","Могзонское","76647154"]
[343,"Хилокский муниципальный район","Укурикское","76647436"]
[344,"Хилокский муниципальный район","Харагунское","76647440"]
[345,"Хилокский муниципальный район","Хилогосонское","76647442"]
[346,"Хилокский муниципальный район","Хилокский муниципальный район","76647000"]
[347,"Хилокский муниципальный район","Хилокское","76647101"]
[348,"Хилокский муниципальный район","Хушенгинское","76647445"]
[349,"Хилокский муниципальный район","Энгорокское","76647450"]
[350,"Чернышевский муниципальный район","Аксеново-Зиловское","76648154"]
[351,"Чернышевский муниципальный район","Алеурское","76648405"]
[352,"Чернышевский муниципальный район","Байгульское","76648410"]
[353,"Чернышевский муниципальный район","Букачачинское","76648156"]
[354,"Чернышевский муниципальный район","Бушулейское","76648420"]
[355,"Чернышевский муниципальный район","Гаурское","76648425"]
[356,"Чернышевский муниципальный район","Жирекенское","76648158"]
[357,"Чернышевский муниципальный район","Икшицкое","76648430"]
[358,"Чернышевский муниципальный район","Комсомольское","76648432"]
[359,"Чернышевский муниципальный район","Курлыченское","76648433"]
[360,"Чернышевский муниципальный район","Мильгидунское","76648435"]
[361,"Чернышевский муниципальный район","Новоильинское","76648440"]
[362,"Чернышевский муниципальный район","Новооловское","76648445"]
[363,"Чернышевский муниципальный район","Старооловское","76648450"]
[364,"Чернышевский муниципальный район","Укурейское","76648455"]
[365,"Чернышевский муниципальный район","Урюмское","76648460"]
[366,"Чернышевский муниципальный район","Утанское","76648470"]
[367,"Чернышевский муниципальный район","Чернышевский муниципальный район","76648000"]
[368,"Чернышевский муниципальный район","Чернышевское","76648151"]
[369,"Читинский муниципальный район","Александровское","76650405"]
[370,"Читинский муниципальный район","Арахлейское","76650485"]
[371,"Читинский муниципальный район","Атамановское","76650154"]
[372,"Читинский муниципальный район","Беклемишевское","76650410"]
[373,"Читинский муниципальный район","Верх-Читинское","76650415"]
[374,"Читинский муниципальный район","Домнинское","76650420"]
[375,"Читинский муниципальный район","Елизаветинское","76650425"]
[376,"Читинский муниципальный район","Засопкинское","76650430"]
[377,"Читинский муниципальный район","Ингодинское","76650435"]
[378,"Читинский муниципальный район","Колочнинское","76650440"]
[379,"Читинский муниципальный район","Ленинское","76650445"]
[380,"Читинский муниципальный район","Леснинское","76650450"]
[381,"Читинский муниципальный район","Маккавеевское","76650455"]
[382,"Читинский муниципальный район","Новокручининское","76650158"]
[383,"Читинский муниципальный район","Новокукинское","76650460"]
[384,"Читинский муниципальный район","Новотроицкое","76650465"]
[385,"Читинский муниципальный район","Оленгуйское","76650470"]
[386,"Читинский муниципальный район","Сивяковское","76650473"]
[387,"Читинский муниципальный район","Смоленское","76650475"]
[388,"Читинский муниципальный район","Сохондинское","76650480"]
[389,"Читинский муниципальный район","Угданское","76650487"]
[390,"Читинский муниципальный район","Читинский муниципальный район","76650000"]
[391,"Читинский муниципальный район","Шишкинское","76650490"]
[392,"Читинский муниципальный район","Яблоновское","76650164"]
[393,"Шелопугинский муниципальный район","Вершино-Шахтаминское","76652410"]
[394,"Шелопугинский муниципальный район","Глинянское","76652425"]
[395,"Шелопугинский муниципальный район","Копунское","76652435"]
[396,"Шелопугинский муниципальный район","Мало-Тонтойское","76652460"]
[397,"Шелопугинский муниципальный район","Мироновское","76652440"]
[398,"Шелопугинский муниципальный район","Нижне-Шахтаминское","76652445"]
[399,"Шелопугинский муниципальный район","Шелопугинский муниципальный район","76652000"]
[400,"Шелопугинский муниципальный район","Шелопугинское","76652475"]
[401,"Шелопугинский муниципальный район","Шивиинское","76652480"]
[402,"Шилкинский муниципальный район","Богомягковское","76654405"]
[403,"Шилкинский муниципальный район","Верхнехилинское","76654410"]
[404,"Шилкинский муниципальный район","Галкинское","76654415"]
[405,"Шилкинский муниципальный район","Казановское","76654420"]
[406,"Шилкинский муниципальный район","Мирсановское","76654425"]
[407,"Шилкинский муниципальный район","Новоберёзовское","76654435"]
[408,"Шилкинский муниципальный район","Номоконовское","76654440"]
[409,"Шилкинский муниципальный район","Ононское","76654445"]
[410,"Шилкинский муниципальный район","Первомайское","76654158"]
[411,"Шилкинский муниципальный район","Размахнинское","76654450"]
[412,"Шилкинский муниципальный район","Усть-Теленгуйское","76654455"]
[413,"Шилкинский муниципальный район","Холбонское","76654164"]
[414,"Шилкинский муниципальный район","Чиронское","76654460"]
[415,"Шилкинский муниципальный район","Шилкинский муниципальный район","76654000"]
[416,"Шилкинский муниципальный район","Шилкинское","76654101"]

{"sheet":"modfrmReestrMR","index":38,"n_rows":0,"n_cols":0,"rows_kept":0,"hidden":true}

{"sheet":"modfrmCheckUpdates","index":39,"n_rows":0,"n_cols":0,"rows_kept":0,"hidden":true}

{"sheet":"CopyList","index":40,"n_rows":13,"n_cols":9,"rows_kept":13,"hidden":true}
{"$rows_empty":11}
[{"$nulls":4},"Наименование поставщика",null,"№ п/п","Способ приобретения"]
[{"$nulls":7},"Способ приобретения","Реквизиты договора"]